{"text_format":"1","workbook":"xlsx","n_sheets":9,"sheets":["Instructions","Points","Teams","Girls Results","Girls Totals","Boys Results","Boys Totals","Girls - Overall for papers","Boys - Overall for papers"],"not_rendered":{"charts":0,"images":1,"macros":1,"external_links":0,"defined_names":4,"comments":0,"pivot_tables":0},"unopened":[],"bounds":{"document_bytes":16777216,"sheet_cells":100000,"rows_first":2000,"rows_last":500,"rows_between":2000,"halvings":0,"cell_chars":16384,"cell_head_chars":4096},"cells_cut":0,"cells_raw":0,"read":"whole","date_system":"1900"}

{"sheet":"Instructions","index":0,"n_rows":29,"n_cols":2,"rows_kept":29,"cut":false,"hidden":false,"merged":[]}
[]
["1) ","This spreadsheet is fairly simple to use; please read all instructions and directions carefully, on this and every page, to clarify what you need to do and this will make using this tool easier.  There are 9 instructions/directions on this page.\n\nEven though you have not read it yet, Do Not Forget to Perform #9 when completely done.\n\nThe word \"Tab\" and \"Page\" are and will be used interchangeably in this spreadsheet.  You will find the Tabs near bottom of the page, i.e. this page has the Tab of \"Instructions\"."]
[]
["2) ","I would highly suggest that you first exit out of this spreadsheet and make a copy of this file.  Then after you have a copy, modify the file name to reflect the date of the meet where the file name has the \"(date)\" at the end of it.  Replace \"(date)\" with the meet date in the format mm-dd-yy, and keep the rest. This way you have a master file that is blank and you create a file for each meet.\n\nWhen you re-enter the spreadsheet it asks if you want to \"Enable Macros\", click on this button as you do want to have the macros in this spreadsheet enabled."]
[]
["3) ","You will perform the meet setup activities on the \"Points\" page and the \"Teams\" page.   You should not need to change them after that."]
[]
["4) ","Once the setup is done, ALL of your effort will be entering data for the Girls and for the Boys in either the \"Girls Results\" page or the \"Boys Results\" page.  Alternating between the two tabs as each events results come to you for compiling.  These 2 pages feed information/data to the other pages."]
[]
["5)","You can go to the \"Girls - Overall for the papers\" tab or the \"Boys - Overall for the papers\" tab to see the up-to-date team scores at any given point throughout the meet.  These pages also show the top 3 places for each event.\n\nOn these pages you can sort the team scores (high to low) by simultaneously pressing the Control key (marked as \"Ctrl\") and the \"A\" key on the keyboard.  You will see this on each of those pages as \"Ctrl + A\"."]
[]
["6)","Go to each tab and follow the instructions/directions for that page that are colored in RED.  You may need to scroll the page to the right to see any instructions/directions."]
[]
["7)","This spreadsheet and all pages have been protected so that only the cells, and in some cases columns, that you will be working with are unprotected and available for modification.  The \"Girls - Overall for papers\" page and the \"Boys - Overall for papers\" page are purposely not set to be protected.\n\nTherefore, as you are working on any page, either entering or updating data and you see the Microsoft Excel warning message pop up (see message below) just click on the \"OK\" button.  What this is telling you is that you are trying to modify a protected cell.  You can Copy from a protected cell.  "]
[]
[]
[]
[]
[]
[]
[]
[]
[]
[]
[]
["8)","If you run into a problem where the Cell (and/or Row and/or Column) you are trying to work with gives you the warning message identified in #7 above.  And you are absolutely positive you need to do something there - Then go to the Tools menu button (2nd bar down from top of screen) and then the Protection submenu button (approximately in the middle of the drop down box) and click on \"Unprotect Sheet\" (top item in drop down box).  A password was not setup to unprotect, so not an issue."]
[]
["9)","When you are completely done entering the results for every Event in this meet perform the following:\n\nYou now need to create a file each for the Girls and the Boys results to e-mail to the newspapers and anyone else who needs the final results.  Name each file to either be \"Metro League Meet - (date) - Girls Results\" or \"Metro League Meet - (date) - Boys Results\".  Replace the \"(date)\" with the meet date to keep the files straight.\n\nGo to the \"Girls - Overall for papers\" tab first to create the girls results file, then go to the \"Boys - Overall for papers\" tab to create the boys results file.\n"]
[null,"When you are at either of the afore mentioned tabs do the following to create each file:\n\n1) Do the \"Ctrl + A\" to have final sorted order.\n2) Go to the File tab on the toolbar at the top of the page, and click on it.  Then click on \"Save as Web Page\".\n3) In the Save as box that appears do the following:\n     a) Change the file name as recommeded above.\n     b) Click the radio button next to \"Selection: Sheet\".  This is in the lower middle section, slightly right of center.\n     c) Now click \"Save\"\n     d) You are done with this file, repeat the steps for the Boys file if you have not done that yet.\n\nDO NOT FORGET TO DO THIS STEP!"]

{"sheet":"Points","index":1,"n_rows":41,"n_cols":13,"rows_kept":41,"cut":false,"hidden":false,"merged":[]}
["# of Teams",null,"1st Place","2nd Place","3rd Place","4th Place","5th Place","6th Place","7th Place","8th Place"]
[]
[2]
["  Individual",null,5,3,1]
["  Relay",null,5]
[3]
["  Individual",null,5,3,2,1]
["  Relay",null,5,3]
[4]
["  Individual",null,6,4,3,2,1]
["  Relay",null,6,4,2]
[5]
["  Individual",null,8,6,4,2,1]
["  Relay",null,8,6,4,2]
[6]
["  Individual",null,10,8,6,4,2,1]
["  Relay",null,10,8,6,4,2]
["8+"]
["  Individual",null,10,8,6,5,4,3,2,1]
["  Relay",null,10,8,6,5,4,3,2,1]
[]
[null,null,null,null,null,null,null,null,null,null,null,null,"Change only the # of teams at this meet for both the Girls and the Boys;"]
["# of Teams at this Meet",null,null,null,null,null,null,null,null,null,null,null,"and the Date and Meet site."]
[4,null,"Girls"]
[4,null,"Boys"]
[]
[]
["Points used for this meet:",null,null,null,null,null,null,null,null,null,null,"Max. Pts per Event"]
["Girls"]
["Individual",null,{"$f":"IF($A$24=2, C4,IF($A$24=3,C7,IF($A$24=4,C10,IF($A$24=5,C13,IF($A$24<8,C16,C19)))))","v":6},{"$f":"IF($A$24=2, D4,IF($A$24=3,D7,IF($A$24=4,D10,IF($A$24=5,D13,IF($A$24<8,D16,D19)))))","v":4},3,2,1,0,0,0,null,{"$f":"SUM(C30:K30)","v":16}]
["Relay",null,{"$f":"IF($A$24=2, C5,IF($A$24=3,C8,IF($A$24=4,C11,IF($A$24=5,C14,IF($A$24<8,C17,C20)))))","v":6},{"$f":"IF($A$24=2, D5,IF($A$24=3,D8,IF($A$24=4,D11,IF($A$24=5,D14,IF($A$24<8,D17,D20)))))","v":4},2,0,0,0,0,0,null,{"$f":"SUM(C31:K31)","v":12}]
[]
[]
["Boys"]
["Individual",null,{"$f":"IF($A$25=2, C4,IF($A$25=3,C7,IF($A$25=4,C10,IF($A$25=5,C13,IF($A$25<8,C16,C19)))))","v":6},{"$f":"IF($A$25=2, D4,IF($A$25=3,D7,IF($A$25=4,D10,IF($A$25=5,D13,IF($A$25<8,D16,D19)))))","v":4},3,2,1,0,0,0,null,{"$f":"SUM(C35:K35)","v":16}]
["Relay",null,{"$f":"IF($A$25=2, C5,IF($A$25=3,C8,IF($A$25=4,C11,IF($A$25=5,C14,IF($A$25<8,C17,C20)))))","v":6},{"$f":"IF($A$25=2, D5,IF($A$25=3,D8,IF($A$25=4,D11,IF($A$25=5,D14,IF($A$25<8,D17,D20)))))","v":4},2,0,0,0,0,0,null,{"$f":"SUM(C36:K36)","v":12}]
[]
[]
[]
["Date:",null,"2013-04-03"]
["Meet:",null,"EMAC JV meet"]

{"sheet":"Teams","index":2,"n_rows":32,"n_cols":15,"rows_kept":32,"cut":false,"hidden":false,"merged":[]}
[null,"Team Name"]
[null,"Brighton",null,null,null,null,null,null,null,null,null,"\n\n"]
[null,"Prairie View"]
[null,"Thornton"]
[null,"Westminster"]
[]
[null," "]
[null," "]
[null," "]
[null," "]
[null," "]
[]
[]
[]
[null,"***** To include teams in this spreadsheet to score the meet:",null,null,null,null,null,null,null,null,null,"Team Names"]
[null,null,null,null,null,null,null,null,null,null,null,"(to copy to \"Team Name\" list)"]
[null,"             1) Right mouse click the cell of the first/next team to be",null,null,null,null,null,null,null,null,null,"DO NOT DELETE"]
[null,"                  included in this meet from the \"Team Names\" "]
[null,"                  list/box to the right (column L, rows 19 thru 28).",null,null,null,null,null,null,null,null,null,"Brighton"]
[null,null,null,null,null,null,null,null,null,null,null,"Prairie View"]
[null,"             2) In the box that appeared move the cursor to the \"Copy\"",null,null,null,null,null,null,null,null,null,"Thornton"]
[null,"                  command and left mouse click, to copy that team.",null,null,null,null,null,null,null,null,null,"Westminster"]
[]
[null,"             3) Now move the cursor to the next empty cell in the"]
[null,"                   \"Team Name\" list/box above (column B, rows 2 thru 11)"]
[null,"                    (keep in alphabetic order) and right mouse click."]
[null,null,null,null,null,null,null,null,null,null,null,null,null,null,"Girl's Only"]
[null,"             4) In the box that appeared move the cursor to the \"Paste\""]
[null,"                  command and left mouse click, to include that team."]
[null,"                            "]
[null,"             5) Repeat steps #1, 2, 3 & 4 for each team, one at a time, to"]
[null,"                 be added."]

{"sheet":"Girls Results","index":3,"n_rows":89,"n_cols":20,"rows_kept":89,"cut":false,"hidden":false,"merged":[[0,2,0,6],[1,2,1,6]]}
["Date",null,{"$f":"Points!C40","v":"2013-04-03"}]
["Meet",null,{"$f":"Points!C41","v":"EMAC JV meet"}]
[]
["Event",null,"1st Place",null,"2nd Place",null,"3rd Place",null,"4th Place",null,"5th Place",null,"6th Place",null,"7th Place",null,"8th Place"]
[]
["800 m Sprint Medley Relay"]
["   Team",null,"Thornton",null,"Brighton",null,"Prairie View",null,null,null,null,null,null,null,null,null,null,null,null,"Each Event is listed in column A.  Below each Event are the"]
["   Time",null,"2:12",null,"2:18",null,"2:20",null,null,null,null,null,null,null,null,null,null,null,null,"2 or 3 labeled rows (in red) of the Events' required results "]
[null,null,null,null,null,null,null,null,null,null,null,null,null,null,null,null,null,null,null,"information."]
["4 X 800 m Relay"]
["   Team",null,"Brighton",null,null,null,null,null,null,null,null,null,null,null,null,null,null,null,null,"Enter the Events' results information in the cells below"]
["   Time",null,"13:16",null,null,null,null,null,null,null,null,null,null,null,null,null,null,null,null,"each Place (1st thru 8th) that intersect with the labeled rows."]
[]
["100 m H Hurdles",null,null,null,null,null,null,null,null,null,null,null,null,null,null,null,null,null,null,"* The Team is a drop down list to choose from."]
["   Name",null,null,null,null,null,null,null,null,null,null,null,null,null,null,null,null,null,null,"                    This maintains consistency in the formulas "]
["   Team",null,"Thornton",null,"Thornton",null,"Thornton",null,null,null,null,null,null,null,null,null,null,null,null,"                     used in the spreadsheet."]
["   Time",null,"21.6",null,"23.09",null,"24.15"]
[null,null,null,null,null,null,null,null,null,null,null,null,null,null,null,null,null,null,null,"When you left mouse click on a cell where you will enter"]
["100 m Sprint",null,null,null,null,null,null,null,null,null,null,null,null,null,null,null,null,null,null,"the Team, you will see a drop down button appear on the"]
["   Name",null,"Taylor",null,"Wright",null,"Alben",null,"Montoya",null,null,null,null,null,null,null,null,null,null,"right of the cell with a downward pointing triangle in it."]
["   Team",null,"Prairie View",null,"Thornton",null,"Prairie View",null,"Brighton",null,null,null,null,null,null,null,null,null,null,"Click on that Button to make the Team list appear and click"]
["   Time",null,"13.62",null,"13.75",null,"14.36",null,"14.5",null,null,null,null,null,null,null,null,null,null,"on team you want."]
[]
["4 X 200 m Relay"]
["   Team",null,"Thornton",null,"Brighton",null,null,null,null,null,null,null,null,null,null,null,null,null,null,"The results you enter on this page will update"]
["   Time",null,"2:09.77",null,"2:15.97",null,null,null,null,null,null,null,null,null,null,null,null,null,null,"the \"Girls Totals\" page and also update the "]
[null,null,null,null,null,null,null,null,null,null,null,null,null,null,null,null,null,null,null,"\"Girls - Overall for papers\" page."]
["1600 m Run"]
["   Name",null,"Silva",null,"Wilkinson",null,"Cawley",null,"Bautista"]
["   Team",null,"Brighton",null,"Prairie View",null,"Prairie View",null,"Brighton"]
["   Time",null,"6:41",null,"6:42",null,"7:00",null,"7:03"]
[]
["4 x 100 m Relay"]
["   Team",null,"Thornton",null,"Brighton"]
["   Time",null,"59.57",null,"1:02.75"]
[]
["400 m Sprint"]
["   Name",null,"Smidt",null,"Wilkinson",null,"Feiner",null,"Martinez"]
["   Team",null,"Brighton",null,"Prairie View",null,"Thornton",null,"Brighton"]
["   Time",null,"1:08.60",null,"1:13.75",null,"1:15.37",null,"1:17.31"]
[]
["300 m L Hurdles"]
["   Name",null,"Zuniga",null,"Lehman",null,"Vargas"]
["   Team",null,"Thornton",null,"Prairie View",null,"Prairie View"]
["   Time",null,"1:00.66",null,"1:03.10",null,"1:06.06"]
[]
["800 m Run"]
["   Name",null,"Wilkinson",null,"Martinez",null,"Bautista",null,"Stanelle"]
["   Team",null,"Prairie View",null,"Brighton",null,"Brighton",null,"Prairie View"]
["   Time",null,"3:13.44",null,"3:18.55",null,"3;21.91",null,"3:22.91"]
[]
["200 m Sprint"]
["   Name",null,"Antcliff",null,"Wright",null,"Alben",null,"Venard"]
["   Team",null,"Prairie View",null,"Thornton",null,"Prairie View",null,"Thornton"]
["   Time",null,"27.81",null,"28.87",null,"30.3",null,"31.04"]
[]
["3200 m Run"]
["   Name"]
["   Team"]
["   Time"]
[]
["4 X 400 m Relay"]
["   Team",null,"Brighton"]
["   Time",null,"5:56"]
[]
["High Jump"]
["   Name",null,"Halverson",null,"Taylor",null,"Stricks"]
["   Team",null,"Brighton",null,"Prairie View",null,"Thornton"]
["   Distance",null,"4' 6\"",null,"4'2\"",null,"4' 0\""]
[]
["Long Jump"]
["   Name",null,"Branson",null,"Lisette",null,"Anna",null,"Lina"]
["   Team",null,"Prairie View",null,"Thornton",null,"Thornton",null,"Thornton"]
["   Distance",null,"12' 1.5\"",null,"11' 11\"",null,"11' 10\"",null,"11' 7\""]
[]
["Triple Jump"]
["   Name",null,"Branson",null,"Vernard",null,"Quintero"]
["   Team",null,"Prairie View",null,"Thornton",null,"Thornton"]
["   Distance",null,"24' 10\"",null,"23' 8\"",null,"23' 4\""]
[]
["Shot Put"]
["   Name",null,"White",null,"Potestio",null,"Sherman",null,"Merich"]
["   Team",null,"Brighton",null,"Brighton",null,"Westminster",null,"Brighton"]
["   Distance",null,"31' 2\"",null,"26'",null,"25' 2\"",null,"21' 5\""]
[]
["Discus"]
["   Name",null,"Hays",null,"Navarrete",null,"Lehman",null,"Potestio"]
["   Team",null,"Prairie View",null,"Westminster",null,"Prairie View",null,"Brighton"]
["   Distance",null,"63' 10\"",null,"68' 8\"",null,"57' 7\"",null,"55' 11\""]

{"sheet":"Girls Totals","index":4,"n_rows":43,"n_cols":25,"rows_kept":43,"cut":false,"hidden":false,"merged":[[0,2,0,6],[1,2,1,6]]}
["Date",null,{"$f":"Points!C40","v":"2013-04-03"}]
["Meet",null,{"$f":"Points!C41","v":"EMAC JV meet"}]
[]
["Event",null,{"$f":"IF(Teams!$B2=\" \",\"OK\",Teams!$B2)","v":"Brighton"},null,{"$f":"IF(Teams!$B3=\" \",\"OK\",Teams!$B3)","v":"Prairie View"},null,{"$f":"IF(Teams!$B4=\" \",\"OK\",Teams!$B4)","v":"Thornton"},null,{"$f":"IF(Teams!$B5=\" \",\"OK\",Teams!$B5)","v":"Westminster"},null,{"$f":"IF(Teams!$B6=\" \",\"OK\",Teams!$B6)","v":0},null,{"$f":"IF(Teams!$B7=\" \",\"OK\",Teams!$B7)","v":"OK"},null,{"$f":"IF(Teams!$B8=\" \",\"OK\",Teams!$B8)","v":"OK"},null,{"$f":"IF(Teams!$B9=\" \",\"OK\",Teams!$B9)","v":"OK"},null,{"$f":"IF(Teams!$B10=\" \",\"OK\",Teams!$B10)","v":"OK"},null,null,"Total Pts Awarded","Total Pts Avail"]
[]
[{"$f":"'Girls Results'!A6","v":"800 m Sprint Medley Relay"},null,{"$f":"SUM(IF('Girls Results'!$C$7=C$4,Points!$C$31)+IF('Girls Results'!$E$7=C$4,Points!$D$31)+IF('Girls Results'!$G$7=C$4,Points!$E$31)+IF('Girls Results'!$I$7=C$4,Points!$F$31)+IF('Girls Results'!$K$7=C$4,Points!$G$31)+IF('Girls Results'!$M$7=C$4,Points!$H$31)+IF('Girls Results'!$O$7=C$4,Points!$I$31)+IF('Girls Results'!$Q$7=C$4,Points!$J$31)+0)","v":4},null,{"$f":"SUM(IF('Girls Results'!$C$7=E$4,Points!$C$31)+IF('Girls Results'!$E$7=E$4,Points!$D$31)+IF('Girls Results'!$G$7=E$4,Points!$E$31)+IF('Girls Results'!$I$7=E$4,Points!$F$31)+IF('Girls Results'!$K$7=E$4,Points!$G$31)+IF('Girls Results'!$M$7=E$4,Points!$H$31)+IF('Girls Results'!$O$7=E$4,Points!$I$31)+IF('Girls Results'!$Q$7=E$4,Points!$J$31)+0)","v":2},null,{"$f":"SUM(IF('Girls Results'!$C$7=G$4,Points!$C$31)+IF('Girls Results'!$E$7=G$4,Points!$D$31)+IF('Girls Results'!$G$7=G$4,Points!$E$31)+IF('Girls Results'!$I$7=G$4,Points!$F$31)+IF('Girls Results'!$K$7=G$4,Points!$G$31)+IF('Girls Results'!$M$7=G$4,Points!$H$31)+IF('Girls Results'!$O$7=G$4,Points!$I$31)+IF('Girls Results'!$Q$7=G$4,Points!$J$31)+0)","v":6},null,{"$f":"SUM(IF('Girls Results'!$C$7=I$4,Points!$C$31)+IF('Girls Results'!$E$7=I$4,Points!$D$31)+IF('Girls Results'!$G$7=I$4,Points!$E$31)+IF('Girls Results'!$I$7=I$4,Points!$F$31)+IF('Girls Results'!$K$7=I$4,Points!$G$31)+IF('Girls Results'!$M$7=I$4,Points!$H$31)+IF('Girls Results'!$O$7=I$4,Points!$I$31)+IF('Girls Results'!$Q$7=I$4,Points!$J$31)+0)","v":0},null,{"$f":"SUM(IF('Girls Results'!$C$7=K$4,Points!$C$31)+IF('Girls Results'!$E$7=K$4,Points!$D$31)+IF('Girls Results'!$G$7=K$4,Points!$E$31)+IF('Girls Results'!$I$7=K$4,Points!$F$31)+IF('Girls Results'!$K$7=K$4,Points!$G$31)+IF('Girls Results'!$M$7=K$4,Points!$H$31)+IF('Girls Results'!$O$7=K$4,Points!$I$31)+IF('Girls Results'!$Q$7=K$4,Points!$J$31)+0)","v":0},null,{"$f":"SUM(IF('Girls Results'!$C$7=M$4,Points!$C$31)+IF('Girls Results'!$E$7=M$4,Points!$D$31)+IF('Girls Results'!$G$7=M$4,Points!$E$31)+IF('Girls Results'!$I$7=M$4,Points!$F$31)+IF('Girls Results'!$K$7=M$4,Points!$G$31)+IF('Girls Results'!$M$7=M$4,Points!$H$31)+IF('Girls Results'!$O$7=M$4,Points!$I$31)+IF('Girls Results'!$Q$7=M$4,Points!$J$31)+0)","v":0},null,{"$f":"SUM(IF('Girls Results'!$C$7=O$4,Points!$C$31)+IF('Girls Results'!$E$7=O$4,Points!$D$31)+IF('Girls Results'!$G$7=O$4,Points!$E$31)+IF('Girls Results'!$I$7=O$4,Points!$F$31)+IF('Girls Results'!$K$7=O$4,Points!$G$31)+IF('Girls Results'!$M$7=O$4,Points!$H$31)+IF('Girls Results'!$O$7=O$4,Points!$I$31)+IF('Girls Results'!$Q$7=O$4,Points!$J$31)+0)","v":0},null,{"$f":"SUM(IF('Girls Results'!$C$7=Q$4,Points!$C$31)+IF('Girls Results'!$E$7=Q$4,Points!$D$31)+IF('Girls Results'!$G$7=Q$4,Points!$E$31)+IF('Girls Results'!$I$7=Q$4,Points!$F$31)+IF('Girls Results'!$K$7=Q$4,Points!$G$31)+IF('Girls Results'!$M$7=Q$4,Points!$H$31)+IF('Girls Results'!$O$7=Q$4,Points!$I$31)+IF('Girls Results'!$Q$7=Q$4,Points!$J$31)+0)","v":0},null,{"$f":"SUM(IF('Girls Results'!$C$7=S$4,Points!$C$31)+IF('Girls Results'!$E$7=S$4,Points!$D$31)+IF('Girls Results'!$G$7=S$4,Points!$E$31)+IF('Girls Results'!$I$7=S$4,Points!$F$31)+IF('Girls Results'!$K$7=S$4,Points!$G$31)+IF('Girls Results'!$M$7=S$4,Points!$H$31)+IF('Girls Results'!$O$7=S$4,Points!$I$31)+IF('Girls Results'!$Q$7=S$4,Points!$J$31)+0)","v":0},null,null,{"$f":"SUM(C6:S6)","v":12},{"$f":"Points!$L$31","v":12}]
[null,null,null,null,null,null,null,null,null,null,null,null,null,null,null,null,null,null,null,null,null,null,null,null,"You should not make any changes on "]
[{"$f":"'Girls Results'!A10","v":"4 X 800 m Relay"},null,{"$f":"SUM(IF('Girls Results'!$C$11=C$4,Points!$C$31)+IF('Girls Results'!$E$11=C$4,Points!$D$31)+IF('Girls Results'!$G$11=C$4,Points!$E$31)+IF('Girls Results'!$I$11=C$4,Points!$F$31)+IF('Girls Results'!$K$11=C$4,Points!$G$31)+IF('Girls Results'!$M$11=C$4,Points!$H$31)+IF('Girls Results'!$O$11=C$4,Points!$I$31)+IF('Girls Results'!$Q$11=C$4,Points!$J$31)+0)","v":6},null,{"$f":"SUM(IF('Girls Results'!$C$11=E$4,Points!$C$31)+IF('Girls Results'!$E$11=E$4,Points!$D$31)+IF('Girls Results'!$G$11=E$4,Points!$E$31)+IF('Girls Results'!$I$11=E$4,Points!$F$31)+IF('Girls Results'!$K$11=E$4,Points!$G$31)+IF('Girls Results'!$M$11=E$4,Points!$H$31)+IF('Girls Results'!$O$11=E$4,Points!$I$31)+IF('Girls Results'!$Q$11=E$4,Points!$J$31)+0)","v":0},null,{"$f":"SUM(IF('Girls Results'!$C$11=G$4,Points!$C$31)+IF('Girls Results'!$E$11=G$4,Points!$D$31)+IF('Girls Results'!$G$11=G$4,Points!$E$31)+IF('Girls Results'!$I$11=G$4,Points!$F$31)+IF('Girls Results'!$K$11=G$4,Points!$G$31)+IF('Girls Results'!$M$11=G$4,Points!$H$31)+IF('Girls Results'!$O$11=G$4,Points!$I$31)+IF('Girls Results'!$Q$11=G$4,Points!$J$31)+0)","v":0},null,{"$f":"SUM(IF('Girls Results'!$C$11=I$4,Points!$C$31)+IF('Girls Results'!$E$11=I$4,Points!$D$31)+IF('Girls Results'!$G$11=I$4,Points!$E$31)+IF('Girls Results'!$I$11=I$4,Points!$F$31)+IF('Girls Results'!$K$11=I$4,Points!$G$31)+IF('Girls Results'!$M$11=I$4,Points!$H$31)+IF('Girls Results'!$O$11=I$4,Points!$I$31)+IF('Girls Results'!$Q$11=I$4,Points!$J$31)+0)","v":0},null,{"$f":"SUM(IF('Girls Results'!$C$11=K$4,Points!$C$31)+IF('Girls Results'!$E$11=K$4,Points!$D$31)+IF('Girls Results'!$G$11=K$4,Points!$E$31)+IF('Girls Results'!$I$11=K$4,Points!$F$31)+IF('Girls Results'!$K$11=K$4,Points!$G$31)+IF('Girls Results'!$M$11=K$4,Points!$H$31)+IF('Girls Results'!$O$11=K$4,Points!$I$31)+IF('Girls Results'!$Q$11=K$4,Points!$J$31)+0)","v":6},null,{"$f":"SUM(IF('Girls Results'!$C$11=M$4,Points!$C$31)+IF('Girls Results'!$E$11=M$4,Points!$D$31)+IF('Girls Results'!$G$11=M$4,Points!$E$31)+IF('Girls Results'!$I$11=M$4,Points!$F$31)+IF('Girls Results'!$K$11=M$4,Points!$G$31)+IF('Girls Results'!$M$11=M$4,Points!$H$31)+IF('Girls Results'!$O$11=M$4,Points!$I$31)+IF('Girls Results'!$Q$11=M$4,Points!$J$31)+0)","v":0},null,{"$f":"SUM(IF('Girls Results'!$C$11=O$4,Points!$C$31)+IF('Girls Results'!$E$11=O$4,Points!$D$31)+IF('Girls Results'!$G$11=O$4,Points!$E$31)+IF('Girls Results'!$I$11=O$4,Points!$F$31)+IF('Girls Results'!$K$11=O$4,Points!$G$31)+IF('Girls Results'!$M$11=O$4,Points!$H$31)+IF('Girls Results'!$O$11=O$4,Points!$I$31)+IF('Girls Results'!$Q$11=O$4,Points!$J$31)+0)","v":0},null,{"$f":"SUM(IF('Girls Results'!$C$11=Q$4,Points!$C$31)+IF('Girls Results'!$E$11=Q$4,Points!$D$31)+IF('Girls Results'!$G$11=Q$4,Points!$E$31)+IF('Girls Results'!$I$11=Q$4,Points!$F$31)+IF('Girls Results'!$K$11=Q$4,Points!$G$31)+IF('Girls Results'!$M$11=Q$4,Points!$H$31)+IF('Girls Results'!$O$11=Q$4,Points!$I$31)+IF('Girls Results'!$Q$11=Q$4,Points!$J$31)+0)","v":0},null,{"$f":"SUM(IF('Girls Results'!$C$11=S$4,Points!$C$31)+IF('Girls Results'!$E$11=S$4,Points!$D$31)+IF('Girls Results'!$G$11=S$4,Points!$E$31)+IF('Girls Results'!$I$11=S$4,Points!$F$31)+IF('Girls Results'!$K$11=S$4,Points!$G$31)+IF('Girls Results'!$M$11=S$4,Points!$H$31)+IF('Girls Results'!$O$11=S$4,Points!$I$31)+IF('Girls Results'!$Q$11=S$4,Points!$J$31)+0)","v":0},null,null,{"$f":"SUM(C8:S8)","v":12},{"$f":"Points!$L$31","v":12},null,"this page.  "]
[]
[{"$f":"'Girls Results'!A14","v":"100 m H Hurdles"},null,{"$f":"SUM(IF('Girls Results'!$C$16=C$4,Points!$C$30)+IF('Girls Results'!$E$16=C$4,Points!$D$30)+IF('Girls Results'!$G$16=C$4,Points!$E$30)+IF('Girls Results'!$I$16=C$4,Points!$F$30)+IF('Girls Results'!$K$16=C$4,Points!$G$30)+IF('Girls Results'!$M$16=C$4,Points!$H$30)+IF('Girls Results'!$O$16=C$4,Points!$I$30)+IF('Girls Results'!$Q$16=C$4,Points!$J$30)+0)","v":0},null,{"$f":"SUM(IF('Girls Results'!$C$16=E$4,Points!$C$30)+IF('Girls Results'!$E$16=E$4,Points!$D$30)+IF('Girls Results'!$G$16=E$4,Points!$E$30)+IF('Girls Results'!$I$16=E$4,Points!$F$30)+IF('Girls Results'!$K$16=E$4,Points!$G$30)+IF('Girls Results'!$M$16=E$4,Points!$H$30)+IF('Girls Results'!$O$16=E$4,Points!$I$30)+IF('Girls Results'!$Q$16=E$4,Points!$J$30)+0)","v":0},null,{"$f":"SUM(IF('Girls Results'!$C$16=G$4,Points!$C$30)+IF('Girls Results'!$E$16=G$4,Points!$D$30)+IF('Girls Results'!$G$16=G$4,Points!$E$30)+IF('Girls Results'!$I$16=G$4,Points!$F$30)+IF('Girls Results'!$K$16=G$4,Points!$G$30)+IF('Girls Results'!$M$16=G$4,Points!$H$30)+IF('Girls Results'!$O$16=G$4,Points!$I$30)+IF('Girls Results'!$Q$16=G$4,Points!$J$30)+0)","v":13},null,{"$f":"SUM(IF('Girls Results'!$C$16=I$4,Points!$C$30)+IF('Girls Results'!$E$16=I$4,Points!$D$30)+IF('Girls Results'!$G$16=I$4,Points!$E$30)+IF('Girls Results'!$I$16=I$4,Points!$F$30)+IF('Girls Results'!$K$16=I$4,Points!$G$30)+IF('Girls Results'!$M$16=I$4,Points!$H$30)+IF('Girls Results'!$O$16=I$4,Points!$I$30)+IF('Girls Results'!$Q$16=I$4,Points!$J$30)+0)","v":0},null,{"$f":"SUM(IF('Girls Results'!$C$16=K$4,Points!$C$30)+IF('Girls Results'!$E$16=K$4,Points!$D$30)+IF('Girls Results'!$G$16=K$4,Points!$E$30)+IF('Girls Results'!$I$16=K$4,Points!$F$30)+IF('Girls Results'!$K$16=K$4,Points!$G$30)+IF('Girls Results'!$M$16=K$4,Points!$H$30)+IF('Girls Results'!$O$16=K$4,Points!$I$30)+IF('Girls Results'!$Q$16=K$4,Points!$J$30)+0)","v":3},null,{"$f":"SUM(IF('Girls Results'!$C$16=M$4,Points!$C$30)+IF('Girls Results'!$E$16=M$4,Points!$D$30)+IF('Girls Results'!$G$16=M$4,Points!$E$30)+IF('Girls Results'!$I$16=M$4,Points!$F$30)+IF('Girls Results'!$K$16=M$4,Points!$G$30)+IF('Girls Results'!$M$16=M$4,Points!$H$30)+IF('Girls Results'!$O$16=M$4,Points!$I$30)+IF('Girls Results'!$Q$16=M$4,Points!$J$30)+0)","v":0},null,{"$f":"SUM(IF('Girls Results'!$C$16=O$4,Points!$C$30)+IF('Girls Results'!$E$16=O$4,Points!$D$30)+IF('Girls Results'!$G$16=O$4,Points!$E$30)+IF('Girls Results'!$I$16=O$4,Points!$F$30)+IF('Girls Results'!$K$16=O$4,Points!$G$30)+IF('Girls Results'!$M$16=O$4,Points!$H$30)+IF('Girls Results'!$O$16=O$4,Points!$I$30)+IF('Girls Results'!$Q$16=O$4,Points!$J$30)+0)","v":0},null,{"$f":"SUM(IF('Girls Results'!$C$16=Q$4,Points!$C$30)+IF('Girls Results'!$E$16=Q$4,Points!$D$30)+IF('Girls Results'!$G$16=Q$4,Points!$E$30)+IF('Girls Results'!$I$16=Q$4,Points!$F$30)+IF('Girls Results'!$K$16=Q$4,Points!$G$30)+IF('Girls Results'!$M$16=Q$4,Points!$H$30)+IF('Girls Results'!$O$16=Q$4,Points!$I$30)+IF('Girls Results'!$Q$16=Q$4,Points!$J$30)+0)","v":0},null,{"$f":"SUM(IF('Girls Results'!$C$16=S$4,Points!$C$30)+IF('Girls Results'!$E$16=S$4,Points!$D$30)+IF('Girls Results'!$G$16=S$4,Points!$E$30)+IF('Girls Results'!$I$16=S$4,Points!$F$30)+IF('Girls Results'!$K$16=S$4,Points!$G$30)+IF('Girls Results'!$M$16=S$4,Points!$H$30)+IF('Girls Results'!$O$16=S$4,Points!$I$30)+IF('Girls Results'!$Q$16=S$4,Points!$J$30)+0)","v":0},null,null,{"$f":"SUM(C10:S10)","v":16},{"$f":"Points!$L$30","v":16},null,"Total Pts Awarded, per event, should"]
[null,null,null,null,null,null,null,null,null,null,null,null,null,null,null,null,null,null,null,null,null,null,null,null,"be less than or equal to the Total Pts"]
[{"$f":"'Girls Results'!A19","v":"100 m Sprint"},null,{"$f":"SUM(IF('Girls Results'!$C$21=C$4,Points!$C$30)+IF('Girls Results'!$E$21=C$4,Points!$D$30)+IF('Girls Results'!$G$21=C$4,Points!$E$30)+IF('Girls Results'!$I$21=C$4,Points!$F$30)+IF('Girls Results'!$K$21=C$4,Points!$G$30)+IF('Girls Results'!$M$21=C$4,Points!$H$30)+IF('Girls Results'!$O$21=C$4,Points!$I$30)+IF('Girls Results'!$Q$21=C$4,Points!$J$30)+0)","v":2},null,{"$f":"SUM(IF('Girls Results'!$C$21=E$4,Points!$C$30)+IF('Girls Results'!$E$21=E$4,Points!$D$30)+IF('Girls Results'!$G$21=E$4,Points!$E$30)+IF('Girls Results'!$I$21=E$4,Points!$F$30)+IF('Girls Results'!$K$21=E$4,Points!$G$30)+IF('Girls Results'!$M$21=E$4,Points!$H$30)+IF('Girls Results'!$O$21=E$4,Points!$I$30)+IF('Girls Results'!$Q$21=E$4,Points!$J$30)+0)","v":9},null,{"$f":"SUM(IF('Girls Results'!$C$21=G$4,Points!$C$30)+IF('Girls Results'!$E$21=G$4,Points!$D$30)+IF('Girls Results'!$G$21=G$4,Points!$E$30)+IF('Girls Results'!$I$21=G$4,Points!$F$30)+IF('Girls Results'!$K$21=G$4,Points!$G$30)+IF('Girls Results'!$M$21=G$4,Points!$H$30)+IF('Girls Results'!$O$21=G$4,Points!$I$30)+IF('Girls Results'!$Q$21=G$4,Points!$J$30)+0)","v":4},null,{"$f":"SUM(IF('Girls Results'!$C$21=I$4,Points!$C$30)+IF('Girls Results'!$E$21=I$4,Points!$D$30)+IF('Girls Results'!$G$21=I$4,Points!$E$30)+IF('Girls Results'!$I$21=I$4,Points!$F$30)+IF('Girls Results'!$K$21=I$4,Points!$G$30)+IF('Girls Results'!$M$21=I$4,Points!$H$30)+IF('Girls Results'!$O$21=I$4,Points!$I$30)+IF('Girls Results'!$Q$21=I$4,Points!$J$30)+0)","v":0},null,{"$f":"SUM(IF('Girls Results'!$C$21=K$4,Points!$C$30)+IF('Girls Results'!$E$21=K$4,Points!$D$30)+IF('Girls Results'!$G$21=K$4,Points!$E$30)+IF('Girls Results'!$I$21=K$4,Points!$F$30)+IF('Girls Results'!$K$21=K$4,Points!$G$30)+IF('Girls Results'!$M$21=K$4,Points!$H$30)+IF('Girls Results'!$O$21=K$4,Points!$I$30)+IF('Girls Results'!$Q$21=K$4,Points!$J$30)+0)","v":1},null,{"$f":"SUM(IF('Girls Results'!$C$21=M$4,Points!$C$30)+IF('Girls Results'!$E$21=M$4,Points!$D$30)+IF('Girls Results'!$G$21=M$4,Points!$E$30)+IF('Girls Results'!$I$21=M$4,Points!$F$30)+IF('Girls Results'!$K$21=M$4,Points!$G$30)+IF('Girls Results'!$M$21=M$4,Points!$H$30)+IF('Girls Results'!$O$21=M$4,Points!$I$30)+IF('Girls Results'!$Q$21=M$4,Points!$J$30)+0)","v":0},null,{"$f":"SUM(IF('Girls Results'!$C$21=O$4,Points!$C$30)+IF('Girls Results'!$E$21=O$4,Points!$D$30)+IF('Girls Results'!$G$21=O$4,Points!$E$30)+IF('Girls Results'!$I$21=O$4,Points!$F$30)+IF('Girls Results'!$K$21=O$4,Points!$G$30)+IF('Girls Results'!$M$21=O$4,Points!$H$30)+IF('Girls Results'!$O$21=O$4,Points!$I$30)+IF('Girls Results'!$Q$21=O$4,Points!$J$30)+0)","v":0},null,{"$f":"SUM(IF('Girls Results'!$C$21=Q$4,Points!$C$30)+IF('Girls Results'!$E$21=Q$4,Points!$D$30)+IF('Girls Results'!$G$21=Q$4,Points!$E$30)+IF('Girls Results'!$I$21=Q$4,Points!$F$30)+IF('Girls Results'!$K$21=Q$4,Points!$G$30)+IF('Girls Results'!$M$21=Q$4,Points!$H$30)+IF('Girls Results'!$O$21=Q$4,Points!$I$30)+IF('Girls Results'!$Q$21=Q$4,Points!$J$30)+0)","v":0},null,{"$f":"SUM(IF('Girls Results'!$C$21=S$4,Points!$C$30)+IF('Girls Results'!$E$21=S$4,Points!$D$30)+IF('Girls Results'!$G$21=S$4,Points!$E$30)+IF('Girls Results'!$I$21=S$4,Points!$F$30)+IF('Girls Results'!$K$21=S$4,Points!$G$30)+IF('Girls Results'!$M$21=S$4,Points!$H$30)+IF('Girls Results'!$O$21=S$4,Points!$I$30)+IF('Girls Results'!$Q$21=S$4,Points!$J$30)+0)","v":0},null,null,{"$f":"SUM(C12:S12)","v":16},{"$f":"Points!$L$30","v":16},null,"Avail, per event."]
[]
[{"$f":"'Girls Results'!A24","v":"4 X 200 m Relay"},null,{"$f":"SUM(IF('Girls Results'!$C$25=C$4,Points!$C$31)+IF('Girls Results'!$E$25=C$4,Points!$D$31)+IF('Girls Results'!$G$25=C$4,Points!$E$31)+IF('Girls Results'!$I$25=C$4,Points!$F$31)+IF('Girls Results'!$K$25=C$4,Points!$G$31)+IF('Girls Results'!$M$25=C$4,Points!$H$31)+IF('Girls Results'!$O$25=C$4,Points!$I$31)+IF('Girls Results'!$Q$25=C$4,Points!$J$31)+0)","v":4},null,{"$f":"SUM(IF('Girls Results'!$C$25=E$4,Points!$C$31)+IF('Girls Results'!$E$25=E$4,Points!$D$31)+IF('Girls Results'!$G$25=E$4,Points!$E$31)+IF('Girls Results'!$I$25=E$4,Points!$F$31)+IF('Girls Results'!$K$25=E$4,Points!$G$31)+IF('Girls Results'!$M$25=E$4,Points!$H$31)+IF('Girls Results'!$O$25=E$4,Points!$I$31)+IF('Girls Results'!$Q$25=E$4,Points!$J$31)+0)","v":0},null,{"$f":"SUM(IF('Girls Results'!$C$25=G$4,Points!$C$31)+IF('Girls Results'!$E$25=G$4,Points!$D$31)+IF('Girls Results'!$G$25=G$4,Points!$E$31)+IF('Girls Results'!$I$25=G$4,Points!$F$31)+IF('Girls Results'!$K$25=G$4,Points!$G$31)+IF('Girls Results'!$M$25=G$4,Points!$H$31)+IF('Girls Results'!$O$25=G$4,Points!$I$31)+IF('Girls Results'!$Q$25=G$4,Points!$J$31)+0)","v":6},null,{"$f":"SUM(IF('Girls Results'!$C$25=I$4,Points!$C$31)+IF('Girls Results'!$E$25=I$4,Points!$D$31)+IF('Girls Results'!$G$25=I$4,Points!$E$31)+IF('Girls Results'!$I$25=I$4,Points!$F$31)+IF('Girls Results'!$K$25=I$4,Points!$G$31)+IF('Girls Results'!$M$25=I$4,Points!$H$31)+IF('Girls Results'!$O$25=I$4,Points!$I$31)+IF('Girls Results'!$Q$25=I$4,Points!$J$31)+0)","v":0},null,{"$f":"SUM(IF('Girls Results'!$C$25=K$4,Points!$C$31)+IF('Girls Results'!$E$25=K$4,Points!$D$31)+IF('Girls Results'!$G$25=K$4,Points!$E$31)+IF('Girls Results'!$I$25=K$4,Points!$F$31)+IF('Girls Results'!$K$25=K$4,Points!$G$31)+IF('Girls Results'!$M$25=K$4,Points!$H$31)+IF('Girls Results'!$O$25=K$4,Points!$I$31)+IF('Girls Results'!$Q$25=K$4,Points!$J$31)+0)","v":2},null,{"$f":"SUM(IF('Girls Results'!$C$25=M$4,Points!$C$31)+IF('Girls Results'!$E$25=M$4,Points!$D$31)+IF('Girls Results'!$G$25=M$4,Points!$E$31)+IF('Girls Results'!$I$25=M$4,Points!$F$31)+IF('Girls Results'!$K$25=M$4,Points!$G$31)+IF('Girls Results'!$M$25=M$4,Points!$H$31)+IF('Girls Results'!$O$25=M$4,Points!$I$31)+IF('Girls Results'!$Q$25=M$4,Points!$J$31)+0)","v":0},null,{"$f":"SUM(IF('Girls Results'!$C$25=O$4,Points!$C$31)+IF('Girls Results'!$E$25=O$4,Points!$D$31)+IF('Girls Results'!$G$25=O$4,Points!$E$31)+IF('Girls Results'!$I$25=O$4,Points!$F$31)+IF('Girls Results'!$K$25=O$4,Points!$G$31)+IF('Girls Results'!$M$25=O$4,Points!$H$31)+IF('Girls Results'!$O$25=O$4,Points!$I$31)+IF('Girls Results'!$Q$25=O$4,Points!$J$31)+0)","v":0},null,{"$f":"SUM(IF('Girls Results'!$C$25=Q$4,Points!$C$31)+IF('Girls Results'!$E$25=Q$4,Points!$D$31)+IF('Girls Results'!$G$25=Q$4,Points!$E$31)+IF('Girls Results'!$I$25=Q$4,Points!$F$31)+IF('Girls Results'!$K$25=Q$4,Points!$G$31)+IF('Girls Results'!$M$25=Q$4,Points!$H$31)+IF('Girls Results'!$O$25=Q$4,Points!$I$31)+IF('Girls Results'!$Q$25=Q$4,Points!$J$31)+0)","v":0},null,{"$f":"SUM(IF('Girls Results'!$C$25=S$4,Points!$C$31)+IF('Girls Results'!$E$25=S$4,Points!$D$31)+IF('Girls Results'!$G$25=S$4,Points!$E$31)+IF('Girls Results'!$I$25=S$4,Points!$F$31)+IF('Girls Results'!$K$25=S$4,Points!$G$31)+IF('Girls Results'!$M$25=S$4,Points!$H$31)+IF('Girls Results'!$O$25=S$4,Points!$I$31)+IF('Girls Results'!$Q$25=S$4,Points!$J$31)+0)","v":0},null,null,{"$f":"SUM(C14:S14)","v":12},{"$f":"Points!$L$31","v":12},null,"IF it is less than, then either there was "]
[null,null,null,null,null,null,null,null,null,null,null,null,null,null,null,null,null,null,null,null,null,null,null,null,"not enough teams to place to score the"]
[{"$f":"'Girls Results'!A28","v":"1600 m Run"},null,{"$f":"SUM(IF('Girls Results'!$C$30=C$4,Points!$C$30)+IF('Girls Results'!$E$30=C$4,Points!$D$30)+IF('Girls Results'!$G$30=C$4,Points!$E$30)+IF('Girls Results'!$I$30=C$4,Points!$F$30)+IF('Girls Results'!$K$30=C$4,Points!$G$30)+IF('Girls Results'!$M$30=C$4,Points!$H$30)+IF('Girls Results'!$O$30=C$4,Points!$I$30)+IF('Girls Results'!$Q$30=C$4,Points!$J$30)+0)","v":8},null,{"$f":"SUM(IF('Girls Results'!$C$30=E$4,Points!$C$30)+IF('Girls Results'!$E$30=E$4,Points!$D$30)+IF('Girls Results'!$G$30=E$4,Points!$E$30)+IF('Girls Results'!$I$30=E$4,Points!$F$30)+IF('Girls Results'!$K$30=E$4,Points!$G$30)+IF('Girls Results'!$M$30=E$4,Points!$H$30)+IF('Girls Results'!$O$30=E$4,Points!$I$30)+IF('Girls Results'!$Q$30=E$4,Points!$J$30)+0)","v":7},null,{"$f":"SUM(IF('Girls Results'!$C$30=G$4,Points!$C$30)+IF('Girls Results'!$E$30=G$4,Points!$D$30)+IF('Girls Results'!$G$30=G$4,Points!$E$30)+IF('Girls Results'!$I$30=G$4,Points!$F$30)+IF('Girls Results'!$K$30=G$4,Points!$G$30)+IF('Girls Results'!$M$30=G$4,Points!$H$30)+IF('Girls Results'!$O$30=G$4,Points!$I$30)+IF('Girls Results'!$Q$30=G$4,Points!$J$30)+0)","v":0},null,{"$f":"SUM(IF('Girls Results'!$C$30=I$4,Points!$C$30)+IF('Girls Results'!$E$30=I$4,Points!$D$30)+IF('Girls Results'!$G$30=I$4,Points!$E$30)+IF('Girls Results'!$I$30=I$4,Points!$F$30)+IF('Girls Results'!$K$30=I$4,Points!$G$30)+IF('Girls Results'!$M$30=I$4,Points!$H$30)+IF('Girls Results'!$O$30=I$4,Points!$I$30)+IF('Girls Results'!$Q$30=I$4,Points!$J$30)+0)","v":0},null,{"$f":"SUM(IF('Girls Results'!$C$30=K$4,Points!$C$30)+IF('Girls Results'!$E$30=K$4,Points!$D$30)+IF('Girls Results'!$G$30=K$4,Points!$E$30)+IF('Girls Results'!$I$30=K$4,Points!$F$30)+IF('Girls Results'!$K$30=K$4,Points!$G$30)+IF('Girls Results'!$M$30=K$4,Points!$H$30)+IF('Girls Results'!$O$30=K$4,Points!$I$30)+IF('Girls Results'!$Q$30=K$4,Points!$J$30)+0)","v":1},null,{"$f":"SUM(IF('Girls Results'!$C$30=M$4,Points!$C$30)+IF('Girls Results'!$E$30=M$4,Points!$D$30)+IF('Girls Results'!$G$30=M$4,Points!$E$30)+IF('Girls Results'!$I$30=M$4,Points!$F$30)+IF('Girls Results'!$K$30=M$4,Points!$G$30)+IF('Girls Results'!$M$30=M$4,Points!$H$30)+IF('Girls Results'!$O$30=M$4,Points!$I$30)+IF('Girls Results'!$Q$30=M$4,Points!$J$30)+0)","v":0},null,{"$f":"SUM(IF('Girls Results'!$C$30=O$4,Points!$C$30)+IF('Girls Results'!$E$30=O$4,Points!$D$30)+IF('Girls Results'!$G$30=O$4,Points!$E$30)+IF('Girls Results'!$I$30=O$4,Points!$F$30)+IF('Girls Results'!$K$30=O$4,Points!$G$30)+IF('Girls Results'!$M$30=O$4,Points!$H$30)+IF('Girls Results'!$O$30=O$4,Points!$I$30)+IF('Girls Results'!$Q$30=O$4,Points!$J$30)+0)","v":0},null,{"$f":"SUM(IF('Girls Results'!$C$30=Q$4,Points!$C$30)+IF('Girls Results'!$E$30=Q$4,Points!$D$30)+IF('Girls Results'!$G$30=Q$4,Points!$E$30)+IF('Girls Results'!$I$30=Q$4,Points!$F$30)+IF('Girls Results'!$K$30=Q$4,Points!$G$30)+IF('Girls Results'!$M$30=Q$4,Points!$H$30)+IF('Girls Results'!$O$30=Q$4,Points!$I$30)+IF('Girls Results'!$Q$30=Q$4,Points!$J$30)+0)","v":0},null,{"$f":"SUM(IF('Girls Results'!$C$30=S$4,Points!$C$30)+IF('Girls Results'!$E$30=S$4,Points!$D$30)+IF('Girls Results'!$G$30=S$4,Points!$E$30)+IF('Girls Results'!$I$30=S$4,Points!$F$30)+IF('Girls Results'!$K$30=S$4,Points!$G$30)+IF('Girls Results'!$M$30=S$4,Points!$H$30)+IF('Girls Results'!$O$30=S$4,Points!$I$30)+IF('Girls Results'!$Q$30=S$4,Points!$J$30)+0)","v":0},null,null,{"$f":"SUM(C16:S16)","v":16},{"$f":"Points!$L$30","v":16},null,"available points or you did not record"]
[null,null,null,null,null,null,null,null,null,null,null,null,null,null,null,null,null,null,null,null,null,null,null,null,"all the results (Places) for that event."]
[{"$f":"'Girls Results'!A33","v":"4 x 100 m Relay"},null,{"$f":"SUM(IF('Girls Results'!$C$34=C$4,Points!$C$31)+IF('Girls Results'!$E$34=C$4,Points!$D$31)+IF('Girls Results'!$G$34=C$4,Points!$E$31)+IF('Girls Results'!$I$34=C$4,Points!$F$31)+IF('Girls Results'!$K$34=C$4,Points!$G$31)+IF('Girls Results'!$M$34=C$4,Points!$H$31)+IF('Girls Results'!$O$34=C$4,Points!$I$31)+IF('Girls Results'!$Q$34=C$4,Points!$J$31)+0)","v":4},null,{"$f":"SUM(IF('Girls Results'!$C$34=E$4,Points!$C$31)+IF('Girls Results'!$E$34=E$4,Points!$D$31)+IF('Girls Results'!$G$34=E$4,Points!$E$31)+IF('Girls Results'!$I$34=E$4,Points!$F$31)+IF('Girls Results'!$K$34=E$4,Points!$G$31)+IF('Girls Results'!$M$34=E$4,Points!$H$31)+IF('Girls Results'!$O$34=E$4,Points!$I$31)+IF('Girls Results'!$Q$34=E$4,Points!$J$31)+0)","v":0},null,{"$f":"SUM(IF('Girls Results'!$C$34=G$4,Points!$C$31)+IF('Girls Results'!$E$34=G$4,Points!$D$31)+IF('Girls Results'!$G$34=G$4,Points!$E$31)+IF('Girls Results'!$I$34=G$4,Points!$F$31)+IF('Girls Results'!$K$34=G$4,Points!$G$31)+IF('Girls Results'!$M$34=G$4,Points!$H$31)+IF('Girls Results'!$O$34=G$4,Points!$I$31)+IF('Girls Results'!$Q$34=G$4,Points!$J$31)+0)","v":6},null,{"$f":"SUM(IF('Girls Results'!$C$34=I$4,Points!$C$31)+IF('Girls Results'!$E$34=I$4,Points!$D$31)+IF('Girls Results'!$G$34=I$4,Points!$E$31)+IF('Girls Results'!$I$34=I$4,Points!$F$31)+IF('Girls Results'!$K$34=I$4,Points!$G$31)+IF('Girls Results'!$M$34=I$4,Points!$H$31)+IF('Girls Results'!$O$34=I$4,Points!$I$31)+IF('Girls Results'!$Q$34=I$4,Points!$J$31)+0)","v":0},null,{"$f":"SUM(IF('Girls Results'!$C$34=K$4,Points!$C$31)+IF('Girls Results'!$E$34=K$4,Points!$D$31)+IF('Girls Results'!$G$34=K$4,Points!$E$31)+IF('Girls Results'!$I$34=K$4,Points!$F$31)+IF('Girls Results'!$K$34=K$4,Points!$G$31)+IF('Girls Results'!$M$34=K$4,Points!$H$31)+IF('Girls Results'!$O$34=K$4,Points!$I$31)+IF('Girls Results'!$Q$34=K$4,Points!$J$31)+0)","v":2},null,{"$f":"SUM(IF('Girls Results'!$C$34=M$4,Points!$C$31)+IF('Girls Results'!$E$34=M$4,Points!$D$31)+IF('Girls Results'!$G$34=M$4,Points!$E$31)+IF('Girls Results'!$I$34=M$4,Points!$F$31)+IF('Girls Results'!$K$34=M$4,Points!$G$31)+IF('Girls Results'!$M$34=M$4,Points!$H$31)+IF('Girls Results'!$O$34=M$4,Points!$I$31)+IF('Girls Results'!$Q$34=M$4,Points!$J$31)+0)","v":0},null,{"$f":"SUM(IF('Girls Results'!$C$34=O$4,Points!$C$31)+IF('Girls Results'!$E$34=O$4,Points!$D$31)+IF('Girls Results'!$G$34=O$4,Points!$E$31)+IF('Girls Results'!$I$34=O$4,Points!$F$31)+IF('Girls Results'!$K$34=O$4,Points!$G$31)+IF('Girls Results'!$M$34=O$4,Points!$H$31)+IF('Girls Results'!$O$34=O$4,Points!$I$31)+IF('Girls Results'!$Q$34=O$4,Points!$J$31)+0)","v":0},null,{"$f":"SUM(IF('Girls Results'!$C$34=Q$4,Points!$C$31)+IF('Girls Results'!$E$34=Q$4,Points!$D$31)+IF('Girls Results'!$G$34=Q$4,Points!$E$31)+IF('Girls Results'!$I$34=Q$4,Points!$F$31)+IF('Girls Results'!$K$34=Q$4,Points!$G$31)+IF('Girls Results'!$M$34=Q$4,Points!$H$31)+IF('Girls Results'!$O$34=Q$4,Points!$I$31)+IF('Girls Results'!$Q$34=Q$4,Points!$J$31)+0)","v":0},null,{"$f":"SUM(IF('Girls Results'!$C$34=S$4,Points!$C$31)+IF('Girls Results'!$E$34=S$4,Points!$D$31)+IF('Girls Results'!$G$34=S$4,Points!$E$31)+IF('Girls Results'!$I$34=S$4,Points!$F$31)+IF('Girls Results'!$K$34=S$4,Points!$G$31)+IF('Girls Results'!$M$34=S$4,Points!$H$31)+IF('Girls Results'!$O$34=S$4,Points!$I$31)+IF('Girls Results'!$Q$34=S$4,Points!$J$31)+0)","v":0},null,null,{"$f":"SUM(C18:S18)","v":12},{"$f":"Points!$L$31","v":12}]
[]
[{"$f":"'Girls Results'!A37","v":"400 m Sprint"},null,{"$f":"SUM(IF('Girls Results'!$C$39=C$4,Points!$C$30)+IF('Girls Results'!$E$39=C$4,Points!$D$30)+IF('Girls Results'!$G$39=C$4,Points!$E$30)+IF('Girls Results'!$I$39=C$4,Points!$F$30)+IF('Girls Results'!$K$39=C$4,Points!$G$30)+IF('Girls Results'!$M$39=C$4,Points!$H$30)+IF('Girls Results'!$O$39=C$4,Points!$I$30)+IF('Girls Results'!$Q$39=C$4,Points!$J$30)+0)","v":8},null,{"$f":"SUM(IF('Girls Results'!$C$39=E$4,Points!$C$30)+IF('Girls Results'!$E$39=E$4,Points!$D$30)+IF('Girls Results'!$G$39=E$4,Points!$E$30)+IF('Girls Results'!$I$39=E$4,Points!$F$30)+IF('Girls Results'!$K$39=E$4,Points!$G$30)+IF('Girls Results'!$M$39=E$4,Points!$H$30)+IF('Girls Results'!$O$39=E$4,Points!$I$30)+IF('Girls Results'!$Q$39=E$4,Points!$J$30)+0)","v":4},null,{"$f":"SUM(IF('Girls Results'!$C$39=G$4,Points!$C$30)+IF('Girls Results'!$E$39=G$4,Points!$D$30)+IF('Girls Results'!$G$39=G$4,Points!$E$30)+IF('Girls Results'!$I$39=G$4,Points!$F$30)+IF('Girls Results'!$K$39=G$4,Points!$G$30)+IF('Girls Results'!$M$39=G$4,Points!$H$30)+IF('Girls Results'!$O$39=G$4,Points!$I$30)+IF('Girls Results'!$Q$39=G$4,Points!$J$30)+0)","v":3},null,{"$f":"SUM(IF('Girls Results'!$C$39=I$4,Points!$C$30)+IF('Girls Results'!$E$39=I$4,Points!$D$30)+IF('Girls Results'!$G$39=I$4,Points!$E$30)+IF('Girls Results'!$I$39=I$4,Points!$F$30)+IF('Girls Results'!$K$39=I$4,Points!$G$30)+IF('Girls Results'!$M$39=I$4,Points!$H$30)+IF('Girls Results'!$O$39=I$4,Points!$I$30)+IF('Girls Results'!$Q$39=I$4,Points!$J$30)+0)","v":0},null,{"$f":"SUM(IF('Girls Results'!$C$39=K$4,Points!$C$30)+IF('Girls Results'!$E$39=K$4,Points!$D$30)+IF('Girls Results'!$G$39=K$4,Points!$E$30)+IF('Girls Results'!$I$39=K$4,Points!$F$30)+IF('Girls Results'!$K$39=K$4,Points!$G$30)+IF('Girls Results'!$M$39=K$4,Points!$H$30)+IF('Girls Results'!$O$39=K$4,Points!$I$30)+IF('Girls Results'!$Q$39=K$4,Points!$J$30)+0)","v":1},null,{"$f":"SUM(IF('Girls Results'!$C$39=M$4,Points!$C$30)+IF('Girls Results'!$E$39=M$4,Points!$D$30)+IF('Girls Results'!$G$39=M$4,Points!$E$30)+IF('Girls Results'!$I$39=M$4,Points!$F$30)+IF('Girls Results'!$K$39=M$4,Points!$G$30)+IF('Girls Results'!$M$39=M$4,Points!$H$30)+IF('Girls Results'!$O$39=M$4,Points!$I$30)+IF('Girls Results'!$Q$39=M$4,Points!$J$30)+0)","v":0},null,{"$f":"SUM(IF('Girls Results'!$C$39=O$4,Points!$C$30)+IF('Girls Results'!$E$39=O$4,Points!$D$30)+IF('Girls Results'!$G$39=O$4,Points!$E$30)+IF('Girls Results'!$I$39=O$4,Points!$F$30)+IF('Girls Results'!$K$39=O$4,Points!$G$30)+IF('Girls Results'!$M$39=O$4,Points!$H$30)+IF('Girls Results'!$O$39=O$4,Points!$I$30)+IF('Girls Results'!$Q$39=O$4,Points!$J$30)+0)","v":0},null,{"$f":"SUM(IF('Girls Results'!$C$39=Q$4,Points!$C$30)+IF('Girls Results'!$E$39=Q$4,Points!$D$30)+IF('Girls Results'!$G$39=Q$4,Points!$E$30)+IF('Girls Results'!$I$39=Q$4,Points!$F$30)+IF('Girls Results'!$K$39=Q$4,Points!$G$30)+IF('Girls Results'!$M$39=Q$4,Points!$H$30)+IF('Girls Results'!$O$39=Q$4,Points!$I$30)+IF('Girls Results'!$Q$39=Q$4,Points!$J$30)+0)","v":0},null,{"$f":"SUM(IF('Girls Results'!$C$39=S$4,Points!$C$30)+IF('Girls Results'!$E$39=S$4,Points!$D$30)+IF('Girls Results'!$G$39=S$4,Points!$E$30)+IF('Girls Results'!$I$39=S$4,Points!$F$30)+IF('Girls Results'!$K$39=S$4,Points!$G$30)+IF('Girls Results'!$M$39=S$4,Points!$H$30)+IF('Girls Results'!$O$39=S$4,Points!$I$30)+IF('Girls Results'!$Q$39=S$4,Points!$J$30)+0)","v":0},null,null,{"$f":"SUM(C20:S20)","v":16},{"$f":"Points!$L$30","v":16}]
[]
[{"$f":"'Girls Results'!A42","v":"300 m L Hurdles"},null,{"$f":"SUM(IF('Girls Results'!$C$44=C$4,Points!$C$30)+IF('Girls Results'!$E$44=C$4,Points!$D$30)+IF('Girls Results'!$G$44=C$4,Points!$E$30)+IF('Girls Results'!$I$44=C$4,Points!$F$30)+IF('Girls Results'!$K$44=C$4,Points!$G$30)+IF('Girls Results'!$M$44=C$4,Points!$H$30)+IF('Girls Results'!$O$44=C$4,Points!$I$30)+IF('Girls Results'!$Q$44=C$4,Points!$J$30)+0)","v":0},null,{"$f":"SUM(IF('Girls Results'!$C$44=E$4,Points!$C$30)+IF('Girls Results'!$E$44=E$4,Points!$D$30)+IF('Girls Results'!$G$44=E$4,Points!$E$30)+IF('Girls Results'!$I$44=E$4,Points!$F$30)+IF('Girls Results'!$K$44=E$4,Points!$G$30)+IF('Girls Results'!$M$44=E$4,Points!$H$30)+IF('Girls Results'!$O$44=E$4,Points!$I$30)+IF('Girls Results'!$Q$44=E$4,Points!$J$30)+0)","v":7},null,{"$f":"SUM(IF('Girls Results'!$C$44=G$4,Points!$C$30)+IF('Girls Results'!$E$44=G$4,Points!$D$30)+IF('Girls Results'!$G$44=G$4,Points!$E$30)+IF('Girls Results'!$I$44=G$4,Points!$F$30)+IF('Girls Results'!$K$44=G$4,Points!$G$30)+IF('Girls Results'!$M$44=G$4,Points!$H$30)+IF('Girls Results'!$O$44=G$4,Points!$I$30)+IF('Girls Results'!$Q$44=G$4,Points!$J$30)+0)","v":6},null,{"$f":"SUM(IF('Girls Results'!$C$44=I$4,Points!$C$30)+IF('Girls Results'!$E$44=I$4,Points!$D$30)+IF('Girls Results'!$G$44=I$4,Points!$E$30)+IF('Girls Results'!$I$44=I$4,Points!$F$30)+IF('Girls Results'!$K$44=I$4,Points!$G$30)+IF('Girls Results'!$M$44=I$4,Points!$H$30)+IF('Girls Results'!$O$44=I$4,Points!$I$30)+IF('Girls Results'!$Q$44=I$4,Points!$J$30)+0)","v":0},null,{"$f":"SUM(IF('Girls Results'!$C$44=K$4,Points!$C$30)+IF('Girls Results'!$E$44=K$4,Points!$D$30)+IF('Girls Results'!$G$44=K$4,Points!$E$30)+IF('Girls Results'!$I$44=K$4,Points!$F$30)+IF('Girls Results'!$K$44=K$4,Points!$G$30)+IF('Girls Results'!$M$44=K$4,Points!$H$30)+IF('Girls Results'!$O$44=K$4,Points!$I$30)+IF('Girls Results'!$Q$44=K$4,Points!$J$30)+0)","v":3},null,{"$f":"SUM(IF('Girls Results'!$C$44=M$4,Points!$C$30)+IF('Girls Results'!$E$44=M$4,Points!$D$30)+IF('Girls Results'!$G$44=M$4,Points!$E$30)+IF('Girls Results'!$I$44=M$4,Points!$F$30)+IF('Girls Results'!$K$44=M$4,Points!$G$30)+IF('Girls Results'!$M$44=M$4,Points!$H$30)+IF('Girls Results'!$O$44=M$4,Points!$I$30)+IF('Girls Results'!$Q$44=M$4,Points!$J$30)+0)","v":0},null,{"$f":"SUM(IF('Girls Results'!$C$44=O$4,Points!$C$30)+IF('Girls Results'!$E$44=O$4,Points!$D$30)+IF('Girls Results'!$G$44=O$4,Points!$E$30)+IF('Girls Results'!$I$44=O$4,Points!$F$30)+IF('Girls Results'!$K$44=O$4,Points!$G$30)+IF('Girls Results'!$M$44=O$4,Points!$H$30)+IF('Girls Results'!$O$44=O$4,Points!$I$30)+IF('Girls Results'!$Q$44=O$4,Points!$J$30)+0)","v":0},null,{"$f":"SUM(IF('Girls Results'!$C$44=Q$4,Points!$C$30)+IF('Girls Results'!$E$44=Q$4,Points!$D$30)+IF('Girls Results'!$G$44=Q$4,Points!$E$30)+IF('Girls Results'!$I$44=Q$4,Points!$F$30)+IF('Girls Results'!$K$44=Q$4,Points!$G$30)+IF('Girls Results'!$M$44=Q$4,Points!$H$30)+IF('Girls Results'!$O$44=Q$4,Points!$I$30)+IF('Girls Results'!$Q$44=Q$4,Points!$J$30)+0)","v":0},null,{"$f":"SUM(IF('Girls Results'!$C$44=S$4,Points!$C$30)+IF('Girls Results'!$E$44=S$4,Points!$D$30)+IF('Girls Results'!$G$44=S$4,Points!$E$30)+IF('Girls Results'!$I$44=S$4,Points!$F$30)+IF('Girls Results'!$K$44=S$4,Points!$G$30)+IF('Girls Results'!$M$44=S$4,Points!$H$30)+IF('Girls Results'!$O$44=S$4,Points!$I$30)+IF('Girls Results'!$Q$44=S$4,Points!$J$30)+0)","v":0},null,null,{"$f":"SUM(C22:S22)","v":16},{"$f":"Points!$L$30","v":16}]
[]
[{"$f":"'Girls Results'!A47","v":"800 m Run"},null,{"$f":"SUM(IF('Girls Results'!$C$49=C$4,Points!$C$30)+IF('Girls Results'!$E$49=C$4,Points!$D$30)+IF('Girls Results'!$G$49=C$4,Points!$E$30)+IF('Girls Results'!$I$49=C$4,Points!$F$30)+IF('Girls Results'!$K$49=C$4,Points!$G$30)+IF('Girls Results'!$M$49=C$4,Points!$H$30)+IF('Girls Results'!$O$49=C$4,Points!$I$30)+IF('Girls Results'!$Q$49=C$4,Points!$J$30)+0)","v":7},null,{"$f":"SUM(IF('Girls Results'!$C$49=E$4,Points!$C$30)+IF('Girls Results'!$E$49=E$4,Points!$D$30)+IF('Girls Results'!$G$49=E$4,Points!$E$30)+IF('Girls Results'!$I$49=E$4,Points!$F$30)+IF('Girls Results'!$K$49=E$4,Points!$G$30)+IF('Girls Results'!$M$49=E$4,Points!$H$30)+IF('Girls Results'!$O$49=E$4,Points!$I$30)+IF('Girls Results'!$Q$49=E$4,Points!$J$30)+0)","v":8},null,{"$f":"SUM(IF('Girls Results'!$C$49=G$4,Points!$C$30)+IF('Girls Results'!$E$49=G$4,Points!$D$30)+IF('Girls Results'!$G$49=G$4,Points!$E$30)+IF('Girls Results'!$I$49=G$4,Points!$F$30)+IF('Girls Results'!$K$49=G$4,Points!$G$30)+IF('Girls Results'!$M$49=G$4,Points!$H$30)+IF('Girls Results'!$O$49=G$4,Points!$I$30)+IF('Girls Results'!$Q$49=G$4,Points!$J$30)+0)","v":0},null,{"$f":"SUM(IF('Girls Results'!$C$49=I$4,Points!$C$30)+IF('Girls Results'!$E$49=I$4,Points!$D$30)+IF('Girls Results'!$G$49=I$4,Points!$E$30)+IF('Girls Results'!$I$49=I$4,Points!$F$30)+IF('Girls Results'!$K$49=I$4,Points!$G$30)+IF('Girls Results'!$M$49=I$4,Points!$H$30)+IF('Girls Results'!$O$49=I$4,Points!$I$30)+IF('Girls Results'!$Q$49=I$4,Points!$J$30)+0)","v":0},null,{"$f":"SUM(IF('Girls Results'!$C$49=K$4,Points!$C$30)+IF('Girls Results'!$E$49=K$4,Points!$D$30)+IF('Girls Results'!$G$49=K$4,Points!$E$30)+IF('Girls Results'!$I$49=K$4,Points!$F$30)+IF('Girls Results'!$K$49=K$4,Points!$G$30)+IF('Girls Results'!$M$49=K$4,Points!$H$30)+IF('Girls Results'!$O$49=K$4,Points!$I$30)+IF('Girls Results'!$Q$49=K$4,Points!$J$30)+0)","v":1},null,{"$f":"SUM(IF('Girls Results'!$C$49=M$4,Points!$C$30)+IF('Girls Results'!$E$49=M$4,Points!$D$30)+IF('Girls Results'!$G$49=M$4,Points!$E$30)+IF('Girls Results'!$I$49=M$4,Points!$F$30)+IF('Girls Results'!$K$49=M$4,Points!$G$30)+IF('Girls Results'!$M$49=M$4,Points!$H$30)+IF('Girls Results'!$O$49=M$4,Points!$I$30)+IF('Girls Results'!$Q$49=M$4,Points!$J$30)+0)","v":0},null,{"$f":"SUM(IF('Girls Results'!$C$49=O$4,Points!$C$30)+IF('Girls Results'!$E$49=O$4,Points!$D$30)+IF('Girls Results'!$G$49=O$4,Points!$E$30)+IF('Girls Results'!$I$49=O$4,Points!$F$30)+IF('Girls Results'!$K$49=O$4,Points!$G$30)+IF('Girls Results'!$M$49=O$4,Points!$H$30)+IF('Girls Results'!$O$49=O$4,Points!$I$30)+IF('Girls Results'!$Q$49=O$4,Points!$J$30)+0)","v":0},null,{"$f":"SUM(IF('Girls Results'!$C$49=Q$4,Points!$C$30)+IF('Girls Results'!$E$49=Q$4,Points!$D$30)+IF('Girls Results'!$G$49=Q$4,Points!$E$30)+IF('Girls Results'!$I$49=Q$4,Points!$F$30)+IF('Girls Results'!$K$49=Q$4,Points!$G$30)+IF('Girls Results'!$M$49=Q$4,Points!$H$30)+IF('Girls Results'!$O$49=Q$4,Points!$I$30)+IF('Girls Results'!$Q$49=Q$4,Points!$J$30)+0)","v":0},null,{"$f":"SUM(IF('Girls Results'!$C$49=S$4,Points!$C$30)+IF('Girls Results'!$E$49=S$4,Points!$D$30)+IF('Girls Results'!$G$49=S$4,Points!$E$30)+IF('Girls Results'!$I$49=S$4,Points!$F$30)+IF('Girls Results'!$K$49=S$4,Points!$G$30)+IF('Girls Results'!$M$49=S$4,Points!$H$30)+IF('Girls Results'!$O$49=S$4,Points!$I$30)+IF('Girls Results'!$Q$49=S$4,Points!$J$30)+0)","v":0},null,null,{"$f":"SUM(C24:S24)","v":16},{"$f":"Points!$L$30","v":16}]
[]
[{"$f":"'Girls Results'!A52","v":"200 m Sprint"},null,{"$f":"SUM(IF('Girls Results'!$C$54=C$4,Points!$C$30)+IF('Girls Results'!$E$54=C$4,Points!$D$30)+IF('Girls Results'!$G$54=C$4,Points!$E$30)+IF('Girls Results'!$I$54=C$4,Points!$F$30)+IF('Girls Results'!$K$54=C$4,Points!$G$30)+IF('Girls Results'!$M$54=C$4,Points!$H$30)+IF('Girls Results'!$O$54=C$4,Points!$I$30)+IF('Girls Results'!$Q$54=C$4,Points!$J$30)+0)","v":0},null,{"$f":"SUM(IF('Girls Results'!$C$54=E$4,Points!$C$30)+IF('Girls Results'!$E$54=E$4,Points!$D$30)+IF('Girls Results'!$G$54=E$4,Points!$E$30)+IF('Girls Results'!$I$54=E$4,Points!$F$30)+IF('Girls Results'!$K$54=E$4,Points!$G$30)+IF('Girls Results'!$M$54=E$4,Points!$H$30)+IF('Girls Results'!$O$54=E$4,Points!$I$30)+IF('Girls Results'!$Q$54=E$4,Points!$J$30)+0)","v":9},null,{"$f":"SUM(IF('Girls Results'!$C$54=G$4,Points!$C$30)+IF('Girls Results'!$E$54=G$4,Points!$D$30)+IF('Girls Results'!$G$54=G$4,Points!$E$30)+IF('Girls Results'!$I$54=G$4,Points!$F$30)+IF('Girls Results'!$K$54=G$4,Points!$G$30)+IF('Girls Results'!$M$54=G$4,Points!$H$30)+IF('Girls Results'!$O$54=G$4,Points!$I$30)+IF('Girls Results'!$Q$54=G$4,Points!$J$30)+0)","v":6},null,{"$f":"SUM(IF('Girls Results'!$C$54=I$4,Points!$C$30)+IF('Girls Results'!$E$54=I$4,Points!$D$30)+IF('Girls Results'!$G$54=I$4,Points!$E$30)+IF('Girls Results'!$I$54=I$4,Points!$F$30)+IF('Girls Results'!$K$54=I$4,Points!$G$30)+IF('Girls Results'!$M$54=I$4,Points!$H$30)+IF('Girls Results'!$O$54=I$4,Points!$I$30)+IF('Girls Results'!$Q$54=I$4,Points!$J$30)+0)","v":0},null,{"$f":"SUM(IF('Girls Results'!$C$54=K$4,Points!$C$30)+IF('Girls Results'!$E$54=K$4,Points!$D$30)+IF('Girls Results'!$G$54=K$4,Points!$E$30)+IF('Girls Results'!$I$54=K$4,Points!$F$30)+IF('Girls Results'!$K$54=K$4,Points!$G$30)+IF('Girls Results'!$M$54=K$4,Points!$H$30)+IF('Girls Results'!$O$54=K$4,Points!$I$30)+IF('Girls Results'!$Q$54=K$4,Points!$J$30)+0)","v":1},null,{"$f":"SUM(IF('Girls Results'!$C$54=M$4,Points!$C$30)+IF('Girls Results'!$E$54=M$4,Points!$D$30)+IF('Girls Results'!$G$54=M$4,Points!$E$30)+IF('Girls Results'!$I$54=M$4,Points!$F$30)+IF('Girls Results'!$K$54=M$4,Points!$G$30)+IF('Girls Results'!$M$54=M$4,Points!$H$30)+IF('Girls Results'!$O$54=M$4,Points!$I$30)+IF('Girls Results'!$Q$54=M$4,Points!$J$30)+0)","v":0},null,{"$f":"SUM(IF('Girls Results'!$C$54=O$4,Points!$C$30)+IF('Girls Results'!$E$54=O$4,Points!$D$30)+IF('Girls Results'!$G$54=O$4,Points!$E$30)+IF('Girls Results'!$I$54=O$4,Points!$F$30)+IF('Girls Results'!$K$54=O$4,Points!$G$30)+IF('Girls Results'!$M$54=O$4,Points!$H$30)+IF('Girls Results'!$O$54=O$4,Points!$I$30)+IF('Girls Results'!$Q$54=O$4,Points!$J$30)+0)","v":0},null,{"$f":"SUM(IF('Girls Results'!$C$54=Q$4,Points!$C$30)+IF('Girls Results'!$E$54=Q$4,Points!$D$30)+IF('Girls Results'!$G$54=Q$4,Points!$E$30)+IF('Girls Results'!$I$54=Q$4,Points!$F$30)+IF('Girls Results'!$K$54=Q$4,Points!$G$30)+IF('Girls Results'!$M$54=Q$4,Points!$H$30)+IF('Girls Results'!$O$54=Q$4,Points!$I$30)+IF('Girls Results'!$Q$54=Q$4,Points!$J$30)+0)","v":0},null,{"$f":"SUM(IF('Girls Results'!$C$54=S$4,Points!$C$30)+IF('Girls Results'!$E$54=S$4,Points!$D$30)+IF('Girls Results'!$G$54=S$4,Points!$E$30)+IF('Girls Results'!$I$54=S$4,Points!$F$30)+IF('Girls Results'!$K$54=S$4,Points!$G$30)+IF('Girls Results'!$M$54=S$4,Points!$H$30)+IF('Girls Results'!$O$54=S$4,Points!$I$30)+IF('Girls Results'!$Q$54=S$4,Points!$J$30)+0)","v":0},null,null,{"$f":"SUM(C26:S26)","v":16},{"$f":"Points!$L$30","v":16}]
[]
[{"$f":"'Girls Results'!A57","v":"3200 m Run"},null,{"$f":"SUM(IF('Girls Results'!$C$59=C$4,Points!$C$30)+IF('Girls Results'!$E$59=C$4,Points!$D$30)+IF('Girls Results'!$G$59=C$4,Points!$E$30)+IF('Girls Results'!$I$59=C$4,Points!$F$30)+IF('Girls Results'!$K$59=C$4,Points!$G$30)+IF('Girls Results'!$M$59=C$4,Points!$H$30)+IF('Girls Results'!$O$59=C$4,Points!$I$30)+IF('Girls Results'!$Q$59=C$4,Points!$J$30)+0)","v":0},null,{"$f":"SUM(IF('Girls Results'!$C$59=E$4,Points!$C$30)+IF('Girls Results'!$E$59=E$4,Points!$D$30)+IF('Girls Results'!$G$59=E$4,Points!$E$30)+IF('Girls Results'!$I$59=E$4,Points!$F$30)+IF('Girls Results'!$K$59=E$4,Points!$G$30)+IF('Girls Results'!$M$59=E$4,Points!$H$30)+IF('Girls Results'!$O$59=E$4,Points!$I$30)+IF('Girls Results'!$Q$59=E$4,Points!$J$30)+0)","v":0},null,{"$f":"SUM(IF('Girls Results'!$C$59=G$4,Points!$C$30)+IF('Girls Results'!$E$59=G$4,Points!$D$30)+IF('Girls Results'!$G$59=G$4,Points!$E$30)+IF('Girls Results'!$I$59=G$4,Points!$F$30)+IF('Girls Results'!$K$59=G$4,Points!$G$30)+IF('Girls Results'!$M$59=G$4,Points!$H$30)+IF('Girls Results'!$O$59=G$4,Points!$I$30)+IF('Girls Results'!$Q$59=G$4,Points!$J$30)+0)","v":0},null,{"$f":"SUM(IF('Girls Results'!$C$59=I$4,Points!$C$30)+IF('Girls Results'!$E$59=I$4,Points!$D$30)+IF('Girls Results'!$G$59=I$4,Points!$E$30)+IF('Girls Results'!$I$59=I$4,Points!$F$30)+IF('Girls Results'!$K$59=I$4,Points!$G$30)+IF('Girls Results'!$M$59=I$4,Points!$H$30)+IF('Girls Results'!$O$59=I$4,Points!$I$30)+IF('Girls Results'!$Q$59=I$4,Points!$J$30)+0)","v":0},null,{"$f":"SUM(IF('Girls Results'!$C$59=K$4,Points!$C$30)+IF('Girls Results'!$E$59=K$4,Points!$D$30)+IF('Girls Results'!$G$59=K$4,Points!$E$30)+IF('Girls Results'!$I$59=K$4,Points!$F$30)+IF('Girls Results'!$K$59=K$4,Points!$G$30)+IF('Girls Results'!$M$59=K$4,Points!$H$30)+IF('Girls Results'!$O$59=K$4,Points!$I$30)+IF('Girls Results'!$Q$59=K$4,Points!$J$30)+0)","v":16},null,{"$f":"SUM(IF('Girls Results'!$C$59=M$4,Points!$C$30)+IF('Girls Results'!$E$59=M$4,Points!$D$30)+IF('Girls Results'!$G$59=M$4,Points!$E$30)+IF('Girls Results'!$I$59=M$4,Points!$F$30)+IF('Girls Results'!$K$59=M$4,Points!$G$30)+IF('Girls Results'!$M$59=M$4,Points!$H$30)+IF('Girls Results'!$O$59=M$4,Points!$I$30)+IF('Girls Results'!$Q$59=M$4,Points!$J$30)+0)","v":0},null,{"$f":"SUM(IF('Girls Results'!$C$59=O$4,Points!$C$30)+IF('Girls Results'!$E$59=O$4,Points!$D$30)+IF('Girls Results'!$G$59=O$4,Points!$E$30)+IF('Girls Results'!$I$59=O$4,Points!$F$30)+IF('Girls Results'!$K$59=O$4,Points!$G$30)+IF('Girls Results'!$M$59=O$4,Points!$H$30)+IF('Girls Results'!$O$59=O$4,Points!$I$30)+IF('Girls Results'!$Q$59=O$4,Points!$J$30)+0)","v":0},null,{"$f":"SUM(IF('Girls Results'!$C$59=Q$4,Points!$C$30)+IF('Girls Results'!$E$59=Q$4,Points!$D$30)+IF('Girls Results'!$G$59=Q$4,Points!$E$30)+IF('Girls Results'!$I$59=Q$4,Points!$F$30)+IF('Girls Results'!$K$59=Q$4,Points!$G$30)+IF('Girls Results'!$M$59=Q$4,Points!$H$30)+IF('Girls Results'!$O$59=Q$4,Points!$I$30)+IF('Girls Results'!$Q$59=Q$4,Points!$J$30)+0)","v":0},null,{"$f":"SUM(IF('Girls Results'!$C$59=S$4,Points!$C$30)+IF('Girls Results'!$E$59=S$4,Points!$D$30)+IF('Girls Results'!$G$59=S$4,Points!$E$30)+IF('Girls Results'!$I$59=S$4,Points!$F$30)+IF('Girls Results'!$K$59=S$4,Points!$G$30)+IF('Girls Results'!$M$59=S$4,Points!$H$30)+IF('Girls Results'!$O$59=S$4,Points!$I$30)+IF('Girls Results'!$Q$59=S$4,Points!$J$30)+0)","v":0},null,null,{"$f":"SUM(C28:S28)","v":16},{"$f":"Points!$L$30","v":16}]
[]
[{"$f":"'Girls Results'!A62","v":"4 X 400 m Relay"},null,{"$f":"SUM(IF('Girls Results'!$C$63=C$4,Points!$C$31)+IF('Girls Results'!$E$63=C$4,Points!$D$31)+IF('Girls Results'!$G$63=C$4,Points!$E$31)+IF('Girls Results'!$I$63=C$4,Points!$F$31)+IF('Girls Results'!$K$63=C$4,Points!$G$31)+IF('Girls Results'!$M$63=C$4,Points!$H$31)+IF('Girls Results'!$O$63=C$4,Points!$I$31)+IF('Girls Results'!$Q$63=C$4,Points!$J$31)+0)","v":6},null,{"$f":"SUM(IF('Girls Results'!$C$63=E$4,Points!$C$31)+IF('Girls Results'!$E$63=E$4,Points!$D$31)+IF('Girls Results'!$G$63=E$4,Points!$E$31)+IF('Girls Results'!$I$63=E$4,Points!$F$31)+IF('Girls Results'!$K$63=E$4,Points!$G$31)+IF('Girls Results'!$M$63=E$4,Points!$H$31)+IF('Girls Results'!$O$63=E$4,Points!$I$31)+IF('Girls Results'!$Q$63=E$4,Points!$J$31)+0)","v":0},null,{"$f":"SUM(IF('Girls Results'!$C$63=G$4,Points!$C$31)+IF('Girls Results'!$E$63=G$4,Points!$D$31)+IF('Girls Results'!$G$63=G$4,Points!$E$31)+IF('Girls Results'!$I$63=G$4,Points!$F$31)+IF('Girls Results'!$K$63=G$4,Points!$G$31)+IF('Girls Results'!$M$63=G$4,Points!$H$31)+IF('Girls Results'!$O$63=G$4,Points!$I$31)+IF('Girls Results'!$Q$63=G$4,Points!$J$31)+0)","v":0},null,{"$f":"SUM(IF('Girls Results'!$C$63=I$4,Points!$C$31)+IF('Girls Results'!$E$63=I$4,Points!$D$31)+IF('Girls Results'!$G$63=I$4,Points!$E$31)+IF('Girls Results'!$I$63=I$4,Points!$F$31)+IF('Girls Results'!$K$63=I$4,Points!$G$31)+IF('Girls Results'!$M$63=I$4,Points!$H$31)+IF('Girls Results'!$O$63=I$4,Points!$I$31)+IF('Girls Results'!$Q$63=I$4,Points!$J$31)+0)","v":0},null,{"$f":"SUM(IF('Girls Results'!$C$63=K$4,Points!$C$31)+IF('Girls Results'!$E$63=K$4,Points!$D$31)+IF('Girls Results'!$G$63=K$4,Points!$E$31)+IF('Girls Results'!$I$63=K$4,Points!$F$31)+IF('Girls Results'!$K$63=K$4,Points!$G$31)+IF('Girls Results'!$M$63=K$4,Points!$H$31)+IF('Girls Results'!$O$63=K$4,Points!$I$31)+IF('Girls Results'!$Q$63=K$4,Points!$J$31)+0)","v":6},null,{"$f":"SUM(IF('Girls Results'!$C$63=M$4,Points!$C$31)+IF('Girls Results'!$E$63=M$4,Points!$D$31)+IF('Girls Results'!$G$63=M$4,Points!$E$31)+IF('Girls Results'!$I$63=M$4,Points!$F$31)+IF('Girls Results'!$K$63=M$4,Points!$G$31)+IF('Girls Results'!$M$63=M$4,Points!$H$31)+IF('Girls Results'!$O$63=M$4,Points!$I$31)+IF('Girls Results'!$Q$63=M$4,Points!$J$31)+0)","v":0},null,{"$f":"SUM(IF('Girls Results'!$C$63=O$4,Points!$C$31)+IF('Girls Results'!$E$63=O$4,Points!$D$31)+IF('Girls Results'!$G$63=O$4,Points!$E$31)+IF('Girls Results'!$I$63=O$4,Points!$F$31)+IF('Girls Results'!$K$63=O$4,Points!$G$31)+IF('Girls Results'!$M$63=O$4,Points!$H$31)+IF('Girls Results'!$O$63=O$4,Points!$I$31)+IF('Girls Results'!$Q$63=O$4,Points!$J$31)+0)","v":0},null,{"$f":"SUM(IF('Girls Results'!$C$63=Q$4,Points!$C$31)+IF('Girls Results'!$E$63=Q$4,Points!$D$31)+IF('Girls Results'!$G$63=Q$4,Points!$E$31)+IF('Girls Results'!$I$63=Q$4,Points!$F$31)+IF('Girls Results'!$K$63=Q$4,Points!$G$31)+IF('Girls Results'!$M$63=Q$4,Points!$H$31)+IF('Girls Results'!$O$63=Q$4,Points!$I$31)+IF('Girls Results'!$Q$63=Q$4,Points!$J$31)+0)","v":0},null,{"$f":"SUM(IF('Girls Results'!$C$63=S$4,Points!$C$31)+IF('Girls Results'!$E$63=S$4,Points!$D$31)+IF('Girls Results'!$G$63=S$4,Points!$E$31)+IF('Girls Results'!$I$63=S$4,Points!$F$31)+IF('Girls Results'!$K$63=S$4,Points!$G$31)+IF('Girls Results'!$M$63=S$4,Points!$H$31)+IF('Girls Results'!$O$63=S$4,Points!$I$31)+IF('Girls Results'!$Q$63=S$4,Points!$J$31)+0)","v":0},null,null,{"$f":"SUM(C30:S30)","v":12},{"$f":"Points!$L$31","v":12}]
[]
[{"$f":"'Girls Results'!A66","v":"High Jump"},null,{"$f":"SUM(IF('Girls Results'!$C$68=C$4,Points!$C$30)+IF('Girls Results'!$E$68=C$4,Points!$D$30)+IF('Girls Results'!$G$68=C$4,Points!$E$30)+IF('Girls Results'!$I$68=C$4,Points!$F$30)+IF('Girls Results'!$K$68=C$4,Points!$G$30)+IF('Girls Results'!$M$68=C$4,Points!$H$30)+IF('Girls Results'!$O$68=C$4,Points!$I$30)+IF('Girls Results'!$Q$68=C$4,Points!$J$30)+0)","v":6},null,{"$f":"SUM(IF('Girls Results'!$C$68=E$4,Points!$C$30)+IF('Girls Results'!$E$68=E$4,Points!$D$30)+IF('Girls Results'!$G$68=E$4,Points!$E$30)+IF('Girls Results'!$I$68=E$4,Points!$F$30)+IF('Girls Results'!$K$68=E$4,Points!$G$30)+IF('Girls Results'!$M$68=E$4,Points!$H$30)+IF('Girls Results'!$O$68=E$4,Points!$I$30)+IF('Girls Results'!$Q$68=E$4,Points!$J$30)+0)","v":4},null,{"$f":"SUM(IF('Girls Results'!$C$68=G$4,Points!$C$30)+IF('Girls Results'!$E$68=G$4,Points!$D$30)+IF('Girls Results'!$G$68=G$4,Points!$E$30)+IF('Girls Results'!$I$68=G$4,Points!$F$30)+IF('Girls Results'!$K$68=G$4,Points!$G$30)+IF('Girls Results'!$M$68=G$4,Points!$H$30)+IF('Girls Results'!$O$68=G$4,Points!$I$30)+IF('Girls Results'!$Q$68=G$4,Points!$J$30)+0)","v":3},null,{"$f":"SUM(IF('Girls Results'!$C$68=I$4,Points!$C$30)+IF('Girls Results'!$E$68=I$4,Points!$D$30)+IF('Girls Results'!$G$68=I$4,Points!$E$30)+IF('Girls Results'!$I$68=I$4,Points!$F$30)+IF('Girls Results'!$K$68=I$4,Points!$G$30)+IF('Girls Results'!$M$68=I$4,Points!$H$30)+IF('Girls Results'!$O$68=I$4,Points!$I$30)+IF('Girls Results'!$Q$68=I$4,Points!$J$30)+0)","v":0},null,{"$f":"SUM(IF('Girls Results'!$C$68=K$4,Points!$C$30)+IF('Girls Results'!$E$68=K$4,Points!$D$30)+IF('Girls Results'!$G$68=K$4,Points!$E$30)+IF('Girls Results'!$I$68=K$4,Points!$F$30)+IF('Girls Results'!$K$68=K$4,Points!$G$30)+IF('Girls Results'!$M$68=K$4,Points!$H$30)+IF('Girls Results'!$O$68=K$4,Points!$I$30)+IF('Girls Results'!$Q$68=K$4,Points!$J$30)+0)","v":3},null,{"$f":"SUM(IF('Girls Results'!$C$68=M$4,Points!$C$30)+IF('Girls Results'!$E$68=M$4,Points!$D$30)+IF('Girls Results'!$G$68=M$4,Points!$E$30)+IF('Girls Results'!$I$68=M$4,Points!$F$30)+IF('Girls Results'!$K$68=M$4,Points!$G$30)+IF('Girls Results'!$M$68=M$4,Points!$H$30)+IF('Girls Results'!$O$68=M$4,Points!$I$30)+IF('Girls Results'!$Q$68=M$4,Points!$J$30)+0)","v":0},null,{"$f":"SUM(IF('Girls Results'!$C$68=O$4,Points!$C$30)+IF('Girls Results'!$E$68=O$4,Points!$D$30)+IF('Girls Results'!$G$68=O$4,Points!$E$30)+IF('Girls Results'!$I$68=O$4,Points!$F$30)+IF('Girls Results'!$K$68=O$4,Points!$G$30)+IF('Girls Results'!$M$68=O$4,Points!$H$30)+IF('Girls Results'!$O$68=O$4,Points!$I$30)+IF('Girls Results'!$Q$68=O$4,Points!$J$30)+0)","v":0},null,{"$f":"SUM(IF('Girls Results'!$C$68=Q$4,Points!$C$30)+IF('Girls Results'!$E$68=Q$4,Points!$D$30)+IF('Girls Results'!$G$68=Q$4,Points!$E$30)+IF('Girls Results'!$I$68=Q$4,Points!$F$30)+IF('Girls Results'!$K$68=Q$4,Points!$G$30)+IF('Girls Results'!$M$68=Q$4,Points!$H$30)+IF('Girls Results'!$O$68=Q$4,Points!$I$30)+IF('Girls Results'!$Q$68=Q$4,Points!$J$30)+0)","v":0},null,{"$f":"SUM(IF('Girls Results'!$C$68=S$4,Points!$C$30)+IF('Girls Results'!$E$68=S$4,Points!$D$30)+IF('Girls Results'!$G$68=S$4,Points!$E$30)+IF('Girls Results'!$I$68=S$4,Points!$F$30)+IF('Girls Results'!$K$68=S$4,Points!$G$30)+IF('Girls Results'!$M$68=S$4,Points!$H$30)+IF('Girls Results'!$O$68=S$4,Points!$I$30)+IF('Girls Results'!$Q$68=S$4,Points!$J$30)+0)","v":0},null,null,{"$f":"SUM(C32:S32)","v":16},{"$f":"Points!$L$30","v":16}]
[]
[{"$f":"'Girls Results'!A71","v":"Long Jump"},null,{"$f":"SUM(IF('Girls Results'!$C$73=C$4,Points!$C$30)+IF('Girls Results'!$E$73=C$4,Points!$D$30)+IF('Girls Results'!$G$73=C$4,Points!$E$30)+IF('Girls Results'!$I$73=C$4,Points!$F$30)+IF('Girls Results'!$K$73=C$4,Points!$G$30)+IF('Girls Results'!$M$73=C$4,Points!$H$30)+IF('Girls Results'!$O$73=C$4,Points!$I$30)+IF('Girls Results'!$Q$73=C$4,Points!$J$30)+0)","v":0},null,{"$f":"SUM(IF('Girls Results'!$C$73=E$4,Points!$C$30)+IF('Girls Results'!$E$73=E$4,Points!$D$30)+IF('Girls Results'!$G$73=E$4,Points!$E$30)+IF('Girls Results'!$I$73=E$4,Points!$F$30)+IF('Girls Results'!$K$73=E$4,Points!$G$30)+IF('Girls Results'!$M$73=E$4,Points!$H$30)+IF('Girls Results'!$O$73=E$4,Points!$I$30)+IF('Girls Results'!$Q$73=E$4,Points!$J$30)+0)","v":6},null,{"$f":"SUM(IF('Girls Results'!$C$73=G$4,Points!$C$30)+IF('Girls Results'!$E$73=G$4,Points!$D$30)+IF('Girls Results'!$G$73=G$4,Points!$E$30)+IF('Girls Results'!$I$73=G$4,Points!$F$30)+IF('Girls Results'!$K$73=G$4,Points!$G$30)+IF('Girls Results'!$M$73=G$4,Points!$H$30)+IF('Girls Results'!$O$73=G$4,Points!$I$30)+IF('Girls Results'!$Q$73=G$4,Points!$J$30)+0)","v":9},null,{"$f":"SUM(IF('Girls Results'!$C$73=I$4,Points!$C$30)+IF('Girls Results'!$E$73=I$4,Points!$D$30)+IF('Girls Results'!$G$73=I$4,Points!$E$30)+IF('Girls Results'!$I$73=I$4,Points!$F$30)+IF('Girls Results'!$K$73=I$4,Points!$G$30)+IF('Girls Results'!$M$73=I$4,Points!$H$30)+IF('Girls Results'!$O$73=I$4,Points!$I$30)+IF('Girls Results'!$Q$73=I$4,Points!$J$30)+0)","v":0},null,{"$f":"SUM(IF('Girls Results'!$C$73=K$4,Points!$C$30)+IF('Girls Results'!$E$73=K$4,Points!$D$30)+IF('Girls Results'!$G$73=K$4,Points!$E$30)+IF('Girls Results'!$I$73=K$4,Points!$F$30)+IF('Girls Results'!$K$73=K$4,Points!$G$30)+IF('Girls Results'!$M$73=K$4,Points!$H$30)+IF('Girls Results'!$O$73=K$4,Points!$I$30)+IF('Girls Results'!$Q$73=K$4,Points!$J$30)+0)","v":1},null,{"$f":"SUM(IF('Girls Results'!$C$73=M$4,Points!$C$30)+IF('Girls Results'!$E$73=M$4,Points!$D$30)+IF('Girls Results'!$G$73=M$4,Points!$E$30)+IF('Girls Results'!$I$73=M$4,Points!$F$30)+IF('Girls Results'!$K$73=M$4,Points!$G$30)+IF('Girls Results'!$M$73=M$4,Points!$H$30)+IF('Girls Results'!$O$73=M$4,Points!$I$30)+IF('Girls Results'!$Q$73=M$4,Points!$J$30)+0)","v":0},null,{"$f":"SUM(IF('Girls Results'!$C$73=O$4,Points!$C$30)+IF('Girls Results'!$E$73=O$4,Points!$D$30)+IF('Girls Results'!$G$73=O$4,Points!$E$30)+IF('Girls Results'!$I$73=O$4,Points!$F$30)+IF('Girls Results'!$K$73=O$4,Points!$G$30)+IF('Girls Results'!$M$73=O$4,Points!$H$30)+IF('Girls Results'!$O$73=O$4,Points!$I$30)+IF('Girls Results'!$Q$73=O$4,Points!$J$30)+0)","v":0},null,{"$f":"SUM(IF('Girls Results'!$C$73=Q$4,Points!$C$30)+IF('Girls Results'!$E$73=Q$4,Points!$D$30)+IF('Girls Results'!$G$73=Q$4,Points!$E$30)+IF('Girls Results'!$I$73=Q$4,Points!$F$30)+IF('Girls Results'!$K$73=Q$4,Points!$G$30)+IF('Girls Results'!$M$73=Q$4,Points!$H$30)+IF('Girls Results'!$O$73=Q$4,Points!$I$30)+IF('Girls Results'!$Q$73=Q$4,Points!$J$30)+0)","v":0},null,{"$f":"SUM(IF('Girls Results'!$C$73=S$4,Points!$C$30)+IF('Girls Results'!$E$73=S$4,Points!$D$30)+IF('Girls Results'!$G$73=S$4,Points!$E$30)+IF('Girls Results'!$I$73=S$4,Points!$F$30)+IF('Girls Results'!$K$73=S$4,Points!$G$30)+IF('Girls Results'!$M$73=S$4,Points!$H$30)+IF('Girls Results'!$O$73=S$4,Points!$I$30)+IF('Girls Results'!$Q$73=S$4,Points!$J$30)+0)","v":0},null,null,{"$f":"SUM(C34:S34)","v":16},{"$f":"Points!$L$30","v":16}]
[]
[{"$f":"'Girls Results'!A76","v":"Triple Jump"},null,{"$f":"SUM(IF('Girls Results'!$C$78=C$4,Points!$C$30)+IF('Girls Results'!$E$78=C$4,Points!$D$30)+IF('Girls Results'!$G$78=C$4,Points!$E$30)+IF('Girls Results'!$I$78=C$4,Points!$F$30)+IF('Girls Results'!$K$78=C$4,Points!$G$30)+IF('Girls Results'!$M$78=C$4,Points!$H$30)+IF('Girls Results'!$O$78=C$4,Points!$I$30)+IF('Girls Results'!$Q$78=C$4,Points!$J$30)+0)","v":0},null,{"$f":"SUM(IF('Girls Results'!$C$78=E$4,Points!$C$30)+IF('Girls Results'!$E$78=E$4,Points!$D$30)+IF('Girls Results'!$G$78=E$4,Points!$E$30)+IF('Girls Results'!$I$78=E$4,Points!$F$30)+IF('Girls Results'!$K$78=E$4,Points!$G$30)+IF('Girls Results'!$M$78=E$4,Points!$H$30)+IF('Girls Results'!$O$78=E$4,Points!$I$30)+IF('Girls Results'!$Q$78=E$4,Points!$J$30)+0)","v":6},null,{"$f":"SUM(IF('Girls Results'!$C$78=G$4,Points!$C$30)+IF('Girls Results'!$E$78=G$4,Points!$D$30)+IF('Girls Results'!$G$78=G$4,Points!$E$30)+IF('Girls Results'!$I$78=G$4,Points!$F$30)+IF('Girls Results'!$K$78=G$4,Points!$G$30)+IF('Girls Results'!$M$78=G$4,Points!$H$30)+IF('Girls Results'!$O$78=G$4,Points!$I$30)+IF('Girls Results'!$Q$78=G$4,Points!$J$30)+0)","v":7},null,{"$f":"SUM(IF('Girls Results'!$C$78=I$4,Points!$C$30)+IF('Girls Results'!$E$78=I$4,Points!$D$30)+IF('Girls Results'!$G$78=I$4,Points!$E$30)+IF('Girls Results'!$I$78=I$4,Points!$F$30)+IF('Girls Results'!$K$78=I$4,Points!$G$30)+IF('Girls Results'!$M$78=I$4,Points!$H$30)+IF('Girls Results'!$O$78=I$4,Points!$I$30)+IF('Girls Results'!$Q$78=I$4,Points!$J$30)+0)","v":0},null,{"$f":"SUM(IF('Girls Results'!$C$78=K$4,Points!$C$30)+IF('Girls Results'!$E$78=K$4,Points!$D$30)+IF('Girls Results'!$G$78=K$4,Points!$E$30)+IF('Girls Results'!$I$78=K$4,Points!$F$30)+IF('Girls Results'!$K$78=K$4,Points!$G$30)+IF('Girls Results'!$M$78=K$4,Points!$H$30)+IF('Girls Results'!$O$78=K$4,Points!$I$30)+IF('Girls Results'!$Q$78=K$4,Points!$J$30)+0)","v":3},null,{"$f":"SUM(IF('Girls Results'!$C$78=M$4,Points!$C$30)+IF('Girls Results'!$E$78=M$4,Points!$D$30)+IF('Girls Results'!$G$78=M$4,Points!$E$30)+IF('Girls Results'!$I$78=M$4,Points!$F$30)+IF('Girls Results'!$K$78=M$4,Points!$G$30)+IF('Girls Results'!$M$78=M$4,Points!$H$30)+IF('Girls Results'!$O$78=M$4,Points!$I$30)+IF('Girls Results'!$Q$78=M$4,Points!$J$30)+0)","v":0},null,{"$f":"SUM(IF('Girls Results'!$C$78=O$4,Points!$C$30)+IF('Girls Results'!$E$78=O$4,Points!$D$30)+IF('Girls Results'!$G$78=O$4,Points!$E$30)+IF('Girls Results'!$I$78=O$4,Points!$F$30)+IF('Girls Results'!$K$78=O$4,Points!$G$30)+IF('Girls Results'!$M$78=O$4,Points!$H$30)+IF('Girls Results'!$O$78=O$4,Points!$I$30)+IF('Girls Results'!$Q$78=O$4,Points!$J$30)+0)","v":0},null,{"$f":"SUM(IF('Girls Results'!$C$78=Q$4,Points!$C$30)+IF('Girls Results'!$E$78=Q$4,Points!$D$30)+IF('Girls Results'!$G$78=Q$4,Points!$E$30)+IF('Girls Results'!$I$78=Q$4,Points!$F$30)+IF('Girls Results'!$K$78=Q$4,Points!$G$30)+IF('Girls Results'!$M$78=Q$4,Points!$H$30)+IF('Girls Results'!$O$78=Q$4,Points!$I$30)+IF('Girls Results'!$Q$78=Q$4,Points!$J$30)+0)","v":0},null,{"$f":"SUM(IF('Girls Results'!$C$78=S$4,Points!$C$30)+IF('Girls Results'!$E$78=S$4,Points!$D$30)+IF('Girls Results'!$G$78=S$4,Points!$E$30)+IF('Girls Results'!$I$78=S$4,Points!$F$30)+IF('Girls Results'!$K$78=S$4,Points!$G$30)+IF('Girls Results'!$M$78=S$4,Points!$H$30)+IF('Girls Results'!$O$78=S$4,Points!$I$30)+IF('Girls Results'!$Q$78=S$4,Points!$J$30)+0)","v":0},null,null,{"$f":"SUM(C36:S36)","v":16},{"$f":"Points!$L$30","v":16}]
[]
[{"$f":"'Girls Results'!A81","v":"Shot Put"},null,{"$f":"SUM(IF('Girls Results'!$C$83=C$4,Points!$C$30)+IF('Girls Results'!$E$83=C$4,Points!$D$30)+IF('Girls Results'!$G$83=C$4,Points!$E$30)+IF('Girls Results'!$I$83=C$4,Points!$F$30)+IF('Girls Results'!$K$83=C$4,Points!$G$30)+IF('Girls Results'!$M$83=C$4,Points!$H$30)+IF('Girls Results'!$O$83=C$4,Points!$I$30)+IF('Girls Results'!$Q$83=C$4,Points!$J$30)+0)","v":12},null,{"$f":"SUM(IF('Girls Results'!$C$83=E$4,Points!$C$30)+IF('Girls Results'!$E$83=E$4,Points!$D$30)+IF('Girls Results'!$G$83=E$4,Points!$E$30)+IF('Girls Results'!$I$83=E$4,Points!$F$30)+IF('Girls Results'!$K$83=E$4,Points!$G$30)+IF('Girls Results'!$M$83=E$4,Points!$H$30)+IF('Girls Results'!$O$83=E$4,Points!$I$30)+IF('Girls Results'!$Q$83=E$4,Points!$J$30)+0)","v":0},null,{"$f":"SUM(IF('Girls Results'!$C$83=G$4,Points!$C$30)+IF('Girls Results'!$E$83=G$4,Points!$D$30)+IF('Girls Results'!$G$83=G$4,Points!$E$30)+IF('Girls Results'!$I$83=G$4,Points!$F$30)+IF('Girls Results'!$K$83=G$4,Points!$G$30)+IF('Girls Results'!$M$83=G$4,Points!$H$30)+IF('Girls Results'!$O$83=G$4,Points!$I$30)+IF('Girls Results'!$Q$83=G$4,Points!$J$30)+0)","v":0},null,{"$f":"SUM(IF('Girls Results'!$C$83=I$4,Points!$C$30)+IF('Girls Results'!$E$83=I$4,Points!$D$30)+IF('Girls Results'!$G$83=I$4,Points!$E$30)+IF('Girls Results'!$I$83=I$4,Points!$F$30)+IF('Girls Results'!$K$83=I$4,Points!$G$30)+IF('Girls Results'!$M$83=I$4,Points!$H$30)+IF('Girls Results'!$O$83=I$4,Points!$I$30)+IF('Girls Results'!$Q$83=I$4,Points!$J$30)+0)","v":3},null,{"$f":"SUM(IF('Girls Results'!$C$83=K$4,Points!$C$30)+IF('Girls Results'!$E$83=K$4,Points!$D$30)+IF('Girls Results'!$G$83=K$4,Points!$E$30)+IF('Girls Results'!$I$83=K$4,Points!$F$30)+IF('Girls Results'!$K$83=K$4,Points!$G$30)+IF('Girls Results'!$M$83=K$4,Points!$H$30)+IF('Girls Results'!$O$83=K$4,Points!$I$30)+IF('Girls Results'!$Q$83=K$4,Points!$J$30)+0)","v":1},null,{"$f":"SUM(IF('Girls Results'!$C$83=M$4,Points!$C$30)+IF('Girls Results'!$E$83=M$4,Points!$D$30)+IF('Girls Results'!$G$83=M$4,Points!$E$30)+IF('Girls Results'!$I$83=M$4,Points!$F$30)+IF('Girls Results'!$K$83=M$4,Points!$G$30)+IF('Girls Results'!$M$83=M$4,Points!$H$30)+IF('Girls Results'!$O$83=M$4,Points!$I$30)+IF('Girls Results'!$Q$83=M$4,Points!$J$30)+0)","v":0},null,{"$f":"SUM(IF('Girls Results'!$C$83=O$4,Points!$C$30)+IF('Girls Results'!$E$83=O$4,Points!$D$30)+IF('Girls Results'!$G$83=O$4,Points!$E$30)+IF('Girls Results'!$I$83=O$4,Points!$F$30)+IF('Girls Results'!$K$83=O$4,Points!$G$30)+IF('Girls Results'!$M$83=O$4,Points!$H$30)+IF('Girls Results'!$O$83=O$4,Points!$I$30)+IF('Girls Results'!$Q$83=O$4,Points!$J$30)+0)","v":0},null,{"$f":"SUM(IF('Girls Results'!$C$83=Q$4,Points!$C$30)+IF('Girls Results'!$E$83=Q$4,Points!$D$30)+IF('Girls Results'!$G$83=Q$4,Points!$E$30)+IF('Girls Results'!$I$83=Q$4,Points!$F$30)+IF('Girls Results'!$K$83=Q$4,Points!$G$30)+IF('Girls Results'!$M$83=Q$4,Points!$H$30)+IF('Girls Results'!$O$83=Q$4,Points!$I$30)+IF('Girls Results'!$Q$83=Q$4,Points!$J$30)+0)","v":0},null,{"$f":"SUM(IF('Girls Results'!$C$83=S$4,Points!$C$30)+IF('Girls Results'!$E$83=S$4,Points!$D$30)+IF('Girls Results'!$G$83=S$4,Points!$E$30)+IF('Girls Results'!$I$83=S$4,Points!$F$30)+IF('Girls Results'!$K$83=S$4,Points!$G$30)+IF('Girls Results'!$M$83=S$4,Points!$H$30)+IF('Girls Results'!$O$83=S$4,Points!$I$30)+IF('Girls Results'!$Q$83=S$4,Points!$J$30)+0)","v":0},null,null,{"$f":"SUM(C38:S38)","v":16},{"$f":"Points!$L$30","v":16}]
[]
[{"$f":"'Girls Results'!A86","v":"Discus"},null,{"$f":"SUM(IF('Girls Results'!$C$88=C$4,Points!$C$30)+IF('Girls Results'!$E$88=C$4,Points!$D$30)+IF('Girls Results'!$G$88=C$4,Points!$E$30)+IF('Girls Results'!$I$88=C$4,Points!$F$30)+IF('Girls Results'!$K$88=C$4,Points!$G$30)+IF('Girls Results'!$M$88=C$4,Points!$H$30)+IF('Girls Results'!$O$88=C$4,Points!$I$30)+IF('Girls Results'!$Q$88=C$4,Points!$J$30)+0)","v":2},null,{"$f":"SUM(IF('Girls Results'!$C$88=E$4,Points!$C$30)+IF('Girls Results'!$E$88=E$4,Points!$D$30)+IF('Girls Results'!$G$88=E$4,Points!$E$30)+IF('Girls Results'!$I$88=E$4,Points!$F$30)+IF('Girls Results'!$K$88=E$4,Points!$G$30)+IF('Girls Results'!$M$88=E$4,Points!$H$30)+IF('Girls Results'!$O$88=E$4,Points!$I$30)+IF('Girls Results'!$Q$88=E$4,Points!$J$30)+0)","v":9},null,{"$f":"SUM(IF('Girls Results'!$C$88=G$4,Points!$C$30)+IF('Girls Results'!$E$88=G$4,Points!$D$30)+IF('Girls Results'!$G$88=G$4,Points!$E$30)+IF('Girls Results'!$I$88=G$4,Points!$F$30)+IF('Girls Results'!$K$88=G$4,Points!$G$30)+IF('Girls Results'!$M$88=G$4,Points!$H$30)+IF('Girls Results'!$O$88=G$4,Points!$I$30)+IF('Girls Results'!$Q$88=G$4,Points!$J$30)+0)","v":0},null,{"$f":"SUM(IF('Girls Results'!$C$88=I$4,Points!$C$30)+IF('Girls Results'!$E$88=I$4,Points!$D$30)+IF('Girls Results'!$G$88=I$4,Points!$E$30)+IF('Girls Results'!$I$88=I$4,Points!$F$30)+IF('Girls Results'!$K$88=I$4,Points!$G$30)+IF('Girls Results'!$M$88=I$4,Points!$H$30)+IF('Girls Results'!$O$88=I$4,Points!$I$30)+IF('Girls Results'!$Q$88=I$4,Points!$J$30)+0)","v":4},null,{"$f":"SUM(IF('Girls Results'!$C$88=K$4,Points!$C$30)+IF('Girls Results'!$E$88=K$4,Points!$D$30)+IF('Girls Results'!$G$88=K$4,Points!$E$30)+IF('Girls Results'!$I$88=K$4,Points!$F$30)+IF('Girls Results'!$K$88=K$4,Points!$G$30)+IF('Girls Results'!$M$88=K$4,Points!$H$30)+IF('Girls Results'!$O$88=K$4,Points!$I$30)+IF('Girls Results'!$Q$88=K$4,Points!$J$30)+0)","v":1},null,{"$f":"SUM(IF('Girls Results'!$C$88=M$4,Points!$C$30)+IF('Girls Results'!$E$88=M$4,Points!$D$30)+IF('Girls Results'!$G$88=M$4,Points!$E$30)+IF('Girls Results'!$I$88=M$4,Points!$F$30)+IF('Girls Results'!$K$88=M$4,Points!$G$30)+IF('Girls Results'!$M$88=M$4,Points!$H$30)+IF('Girls Results'!$O$88=M$4,Points!$I$30)+IF('Girls Results'!$Q$88=M$4,Points!$J$30)+0)","v":0},null,{"$f":"SUM(IF('Girls Results'!$C$88=O$4,Points!$C$30)+IF('Girls Results'!$E$88=O$4,Points!$D$30)+IF('Girls Results'!$G$88=O$4,Points!$E$30)+IF('Girls Results'!$I$88=O$4,Points!$F$30)+IF('Girls Results'!$K$88=O$4,Points!$G$30)+IF('Girls Results'!$M$88=O$4,Points!$H$30)+IF('Girls Results'!$O$88=O$4,Points!$I$30)+IF('Girls Results'!$Q$88=O$4,Points!$J$30)+0)","v":0},null,{"$f":"SUM(IF('Girls Results'!$C$88=Q$4,Points!$C$30)+IF('Girls Results'!$E$88=Q$4,Points!$D$30)+IF('Girls Results'!$G$88=Q$4,Points!$E$30)+IF('Girls Results'!$I$88=Q$4,Points!$F$30)+IF('Girls Results'!$K$88=Q$4,Points!$G$30)+IF('Girls Results'!$M$88=Q$4,Points!$H$30)+IF('Girls Results'!$O$88=Q$4,Points!$I$30)+IF('Girls Results'!$Q$88=Q$4,Points!$J$30)+0)","v":0},null,{"$f":"SUM(IF('Girls Results'!$C$88=S$4,Points!$C$30)+IF('Girls Results'!$E$88=S$4,Points!$D$30)+IF('Girls Results'!$G$88=S$4,Points!$E$30)+IF('Girls Results'!$I$88=S$4,Points!$F$30)+IF('Girls Results'!$K$88=S$4,Points!$G$30)+IF('Girls Results'!$M$88=S$4,Points!$H$30)+IF('Girls Results'!$O$88=S$4,Points!$I$30)+IF('Girls Results'!$Q$88=S$4,Points!$J$30)+0)","v":0},null,null,{"$f":"SUM(C40:S40)","v":16},{"$f":"Points!$L$30","v":16}]
[]
[]
["Total",null,{"$f":"IF(C4=\"OK\",\" \",SUM(C6:C40))","v":69},null,{"$f":"IF(E4=\"OK\",\" \",SUM(E6:E40))","v":71},null,{"$f":"IF(G4=\"OK\",\" \",SUM(G6:G40))","v":69},null,{"$f":"IF(I4=\"OK\",\" \",SUM(I6:I40))","v":7},null,{"$f":"IF(K4=\"OK\",\" \",SUM(K6:K40))","v":52},null,{"$f":"IF(M4=\"OK\",\" \",SUM(M6:M40))","v":" "},null,{"$f":"IF(O4=\"OK\",\" \",SUM(O6:O40))","v":" "},null,{"$f":"IF(Q4=\"OK\",\" \",SUM(Q6:Q40))","v":" "},null,{"$f":"IF(S4=\"OK\",\" \",SUM(S6:S40))","v":" "}]

{"sheet":"Boys Results","index":5,"n_rows":89,"n_cols":20,"rows_kept":89,"cut":false,"hidden":false,"merged":[[0,2,0,6],[1,2,1,6]]}
["Date",null,{"$f":"Points!C40","v":"2013-04-03"}]
["Meet",null,{"$f":"Points!C41","v":"EMAC JV meet"}]
[]
[]
[]
[]
[]
["Event",null,"1st Place",null,"2nd Place",null,"3rd Place",null,"4th Place",null,"5th Place",null,"6th Place",null,"7th Place",null,"8th Place"]
[]
["4 X 800 m Relay"]
["   Team",null,"Thornton",null,"Brighton",null,null,null,null,null,null,null,null,null,null,null,null,null,null,"Each Event is listed in column A.  Below each Event are the"]
["   Time",null,"10:00.00",null,"10:12.13",null,null,null,null,null,null,null,null,null,null,null,null,null,null,"2 or 3 labeled rows (in red) of the Events' required results "]
[null,null,null,null,null,null,null,null,null,null,null,null,null,null,null,null,null,null,null,"information."]
["110 m H Hurdles"]
["   Name",null,"Linebell",null,"Gulley",null,"Wong",null,"Arellano",null,null,null,null,null,null,null,null,null,null,"Enter the Events' results information in the cells below"]
["   Team",null,"Westminster",null,"Prairie View",null,"Westminster",null,"Westminster",null,null,null,null,null,null,null,null,null,null,"each Place (1st thru 8th) that intersect with the labeled rows."]
["   Time",null,"20.00",null,"20.37",null,"22.56",null,"23.09"]
[null,null,null,null,null,null,null,null,null,null,null,null,null,null,null,null,null,null,null,"* The Team is a drop down list to choose from."]
["100 m Sprint",null,null,null,null,null,null,null,null,null,null,null,null,null,null,null,null,null,null,"                    This maintains consistency in the formulas "]
["   Name",null,"Balthazor",null,"Kreutzer",null,"Robinson",null,"Baca",null,"Ramos",null,null,null,null,null,null,null,null,"                    used in the spreadsheet."]
["   Team",null,"Holy Family",null,"Prairie View",null,"Prairie View",null,"Brighton",null,"Brighton"]
["   Time",null,"11.58",null,"11.86",null,"11.97",null,"12.09",null,"12.7",null,null,null,null,null,null,null,null,"When you left mouse click on a cell where you will enter"]
[null,null,null,null,null,null,null,null,null,null,null,null,null,null,null,null,null,null,null,"the Team, you will see a drop down button appear on the"]
["4 X 200 m Relay",null,null,null,null,null,null,null,null,null,null,null,null,null,null,null,null,null,null,"right of the cell with a downward pointing triangle in it."]
["   Team",null,"Brighton",null,"Westminster",null,"Thornton",null,null,null,null,null,null,null,null,null,null,null,null,"Click on that Button to make the Team list appear and click"]
["   Time",null,"1:47.49",null,"1:49",null,"1:50.60",null,null,null,null,null,null,null,null,null,null,null,null,"on team you want."]
[]
["1600 m Run"]
["   Name",null,"Rose",null,"Martinez",null,"Ortega",null,"Phun",null,null,null,null,null,null,null,null,null,null,"The results you enter on this page will update"]
["   Team",null,"Thornton",null,"Prairie View",null,"Prairie View",null,"Westminster",null,null,null,null,null,null,null,null,null,null,"the \"Boys Totals\" page and also update the "]
["   Time",null,"5:13.58",null,"5:32.72",null,"5:33.79",null,"5:51.72",null,null,null,null,null,null,null,null,null,null,"\"Boys - Overall for papers\" page."]
[]
["4 x 100 m Relay"]
["   Team",null,"Brighton",null,"Westminster",null,"Thornton"]
["   Time",null,"48.35",null,"51.7",null,"51.96"]
[]
["400 m Sprint"]
["   Name",null,"Macias",null,"Huffman",null,"Echols",null,"Murphy"]
["   Team",null,"Brighton",null,"Prairie View",null,"Brighton",null,"Thornton"]
["   Time",null,"56.53",null,"58.31",null,"58.41",null,"63.62"]
[]
["300 m L Hurdles"]
["   Name",null,"Robinson",null,"Martinez",null,"Gulley",null,"Kois"]
["   Team",null,"Prairie View",null,"Brighton",null,"Prairie View",null,"Thornton"]
["   Time",null,"45.97",null,"48.56",null,"49.44",null,"50.88"]
[]
["800 m Run"]
["   Name",null,"Joseph",null,"Rose",null,"Kramer",null,"Phung"]
["   Team",null,"Thornton",null,"Thornton",null,"Brighton",null,"Westminster"]
["   Time",null,"2:21.35",null,"2:21.60",null,"2:26.20",null,"2:34.17"]
[]
["200 m Sprint"]
["   Name",null,"Kreutzer",null,"Robinson",null,"Huffman",null,"Martinez"]
["   Team",null,"Prairie View",null,"Prairie View",null,"Prairie View",null,"Brighton"]
["   Time",null,"25.09",null,"25.61",null,"25.7",null,"25.9"]
[]
["3200 m Run"]
["   Name",null,"Phillips",null,"Kramer",null,"Wilson",null,"Toby"]
["   Team",null,"Thornton",null,"Brighton",null,"Brighton",null,"Prairie View"]
["   Time",null,"10:47.85",null,"12:03.38",null,"13:40.87",null,"13:54"]
[]
["4 X 400 m Relay"]
["   Team",null,"Brighton",null,"Westminster"]
["   Time",null,"4:16.40",null,"4:30.59"]
[]
["High Jump"]
["   Name",null,"Severence",null,"Ortega",null,"Martinez",null,"Lam",null,"Enriquez"]
["   Team",null,"Prairie View",null,"Prairie View",null,"Prairie View",null,"Westminster",null,"Westminster"]
["   Distance",null,"6'",null,"5'10\"",null,"5'6\"",null,"5'",null,"5'"]
[]
["Long Jump"]
["   Name",null,"Hazy",null,"Kreutzer",null,"Arellano",null,"Marsten"]
["   Team",null,"Brighton",null,"Prairie View",null,"Westminster",null,"Prairie View"]
["   Distance",null,"18'4\"",null,"17'3.5\"",null,"15'11\"",null,"14'11\""]
[]
["Triple Jump"]
["   Name",null,"Ortega",null,"Hazy",null,"Martinez"]
["   Team",null,"Prairie View",null,"Brighton",null,"Prairie View"]
["   Distance",null,"38'5\"",null,"37'9\"",null,"37'3.5\""]
[]
["Shot Put"]
["   Name",null,"Adkins",null,"Roth",null,"Coronel",null,"McConnell"]
["   Team",null,"Brighton",null,"Brighton",null,"Brighton",null,"Prairie View"]
["   Distance",null,"40'6\"",null,"35'11\"",null,"34'",null,"32'11\""]
[]
["Discus"]
["   Name",null,"Severence",null,"Montgomery",null,"Adkins",null,"McConnel"]
["   Team",null,"Prairie View",null,"Prairie View",null,"Brighton",null,"Prairie View"]
["   Distance",null,"97'2\"",null,"92'4'",null,"91'",null,"88'9\""]

{"sheet":"Boys Totals","index":6,"n_rows":41,"n_cols":23,"rows_kept":41,"cut":false,"hidden":false,"merged":[[0,2,0,6],[1,2,1,6]]}
["Date",null,{"$f":"Points!C40","v":"2013-04-03"}]
["Meet",null,{"$f":"Points!C41","v":"EMAC JV meet"}]
[]
["Event",null,{"$f":"IF(Teams!$B2=\" \",\"OK\",IF(Teams!$B2=Teams!$L$27,\"OK\",Teams!$B2))","v":"Brighton"},null,{"$f":"IF(Teams!$B3=\" \",\"OK\",IF(Teams!$B3=Teams!$L$27,\"OK\",Teams!$B3))","v":"Prairie View"},null,{"$f":"IF(Teams!$B4=\" \",\"OK\",IF(Teams!$B4=Teams!$L$27,\"OK\",Teams!$B4))","v":"Thornton"},null,{"$f":"IF(Teams!$B5=\" \",\"OK\",IF(Teams!$B5=Teams!$L$27,\"OK\",Teams!$B5))","v":"Westminster"},null,{"$f":"IF(Teams!$B6=\" \",\"OK\",IF(Teams!$B6=Teams!$L$27,\"OK\",Teams!$B6))","v":"OK"},null,{"$f":"IF(Teams!$B7=\" \",\"OK\",IF(Teams!$B7=Teams!$L$27,\"OK\",Teams!$B7))","v":"OK"},null,{"$f":"IF(Teams!$B8=\" \",\"OK\",IF(Teams!$B8=Teams!$L$27,\"OK\",Teams!$B8))","v":"OK"},null,{"$f":"IF(Teams!$B9=\" \",\"OK\",IF(Teams!$B9=Teams!$L$27,\"OK\",Teams!$B9))","v":"OK"},null,null,"Total Pts Awarded","Total Pts Avail"]
[]
[{"$f":"'Boys Results'!A10","v":"4 X 800 m Relay"},null,{"$f":"SUM(IF('Boys Results'!$C$11=C$4,Points!$C$36)+IF('Boys Results'!$E$11=C$4,Points!$D$36)+IF('Boys Results'!$G$11=C$4,Points!$E$36)+IF('Boys Results'!$I$11=C$4,Points!$F$36)+IF('Boys Results'!$K$11=C$4,Points!$G$36)+IF('Boys Results'!$M$11=C$4,Points!$H$36)+IF('Boys Results'!$O$11=C$4,Points!$I$36)+IF('Boys Results'!$Q$11=C$4,Points!$J$36)+0)","v":4},null,{"$f":"SUM(IF('Boys Results'!$C$11=E$4,Points!$C$36)+IF('Boys Results'!$E$11=E$4,Points!$D$36)+IF('Boys Results'!$G$11=E$4,Points!$E$36)+IF('Boys Results'!$I$11=E$4,Points!$F$36)+IF('Boys Results'!$K$11=E$4,Points!$G$36)+IF('Boys Results'!$M$11=E$4,Points!$H$36)+IF('Boys Results'!$O$11=E$4,Points!$I$36)+IF('Boys Results'!$Q$11=E$4,Points!$J$36)+0)","v":0},null,{"$f":"SUM(IF('Boys Results'!$C$11=G$4,Points!$C$36)+IF('Boys Results'!$E$11=G$4,Points!$D$36)+IF('Boys Results'!$G$11=G$4,Points!$E$36)+IF('Boys Results'!$I$11=G$4,Points!$F$36)+IF('Boys Results'!$K$11=G$4,Points!$G$36)+IF('Boys Results'!$M$11=G$4,Points!$H$36)+IF('Boys Results'!$O$11=G$4,Points!$I$36)+IF('Boys Results'!$Q$11=G$4,Points!$J$36)+0)","v":6},null,{"$f":"SUM(IF('Boys Results'!$C$11=I$4,Points!$C$36)+IF('Boys Results'!$E$11=I$4,Points!$D$36)+IF('Boys Results'!$G$11=I$4,Points!$E$36)+IF('Boys Results'!$I$11=I$4,Points!$F$36)+IF('Boys Results'!$K$11=I$4,Points!$G$36)+IF('Boys Results'!$M$11=I$4,Points!$H$36)+IF('Boys Results'!$O$11=I$4,Points!$I$36)+IF('Boys Results'!$Q$11=I$4,Points!$J$36)+0)","v":0},null,{"$f":"SUM(IF('Boys Results'!$C$11=K$4,Points!$C$36)+IF('Boys Results'!$E$11=K$4,Points!$D$36)+IF('Boys Results'!$G$11=K$4,Points!$E$36)+IF('Boys Results'!$I$11=K$4,Points!$F$36)+IF('Boys Results'!$K$11=K$4,Points!$G$36)+IF('Boys Results'!$M$11=K$4,Points!$H$36)+IF('Boys Results'!$O$11=K$4,Points!$I$36)+IF('Boys Results'!$Q$11=K$4,Points!$J$36)+0)","v":0},null,{"$f":"SUM(IF('Boys Results'!$C$11=M$4,Points!$C$36)+IF('Boys Results'!$E$11=M$4,Points!$D$36)+IF('Boys Results'!$G$11=M$4,Points!$E$36)+IF('Boys Results'!$I$11=M$4,Points!$F$36)+IF('Boys Results'!$K$11=M$4,Points!$G$36)+IF('Boys Results'!$M$11=M$4,Points!$H$36)+IF('Boys Results'!$O$11=M$4,Points!$I$36)+IF('Boys Results'!$Q$11=M$4,Points!$J$36)+0)","v":0},null,{"$f":"SUM(IF('Boys Results'!$C$11=O$4,Points!$C$36)+IF('Boys Results'!$E$11=O$4,Points!$D$36)+IF('Boys Results'!$G$11=O$4,Points!$E$36)+IF('Boys Results'!$I$11=O$4,Points!$F$36)+IF('Boys Results'!$K$11=O$4,Points!$G$36)+IF('Boys Results'!$M$11=O$4,Points!$H$36)+IF('Boys Results'!$O$11=O$4,Points!$I$36)+IF('Boys Results'!$Q$11=O$4,Points!$J$36)+0)","v":0},null,{"$f":"SUM(IF('Boys Results'!$C$11=Q$4,Points!$C$36)+IF('Boys Results'!$E$11=Q$4,Points!$D$36)+IF('Boys Results'!$G$11=Q$4,Points!$E$36)+IF('Boys Results'!$I$11=Q$4,Points!$F$36)+IF('Boys Results'!$K$11=Q$4,Points!$G$36)+IF('Boys Results'!$M$11=Q$4,Points!$H$36)+IF('Boys Results'!$O$11=Q$4,Points!$I$36)+IF('Boys Results'!$Q$11=Q$4,Points!$J$36)+0)","v":0},null,null,{"$f":"SUM(C6:R6)","v":10},{"$f":"Points!$L$36","v":12}]
[null,null,null,null,null,null,null,null,null,null,null,null,null,null,null,null,null,null,null,null,null,null,"You should not make any changes"]
[{"$f":"'Boys Results'!A14","v":"110 m H Hurdles"},null,{"$f":"SUM(IF('Boys Results'!$C$16=C$4,Points!$C$35)+IF('Boys Results'!$E$16=C$4,Points!$D$35)+IF('Boys Results'!$G$16=C$4,Points!$E$35)+IF('Boys Results'!$I$16=C$4,Points!$F$35)+IF('Boys Results'!$K$16=C$4,Points!$G$35)+IF('Boys Results'!$M$16=C$4,Points!$H$35)+IF('Boys Results'!$O$16=C$4,Points!$I$35)+IF('Boys Results'!$Q$16=C$4,Points!$J$35)+0)","v":0},null,{"$f":"SUM(IF('Boys Results'!$C$16=E$4,Points!$C$35)+IF('Boys Results'!$E$16=E$4,Points!$D$35)+IF('Boys Results'!$G$16=E$4,Points!$E$35)+IF('Boys Results'!$I$16=E$4,Points!$F$35)+IF('Boys Results'!$K$16=E$4,Points!$G$35)+IF('Boys Results'!$M$16=E$4,Points!$H$35)+IF('Boys Results'!$O$16=E$4,Points!$I$35)+IF('Boys Results'!$Q$16=E$4,Points!$J$35)+0)","v":4},null,{"$f":"SUM(IF('Boys Results'!$C$16=G$4,Points!$C$35)+IF('Boys Results'!$E$16=G$4,Points!$D$35)+IF('Boys Results'!$G$16=G$4,Points!$E$35)+IF('Boys Results'!$I$16=G$4,Points!$F$35)+IF('Boys Results'!$K$16=G$4,Points!$G$35)+IF('Boys Results'!$M$16=G$4,Points!$H$35)+IF('Boys Results'!$O$16=G$4,Points!$I$35)+IF('Boys Results'!$Q$16=G$4,Points!$J$35)+0)","v":0},null,{"$f":"SUM(IF('Boys Results'!$C$16=I$4,Points!$C$35)+IF('Boys Results'!$E$16=I$4,Points!$D$35)+IF('Boys Results'!$G$16=I$4,Points!$E$35)+IF('Boys Results'!$I$16=I$4,Points!$F$35)+IF('Boys Results'!$K$16=I$4,Points!$G$35)+IF('Boys Results'!$M$16=I$4,Points!$H$35)+IF('Boys Results'!$O$16=I$4,Points!$I$35)+IF('Boys Results'!$Q$16=I$4,Points!$J$35)+0)","v":11},null,{"$f":"SUM(IF('Boys Results'!$C$16=K$4,Points!$C$35)+IF('Boys Results'!$E$16=K$4,Points!$D$35)+IF('Boys Results'!$G$16=K$4,Points!$E$35)+IF('Boys Results'!$I$16=K$4,Points!$F$35)+IF('Boys Results'!$K$16=K$4,Points!$G$35)+IF('Boys Results'!$M$16=K$4,Points!$H$35)+IF('Boys Results'!$O$16=K$4,Points!$I$35)+IF('Boys Results'!$Q$16=K$4,Points!$J$35)+0)","v":0},null,{"$f":"SUM(IF('Boys Results'!$C$16=M$4,Points!$C$35)+IF('Boys Results'!$E$16=M$4,Points!$D$35)+IF('Boys Results'!$G$16=M$4,Points!$E$35)+IF('Boys Results'!$I$16=M$4,Points!$F$35)+IF('Boys Results'!$K$16=M$4,Points!$G$35)+IF('Boys Results'!$M$16=M$4,Points!$H$35)+IF('Boys Results'!$O$16=M$4,Points!$I$35)+IF('Boys Results'!$Q$16=M$4,Points!$J$35)+0)","v":0},null,{"$f":"SUM(IF('Boys Results'!$C$16=O$4,Points!$C$35)+IF('Boys Results'!$E$16=O$4,Points!$D$35)+IF('Boys Results'!$G$16=O$4,Points!$E$35)+IF('Boys Results'!$I$16=O$4,Points!$F$35)+IF('Boys Results'!$K$16=O$4,Points!$G$35)+IF('Boys Results'!$M$16=O$4,Points!$H$35)+IF('Boys Results'!$O$16=O$4,Points!$I$35)+IF('Boys Results'!$Q$16=O$4,Points!$J$35)+0)","v":0},null,{"$f":"SUM(IF('Boys Results'!$C$16=Q$4,Points!$C$35)+IF('Boys Results'!$E$16=Q$4,Points!$D$35)+IF('Boys Results'!$G$16=Q$4,Points!$E$35)+IF('Boys Results'!$I$16=Q$4,Points!$F$35)+IF('Boys Results'!$K$16=Q$4,Points!$G$35)+IF('Boys Results'!$M$16=Q$4,Points!$H$35)+IF('Boys Results'!$O$16=Q$4,Points!$I$35)+IF('Boys Results'!$Q$16=Q$4,Points!$J$35)+0)","v":0},null,null,{"$f":"SUM(C8:R8)","v":15},{"$f":"Points!$L$35","v":16},null,"on this page."]
[]
[{"$f":"'Boys Results'!A19","v":"100 m Sprint"},null,{"$f":"SUM(IF('Boys Results'!$C$21=C$4,Points!$C$35)+IF('Boys Results'!$E$21=C$4,Points!$D$35)+IF('Boys Results'!$G$21=C$4,Points!$E$35)+IF('Boys Results'!$I$21=C$4,Points!$F$35)+IF('Boys Results'!$K$21=C$4,Points!$G$35)+IF('Boys Results'!$M$21=C$4,Points!$H$35)+IF('Boys Results'!$O$21=C$4,Points!$I$35)+IF('Boys Results'!$Q$21=C$4,Points!$J$35)+0)","v":3},null,{"$f":"SUM(IF('Boys Results'!$C$21=E$4,Points!$C$35)+IF('Boys Results'!$E$21=E$4,Points!$D$35)+IF('Boys Results'!$G$21=E$4,Points!$E$35)+IF('Boys Results'!$I$21=E$4,Points!$F$35)+IF('Boys Results'!$K$21=E$4,Points!$G$35)+IF('Boys Results'!$M$21=E$4,Points!$H$35)+IF('Boys Results'!$O$21=E$4,Points!$I$35)+IF('Boys Results'!$Q$21=E$4,Points!$J$35)+0)","v":7},null,{"$f":"SUM(IF('Boys Results'!$C$21=G$4,Points!$C$35)+IF('Boys Results'!$E$21=G$4,Points!$D$35)+IF('Boys Results'!$G$21=G$4,Points!$E$35)+IF('Boys Results'!$I$21=G$4,Points!$F$35)+IF('Boys Results'!$K$21=G$4,Points!$G$35)+IF('Boys Results'!$M$21=G$4,Points!$H$35)+IF('Boys Results'!$O$21=G$4,Points!$I$35)+IF('Boys Results'!$Q$21=G$4,Points!$J$35)+0)","v":0},null,{"$f":"SUM(IF('Boys Results'!$C$21=I$4,Points!$C$35)+IF('Boys Results'!$E$21=I$4,Points!$D$35)+IF('Boys Results'!$G$21=I$4,Points!$E$35)+IF('Boys Results'!$I$21=I$4,Points!$F$35)+IF('Boys Results'!$K$21=I$4,Points!$G$35)+IF('Boys Results'!$M$21=I$4,Points!$H$35)+IF('Boys Results'!$O$21=I$4,Points!$I$35)+IF('Boys Results'!$Q$21=I$4,Points!$J$35)+0)","v":0},null,{"$f":"SUM(IF('Boys Results'!$C$21=K$4,Points!$C$35)+IF('Boys Results'!$E$21=K$4,Points!$D$35)+IF('Boys Results'!$G$21=K$4,Points!$E$35)+IF('Boys Results'!$I$21=K$4,Points!$F$35)+IF('Boys Results'!$K$21=K$4,Points!$G$35)+IF('Boys Results'!$M$21=K$4,Points!$H$35)+IF('Boys Results'!$O$21=K$4,Points!$I$35)+IF('Boys Results'!$Q$21=K$4,Points!$J$35)+0)","v":0},null,{"$f":"SUM(IF('Boys Results'!$C$21=M$4,Points!$C$35)+IF('Boys Results'!$E$21=M$4,Points!$D$35)+IF('Boys Results'!$G$21=M$4,Points!$E$35)+IF('Boys Results'!$I$21=M$4,Points!$F$35)+IF('Boys Results'!$K$21=M$4,Points!$G$35)+IF('Boys Results'!$M$21=M$4,Points!$H$35)+IF('Boys Results'!$O$21=M$4,Points!$I$35)+IF('Boys Results'!$Q$21=M$4,Points!$J$35)+0)","v":0},null,{"$f":"SUM(IF('Boys Results'!$C$21=O$4,Points!$C$35)+IF('Boys Results'!$E$21=O$4,Points!$D$35)+IF('Boys Results'!$G$21=O$4,Points!$E$35)+IF('Boys Results'!$I$21=O$4,Points!$F$35)+IF('Boys Results'!$K$21=O$4,Points!$G$35)+IF('Boys Results'!$M$21=O$4,Points!$H$35)+IF('Boys Results'!$O$21=O$4,Points!$I$35)+IF('Boys Results'!$Q$21=O$4,Points!$J$35)+0)","v":0},null,{"$f":"SUM(IF('Boys Results'!$C$21=Q$4,Points!$C$35)+IF('Boys Results'!$E$21=Q$4,Points!$D$35)+IF('Boys Results'!$G$21=Q$4,Points!$E$35)+IF('Boys Results'!$I$21=Q$4,Points!$F$35)+IF('Boys Results'!$K$21=Q$4,Points!$G$35)+IF('Boys Results'!$M$21=Q$4,Points!$H$35)+IF('Boys Results'!$O$21=Q$4,Points!$I$35)+IF('Boys Results'!$Q$21=Q$4,Points!$J$35)+0)","v":0},null,null,{"$f":"SUM(C10:R10)","v":10},{"$f":"Points!$L$35","v":16},null,"Total Pts Awarded, per event, should"]
[null,null,null,null,null,null,null,null,null,null,null,null,null,null,null,null,null,null,null,null,null,null,"be less than or equal to the Total Pts"]
[{"$f":"'Boys Results'!A24","v":"4 X 200 m Relay"},null,{"$f":"SUM(IF('Boys Results'!$C$25=C$4,Points!$C$36)+IF('Boys Results'!$E$25=C$4,Points!$D$36)+IF('Boys Results'!$G$25=C$4,Points!$E$36)+IF('Boys Results'!$I$25=C$4,Points!$F$36)+IF('Boys Results'!$K$25=C$4,Points!$G$36)+IF('Boys Results'!$M$25=C$4,Points!$H$36)+IF('Boys Results'!$O$25=C$4,Points!$I$36)+IF('Boys Results'!$Q$25=C$4,Points!$J$36)+0)","v":6},null,{"$f":"SUM(IF('Boys Results'!$C$25=E$4,Points!$C$36)+IF('Boys Results'!$E$25=E$4,Points!$D$36)+IF('Boys Results'!$G$25=E$4,Points!$E$36)+IF('Boys Results'!$I$25=E$4,Points!$F$36)+IF('Boys Results'!$K$25=E$4,Points!$G$36)+IF('Boys Results'!$M$25=E$4,Points!$H$36)+IF('Boys Results'!$O$25=E$4,Points!$I$36)+IF('Boys Results'!$Q$25=E$4,Points!$J$36)+0)","v":0},null,{"$f":"SUM(IF('Boys Results'!$C$25=G$4,Points!$C$36)+IF('Boys Results'!$E$25=G$4,Points!$D$36)+IF('Boys Results'!$G$25=G$4,Points!$E$36)+IF('Boys Results'!$I$25=G$4,Points!$F$36)+IF('Boys Results'!$K$25=G$4,Points!$G$36)+IF('Boys Results'!$M$25=G$4,Points!$H$36)+IF('Boys Results'!$O$25=G$4,Points!$I$36)+IF('Boys Results'!$Q$25=G$4,Points!$J$36)+0)","v":2},null,{"$f":"SUM(IF('Boys Results'!$C$25=I$4,Points!$C$36)+IF('Boys Results'!$E$25=I$4,Points!$D$36)+IF('Boys Results'!$G$25=I$4,Points!$E$36)+IF('Boys Results'!$I$25=I$4,Points!$F$36)+IF('Boys Results'!$K$25=I$4,Points!$G$36)+IF('Boys Results'!$M$25=I$4,Points!$H$36)+IF('Boys Results'!$O$25=I$4,Points!$I$36)+IF('Boys Results'!$Q$25=I$4,Points!$J$36)+0)","v":4},null,{"$f":"SUM(IF('Boys Results'!$C$25=K$4,Points!$C$36)+IF('Boys Results'!$E$25=K$4,Points!$D$36)+IF('Boys Results'!$G$25=K$4,Points!$E$36)+IF('Boys Results'!$I$25=K$4,Points!$F$36)+IF('Boys Results'!$K$25=K$4,Points!$G$36)+IF('Boys Results'!$M$25=K$4,Points!$H$36)+IF('Boys Results'!$O$25=K$4,Points!$I$36)+IF('Boys Results'!$Q$25=K$4,Points!$J$36)+0)","v":0},null,{"$f":"SUM(IF('Boys Results'!$C$25=M$4,Points!$C$36)+IF('Boys Results'!$E$25=M$4,Points!$D$36)+IF('Boys Results'!$G$25=M$4,Points!$E$36)+IF('Boys Results'!$I$25=M$4,Points!$F$36)+IF('Boys Results'!$K$25=M$4,Points!$G$36)+IF('Boys Results'!$M$25=M$4,Points!$H$36)+IF('Boys Results'!$O$25=M$4,Points!$I$36)+IF('Boys Results'!$Q$25=M$4,Points!$J$36)+0)","v":0},null,{"$f":"SUM(IF('Boys Results'!$C$25=O$4,Points!$C$36)+IF('Boys Results'!$E$25=O$4,Points!$D$36)+IF('Boys Results'!$G$25=O$4,Points!$E$36)+IF('Boys Results'!$I$25=O$4,Points!$F$36)+IF('Boys Results'!$K$25=O$4,Points!$G$36)+IF('Boys Results'!$M$25=O$4,Points!$H$36)+IF('Boys Results'!$O$25=O$4,Points!$I$36)+IF('Boys Results'!$Q$25=O$4,Points!$J$36)+0)","v":0},null,{"$f":"SUM(IF('Boys Results'!$C$25=Q$4,Points!$C$36)+IF('Boys Results'!$E$25=Q$4,Points!$D$36)+IF('Boys Results'!$G$25=Q$4,Points!$E$36)+IF('Boys Results'!$I$25=Q$4,Points!$F$36)+IF('Boys Results'!$K$25=Q$4,Points!$G$36)+IF('Boys Results'!$M$25=Q$4,Points!$H$36)+IF('Boys Results'!$O$25=Q$4,Points!$I$36)+IF('Boys Results'!$Q$25=Q$4,Points!$J$36)+0)","v":0},null,null,{"$f":"SUM(C12:R12)","v":12},{"$f":"Points!$L$36","v":12},null,"Avail, per event."]
[]
[{"$f":"'Boys Results'!A28","v":"1600 m Run"},null,{"$f":"SUM(IF('Boys Results'!$C$30=C$4,Points!$C$35)+IF('Boys Results'!$E$30=C$4,Points!$D$35)+IF('Boys Results'!$G$30=C$4,Points!$E$35)+IF('Boys Results'!$I$30=C$4,Points!$F$35)+IF('Boys Results'!$K$30=C$4,Points!$G$35)+IF('Boys Results'!$M$30=C$4,Points!$H$35)+IF('Boys Results'!$O$30=C$4,Points!$I$35)+IF('Boys Results'!$Q$30=C$4,Points!$J$35)+0)","v":0},null,{"$f":"SUM(IF('Boys Results'!$C$30=E$4,Points!$C$35)+IF('Boys Results'!$E$30=E$4,Points!$D$35)+IF('Boys Results'!$G$30=E$4,Points!$E$35)+IF('Boys Results'!$I$30=E$4,Points!$F$35)+IF('Boys Results'!$K$30=E$4,Points!$G$35)+IF('Boys Results'!$M$30=E$4,Points!$H$35)+IF('Boys Results'!$O$30=E$4,Points!$I$35)+IF('Boys Results'!$Q$30=E$4,Points!$J$35)+0)","v":7},null,{"$f":"SUM(IF('Boys Results'!$C$30=G$4,Points!$C$35)+IF('Boys Results'!$E$30=G$4,Points!$D$35)+IF('Boys Results'!$G$30=G$4,Points!$E$35)+IF('Boys Results'!$I$30=G$4,Points!$F$35)+IF('Boys Results'!$K$30=G$4,Points!$G$35)+IF('Boys Results'!$M$30=G$4,Points!$H$35)+IF('Boys Results'!$O$30=G$4,Points!$I$35)+IF('Boys Results'!$Q$30=G$4,Points!$J$35)+0)","v":6},null,{"$f":"SUM(IF('Boys Results'!$C$30=I$4,Points!$C$35)+IF('Boys Results'!$E$30=I$4,Points!$D$35)+IF('Boys Results'!$G$30=I$4,Points!$E$35)+IF('Boys Results'!$I$30=I$4,Points!$F$35)+IF('Boys Results'!$K$30=I$4,Points!$G$35)+IF('Boys Results'!$M$30=I$4,Points!$H$35)+IF('Boys Results'!$O$30=I$4,Points!$I$35)+IF('Boys Results'!$Q$30=I$4,Points!$J$35)+0)","v":2},null,{"$f":"SUM(IF('Boys Results'!$C$30=K$4,Points!$C$35)+IF('Boys Results'!$E$30=K$4,Points!$D$35)+IF('Boys Results'!$G$30=K$4,Points!$E$35)+IF('Boys Results'!$I$30=K$4,Points!$F$35)+IF('Boys Results'!$K$30=K$4,Points!$G$35)+IF('Boys Results'!$M$30=K$4,Points!$H$35)+IF('Boys Results'!$O$30=K$4,Points!$I$35)+IF('Boys Results'!$Q$30=K$4,Points!$J$35)+0)","v":0},null,{"$f":"SUM(IF('Boys Results'!$C$30=M$4,Points!$C$35)+IF('Boys Results'!$E$30=M$4,Points!$D$35)+IF('Boys Results'!$G$30=M$4,Points!$E$35)+IF('Boys Results'!$I$30=M$4,Points!$F$35)+IF('Boys Results'!$K$30=M$4,Points!$G$35)+IF('Boys Results'!$M$30=M$4,Points!$H$35)+IF('Boys Results'!$O$30=M$4,Points!$I$35)+IF('Boys Results'!$Q$30=M$4,Points!$J$35)+0)","v":0},null,{"$f":"SUM(IF('Boys Results'!$C$30=O$4,Points!$C$35)+IF('Boys Results'!$E$30=O$4,Points!$D$35)+IF('Boys Results'!$G$30=O$4,Points!$E$35)+IF('Boys Results'!$I$30=O$4,Points!$F$35)+IF('Boys Results'!$K$30=O$4,Points!$G$35)+IF('Boys Results'!$M$30=O$4,Points!$H$35)+IF('Boys Results'!$O$30=O$4,Points!$I$35)+IF('Boys Results'!$Q$30=O$4,Points!$J$35)+0)","v":0},null,{"$f":"SUM(IF('Boys Results'!$C$30=Q$4,Points!$C$35)+IF('Boys Results'!$E$30=Q$4,Points!$D$35)+IF('Boys Results'!$G$30=Q$4,Points!$E$35)+IF('Boys Results'!$I$30=Q$4,Points!$F$35)+IF('Boys Results'!$K$30=Q$4,Points!$G$35)+IF('Boys Results'!$M$30=Q$4,Points!$H$35)+IF('Boys Results'!$O$30=Q$4,Points!$I$35)+IF('Boys Results'!$Q$30=Q$4,Points!$J$35)+0)","v":0},null,null,{"$f":"SUM(C14:R14)","v":15},{"$f":"Points!$L$35","v":16},null,"IF it is less than, then either there was "]
[null,null,null,null,null,null,null,null,null,null,null,null,null,null,null,null,null,null,null,null,null,null,"not enough teams to place to score the"]
[{"$f":"'Boys Results'!A33","v":"4 x 100 m Relay"},null,{"$f":"SUM(IF('Boys Results'!$C$34=C$4,Points!$C$36)+IF('Boys Results'!$E$34=C$4,Points!$D$36)+IF('Boys Results'!$G$34=C$4,Points!$E$36)+IF('Boys Results'!$I$34=C$4,Points!$F$36)+IF('Boys Results'!$K$34=C$4,Points!$G$36)+IF('Boys Results'!$M$34=C$4,Points!$H$36)+IF('Boys Results'!$O$34=C$4,Points!$I$36)+IF('Boys Results'!$Q$34=C$4,Points!$J$36)+0)","v":6},null,{"$f":"SUM(IF('Boys Results'!$C$34=E$4,Points!$C$36)+IF('Boys Results'!$E$34=E$4,Points!$D$36)+IF('Boys Results'!$G$34=E$4,Points!$E$36)+IF('Boys Results'!$I$34=E$4,Points!$F$36)+IF('Boys Results'!$K$34=E$4,Points!$G$36)+IF('Boys Results'!$M$34=E$4,Points!$H$36)+IF('Boys Results'!$O$34=E$4,Points!$I$36)+IF('Boys Results'!$Q$34=E$4,Points!$J$36)+0)","v":0},null,{"$f":"SUM(IF('Boys Results'!$C$34=G$4,Points!$C$36)+IF('Boys Results'!$E$34=G$4,Points!$D$36)+IF('Boys Results'!$G$34=G$4,Points!$E$36)+IF('Boys Results'!$I$34=G$4,Points!$F$36)+IF('Boys Results'!$K$34=G$4,Points!$G$36)+IF('Boys Results'!$M$34=G$4,Points!$H$36)+IF('Boys Results'!$O$34=G$4,Points!$I$36)+IF('Boys Results'!$Q$34=G$4,Points!$J$36)+0)","v":2},null,{"$f":"SUM(IF('Boys Results'!$C$34=I$4,Points!$C$36)+IF('Boys Results'!$E$34=I$4,Points!$D$36)+IF('Boys Results'!$G$34=I$4,Points!$E$36)+IF('Boys Results'!$I$34=I$4,Points!$F$36)+IF('Boys Results'!$K$34=I$4,Points!$G$36)+IF('Boys Results'!$M$34=I$4,Points!$H$36)+IF('Boys Results'!$O$34=I$4,Points!$I$36)+IF('Boys Results'!$Q$34=I$4,Points!$J$36)+0)","v":4},null,{"$f":"SUM(IF('Boys Results'!$C$34=K$4,Points!$C$36)+IF('Boys Results'!$E$34=K$4,Points!$D$36)+IF('Boys Results'!$G$34=K$4,Points!$E$36)+IF('Boys Results'!$I$34=K$4,Points!$F$36)+IF('Boys Results'!$K$34=K$4,Points!$G$36)+IF('Boys Results'!$M$34=K$4,Points!$H$36)+IF('Boys Results'!$O$34=K$4,Points!$I$36)+IF('Boys Results'!$Q$34=K$4,Points!$J$36)+0)","v":0},null,{"$f":"SUM(IF('Boys Results'!$C$34=M$4,Points!$C$36)+IF('Boys Results'!$E$34=M$4,Points!$D$36)+IF('Boys Results'!$G$34=M$4,Points!$E$36)+IF('Boys Results'!$I$34=M$4,Points!$F$36)+IF('Boys Results'!$K$34=M$4,Points!$G$36)+IF('Boys Results'!$M$34=M$4,Points!$H$36)+IF('Boys Results'!$O$34=M$4,Points!$I$36)+IF('Boys Results'!$Q$34=M$4,Points!$J$36)+0)","v":0},null,{"$f":"SUM(IF('Boys Results'!$C$34=O$4,Points!$C$36)+IF('Boys Results'!$E$34=O$4,Points!$D$36)+IF('Boys Results'!$G$34=O$4,Points!$E$36)+IF('Boys Results'!$I$34=O$4,Points!$F$36)+IF('Boys Results'!$K$34=O$4,Points!$G$36)+IF('Boys Results'!$M$34=O$4,Points!$H$36)+IF('Boys Results'!$O$34=O$4,Points!$I$36)+IF('Boys Results'!$Q$34=O$4,Points!$J$36)+0)","v":0},null,{"$f":"SUM(IF('Boys Results'!$C$34=Q$4,Points!$C$36)+IF('Boys Results'!$E$34=Q$4,Points!$D$36)+IF('Boys Results'!$G$34=Q$4,Points!$E$36)+IF('Boys Results'!$I$34=Q$4,Points!$F$36)+IF('Boys Results'!$K$34=Q$4,Points!$G$36)+IF('Boys Results'!$M$34=Q$4,Points!$H$36)+IF('Boys Results'!$O$34=Q$4,Points!$I$36)+IF('Boys Results'!$Q$34=Q$4,Points!$J$36)+0)","v":0},null,null,{"$f":"SUM(C16:R16)","v":12},{"$f":"Points!$L$36","v":12},null,"available points or you did not record"]
[null,null,null,null,null,null,null,null,null,null,null,null,null,null,null,null,null,null,null,null,null,null,"all the results for that event."]
[{"$f":"'Boys Results'!A37","v":"400 m Sprint"},null,{"$f":"SUM(IF('Boys Results'!$C$39=C$4,Points!$C$35)+IF('Boys Results'!$E$39=C$4,Points!$D$35)+IF('Boys Results'!$G$39=C$4,Points!$E$35)+IF('Boys Results'!$I$39=C$4,Points!$F$35)+IF('Boys Results'!$K$39=C$4,Points!$G$35)+IF('Boys Results'!$M$39=C$4,Points!$H$35)+IF('Boys Results'!$O$39=C$4,Points!$I$35)+IF('Boys Results'!$Q$39=C$4,Points!$J$35)+0)","v":9},null,{"$f":"SUM(IF('Boys Results'!$C$39=E$4,Points!$C$35)+IF('Boys Results'!$E$39=E$4,Points!$D$35)+IF('Boys Results'!$G$39=E$4,Points!$E$35)+IF('Boys Results'!$I$39=E$4,Points!$F$35)+IF('Boys Results'!$K$39=E$4,Points!$G$35)+IF('Boys Results'!$M$39=E$4,Points!$H$35)+IF('Boys Results'!$O$39=E$4,Points!$I$35)+IF('Boys Results'!$Q$39=E$4,Points!$J$35)+0)","v":4},null,{"$f":"SUM(IF('Boys Results'!$C$39=G$4,Points!$C$35)+IF('Boys Results'!$E$39=G$4,Points!$D$35)+IF('Boys Results'!$G$39=G$4,Points!$E$35)+IF('Boys Results'!$I$39=G$4,Points!$F$35)+IF('Boys Results'!$K$39=G$4,Points!$G$35)+IF('Boys Results'!$M$39=G$4,Points!$H$35)+IF('Boys Results'!$O$39=G$4,Points!$I$35)+IF('Boys Results'!$Q$39=G$4,Points!$J$35)+0)","v":2},null,{"$f":"SUM(IF('Boys Results'!$C$39=I$4,Points!$C$35)+IF('Boys Results'!$E$39=I$4,Points!$D$35)+IF('Boys Results'!$G$39=I$4,Points!$E$35)+IF('Boys Results'!$I$39=I$4,Points!$F$35)+IF('Boys Results'!$K$39=I$4,Points!$G$35)+IF('Boys Results'!$M$39=I$4,Points!$H$35)+IF('Boys Results'!$O$39=I$4,Points!$I$35)+IF('Boys Results'!$Q$39=I$4,Points!$J$35)+0)","v":0},null,{"$f":"SUM(IF('Boys Results'!$C$39=K$4,Points!$C$35)+IF('Boys Results'!$E$39=K$4,Points!$D$35)+IF('Boys Results'!$G$39=K$4,Points!$E$35)+IF('Boys Results'!$I$39=K$4,Points!$F$35)+IF('Boys Results'!$K$39=K$4,Points!$G$35)+IF('Boys Results'!$M$39=K$4,Points!$H$35)+IF('Boys Results'!$O$39=K$4,Points!$I$35)+IF('Boys Results'!$Q$39=K$4,Points!$J$35)+0)","v":0},null,{"$f":"SUM(IF('Boys Results'!$C$39=M$4,Points!$C$35)+IF('Boys Results'!$E$39=M$4,Points!$D$35)+IF('Boys Results'!$G$39=M$4,Points!$E$35)+IF('Boys Results'!$I$39=M$4,Points!$F$35)+IF('Boys Results'!$K$39=M$4,Points!$G$35)+IF('Boys Results'!$M$39=M$4,Points!$H$35)+IF('Boys Results'!$O$39=M$4,Points!$I$35)+IF('Boys Results'!$Q$39=M$4,Points!$J$35)+0)","v":0},null,{"$f":"SUM(IF('Boys Results'!$C$39=O$4,Points!$C$35)+IF('Boys Results'!$E$39=O$4,Points!$D$35)+IF('Boys Results'!$G$39=O$4,Points!$E$35)+IF('Boys Results'!$I$39=O$4,Points!$F$35)+IF('Boys Results'!$K$39=O$4,Points!$G$35)+IF('Boys Results'!$M$39=O$4,Points!$H$35)+IF('Boys Results'!$O$39=O$4,Points!$I$35)+IF('Boys Results'!$Q$39=O$4,Points!$J$35)+0)","v":0},null,{"$f":"SUM(IF('Boys Results'!$C$39=Q$4,Points!$C$35)+IF('Boys Results'!$E$39=Q$4,Points!$D$35)+IF('Boys Results'!$G$39=Q$4,Points!$E$35)+IF('Boys Results'!$I$39=Q$4,Points!$F$35)+IF('Boys Results'!$K$39=Q$4,Points!$G$35)+IF('Boys Results'!$M$39=Q$4,Points!$H$35)+IF('Boys Results'!$O$39=Q$4,Points!$I$35)+IF('Boys Results'!$Q$39=Q$4,Points!$J$35)+0)","v":0},null,null,{"$f":"SUM(C18:R18)","v":15},{"$f":"Points!$L$35","v":16}]
[]
[{"$f":"'Boys Results'!A42","v":"300 m L Hurdles"},null,{"$f":"SUM(IF('Boys Results'!$C$44=C$4,Points!$C$35)+IF('Boys Results'!$E$44=C$4,Points!$D$35)+IF('Boys Results'!$G$44=C$4,Points!$E$35)+IF('Boys Results'!$I$44=C$4,Points!$F$35)+IF('Boys Results'!$K$44=C$4,Points!$G$35)+IF('Boys Results'!$M$44=C$4,Points!$H$35)+IF('Boys Results'!$O$44=C$4,Points!$I$35)+IF('Boys Results'!$Q$44=C$4,Points!$J$35)+0)","v":4},null,{"$f":"SUM(IF('Boys Results'!$C$44=E$4,Points!$C$35)+IF('Boys Results'!$E$44=E$4,Points!$D$35)+IF('Boys Results'!$G$44=E$4,Points!$E$35)+IF('Boys Results'!$I$44=E$4,Points!$F$35)+IF('Boys Results'!$K$44=E$4,Points!$G$35)+IF('Boys Results'!$M$44=E$4,Points!$H$35)+IF('Boys Results'!$O$44=E$4,Points!$I$35)+IF('Boys Results'!$Q$44=E$4,Points!$J$35)+0)","v":9},null,{"$f":"SUM(IF('Boys Results'!$C$44=G$4,Points!$C$35)+IF('Boys Results'!$E$44=G$4,Points!$D$35)+IF('Boys Results'!$G$44=G$4,Points!$E$35)+IF('Boys Results'!$I$44=G$4,Points!$F$35)+IF('Boys Results'!$K$44=G$4,Points!$G$35)+IF('Boys Results'!$M$44=G$4,Points!$H$35)+IF('Boys Results'!$O$44=G$4,Points!$I$35)+IF('Boys Results'!$Q$44=G$4,Points!$J$35)+0)","v":2},null,{"$f":"SUM(IF('Boys Results'!$C$44=I$4,Points!$C$35)+IF('Boys Results'!$E$44=I$4,Points!$D$35)+IF('Boys Results'!$G$44=I$4,Points!$E$35)+IF('Boys Results'!$I$44=I$4,Points!$F$35)+IF('Boys Results'!$K$44=I$4,Points!$G$35)+IF('Boys Results'!$M$44=I$4,Points!$H$35)+IF('Boys Results'!$O$44=I$4,Points!$I$35)+IF('Boys Results'!$Q$44=I$4,Points!$J$35)+0)","v":0},null,{"$f":"SUM(IF('Boys Results'!$C$44=K$4,Points!$C$35)+IF('Boys Results'!$E$44=K$4,Points!$D$35)+IF('Boys Results'!$G$44=K$4,Points!$E$35)+IF('Boys Results'!$I$44=K$4,Points!$F$35)+IF('Boys Results'!$K$44=K$4,Points!$G$35)+IF('Boys Results'!$M$44=K$4,Points!$H$35)+IF('Boys Results'!$O$44=K$4,Points!$I$35)+IF('Boys Results'!$Q$44=K$4,Points!$J$35)+0)","v":0},null,{"$f":"SUM(IF('Boys Results'!$C$44=M$4,Points!$C$35)+IF('Boys Results'!$E$44=M$4,Points!$D$35)+IF('Boys Results'!$G$44=M$4,Points!$E$35)+IF('Boys Results'!$I$44=M$4,Points!$F$35)+IF('Boys Results'!$K$44=M$4,Points!$G$35)+IF('Boys Results'!$M$44=M$4,Points!$H$35)+IF('Boys Results'!$O$44=M$4,Points!$I$35)+IF('Boys Results'!$Q$44=M$4,Points!$J$35)+0)","v":0},null,{"$f":"SUM(IF('Boys Results'!$C$44=O$4,Points!$C$35)+IF('Boys Results'!$E$44=O$4,Points!$D$35)+IF('Boys Results'!$G$44=O$4,Points!$E$35)+IF('Boys Results'!$I$44=O$4,Points!$F$35)+IF('Boys Results'!$K$44=O$4,Points!$G$35)+IF('Boys Results'!$M$44=O$4,Points!$H$35)+IF('Boys Results'!$O$44=O$4,Points!$I$35)+IF('Boys Results'!$Q$44=O$4,Points!$J$35)+0)","v":0},null,{"$f":"SUM(IF('Boys Results'!$C$44=Q$4,Points!$C$35)+IF('Boys Results'!$E$44=Q$4,Points!$D$35)+IF('Boys Results'!$G$44=Q$4,Points!$E$35)+IF('Boys Results'!$I$44=Q$4,Points!$F$35)+IF('Boys Results'!$K$44=Q$4,Points!$G$35)+IF('Boys Results'!$M$44=Q$4,Points!$H$35)+IF('Boys Results'!$O$44=Q$4,Points!$I$35)+IF('Boys Results'!$Q$44=Q$4,Points!$J$35)+0)","v":0},null,null,{"$f":"SUM(C20:R20)","v":15},{"$f":"Points!$L$35","v":16}]
[]
[{"$f":"'Boys Results'!A47","v":"800 m Run"},null,{"$f":"SUM(IF('Boys Results'!$C$49=C$4,Points!$C$35)+IF('Boys Results'!$E$49=C$4,Points!$D$35)+IF('Boys Results'!$G$49=C$4,Points!$E$35)+IF('Boys Results'!$I$49=C$4,Points!$F$35)+IF('Boys Results'!$K$49=C$4,Points!$G$35)+IF('Boys Results'!$M$49=C$4,Points!$H$35)+IF('Boys Results'!$O$49=C$4,Points!$I$35)+IF('Boys Results'!$Q$49=C$4,Points!$J$35)+0)","v":3},null,{"$f":"SUM(IF('Boys Results'!$C$49=E$4,Points!$C$35)+IF('Boys Results'!$E$49=E$4,Points!$D$35)+IF('Boys Results'!$G$49=E$4,Points!$E$35)+IF('Boys Results'!$I$49=E$4,Points!$F$35)+IF('Boys Results'!$K$49=E$4,Points!$G$35)+IF('Boys Results'!$M$49=E$4,Points!$H$35)+IF('Boys Results'!$O$49=E$4,Points!$I$35)+IF('Boys Results'!$Q$49=E$4,Points!$J$35)+0)","v":0},null,{"$f":"SUM(IF('Boys Results'!$C$49=G$4,Points!$C$35)+IF('Boys Results'!$E$49=G$4,Points!$D$35)+IF('Boys Results'!$G$49=G$4,Points!$E$35)+IF('Boys Results'!$I$49=G$4,Points!$F$35)+IF('Boys Results'!$K$49=G$4,Points!$G$35)+IF('Boys Results'!$M$49=G$4,Points!$H$35)+IF('Boys Results'!$O$49=G$4,Points!$I$35)+IF('Boys Results'!$Q$49=G$4,Points!$J$35)+0)","v":10},null,{"$f":"SUM(IF('Boys Results'!$C$49=I$4,Points!$C$35)+IF('Boys Results'!$E$49=I$4,Points!$D$35)+IF('Boys Results'!$G$49=I$4,Points!$E$35)+IF('Boys Results'!$I$49=I$4,Points!$F$35)+IF('Boys Results'!$K$49=I$4,Points!$G$35)+IF('Boys Results'!$M$49=I$4,Points!$H$35)+IF('Boys Results'!$O$49=I$4,Points!$I$35)+IF('Boys Results'!$Q$49=I$4,Points!$J$35)+0)","v":2},null,{"$f":"SUM(IF('Boys Results'!$C$49=K$4,Points!$C$35)+IF('Boys Results'!$E$49=K$4,Points!$D$35)+IF('Boys Results'!$G$49=K$4,Points!$E$35)+IF('Boys Results'!$I$49=K$4,Points!$F$35)+IF('Boys Results'!$K$49=K$4,Points!$G$35)+IF('Boys Results'!$M$49=K$4,Points!$H$35)+IF('Boys Results'!$O$49=K$4,Points!$I$35)+IF('Boys Results'!$Q$49=K$4,Points!$J$35)+0)","v":0},null,{"$f":"SUM(IF('Boys Results'!$C$49=M$4,Points!$C$35)+IF('Boys Results'!$E$49=M$4,Points!$D$35)+IF('Boys Results'!$G$49=M$4,Points!$E$35)+IF('Boys Results'!$I$49=M$4,Points!$F$35)+IF('Boys Results'!$K$49=M$4,Points!$G$35)+IF('Boys Results'!$M$49=M$4,Points!$H$35)+IF('Boys Results'!$O$49=M$4,Points!$I$35)+IF('Boys Results'!$Q$49=M$4,Points!$J$35)+0)","v":0},null,{"$f":"SUM(IF('Boys Results'!$C$49=O$4,Points!$C$35)+IF('Boys Results'!$E$49=O$4,Points!$D$35)+IF('Boys Results'!$G$49=O$4,Points!$E$35)+IF('Boys Results'!$I$49=O$4,Points!$F$35)+IF('Boys Results'!$K$49=O$4,Points!$G$35)+IF('Boys Results'!$M$49=O$4,Points!$H$35)+IF('Boys Results'!$O$49=O$4,Points!$I$35)+IF('Boys Results'!$Q$49=O$4,Points!$J$35)+0)","v":0},null,{"$f":"SUM(IF('Boys Results'!$C$49=Q$4,Points!$C$35)+IF('Boys Results'!$E$49=Q$4,Points!$D$35)+IF('Boys Results'!$G$49=Q$4,Points!$E$35)+IF('Boys Results'!$I$49=Q$4,Points!$F$35)+IF('Boys Results'!$K$49=Q$4,Points!$G$35)+IF('Boys Results'!$M$49=Q$4,Points!$H$35)+IF('Boys Results'!$O$49=Q$4,Points!$I$35)+IF('Boys Results'!$Q$49=Q$4,Points!$J$35)+0)","v":0},null,null,{"$f":"SUM(C22:R22)","v":15},{"$f":"Points!$L$35","v":16}]
[]
[{"$f":"'Boys Results'!A52","v":"200 m Sprint"},null,{"$f":"SUM(IF('Boys Results'!$C$54=C$4,Points!$C$35)+IF('Boys Results'!$E$54=C$4,Points!$D$35)+IF('Boys Results'!$G$54=C$4,Points!$E$35)+IF('Boys Results'!$I$54=C$4,Points!$F$35)+IF('Boys Results'!$K$54=C$4,Points!$G$35)+IF('Boys Results'!$M$54=C$4,Points!$H$35)+IF('Boys Results'!$O$54=C$4,Points!$I$35)+IF('Boys Results'!$Q$54=C$4,Points!$J$35)+0)","v":2},null,{"$f":"SUM(IF('Boys Results'!$C$54=E$4,Points!$C$35)+IF('Boys Results'!$E$54=E$4,Points!$D$35)+IF('Boys Results'!$G$54=E$4,Points!$E$35)+IF('Boys Results'!$I$54=E$4,Points!$F$35)+IF('Boys Results'!$K$54=E$4,Points!$G$35)+IF('Boys Results'!$M$54=E$4,Points!$H$35)+IF('Boys Results'!$O$54=E$4,Points!$I$35)+IF('Boys Results'!$Q$54=E$4,Points!$J$35)+0)","v":13},null,{"$f":"SUM(IF('Boys Results'!$C$54=G$4,Points!$C$35)+IF('Boys Results'!$E$54=G$4,Points!$D$35)+IF('Boys Results'!$G$54=G$4,Points!$E$35)+IF('Boys Results'!$I$54=G$4,Points!$F$35)+IF('Boys Results'!$K$54=G$4,Points!$G$35)+IF('Boys Results'!$M$54=G$4,Points!$H$35)+IF('Boys Results'!$O$54=G$4,Points!$I$35)+IF('Boys Results'!$Q$54=G$4,Points!$J$35)+0)","v":0},null,{"$f":"SUM(IF('Boys Results'!$C$54=I$4,Points!$C$35)+IF('Boys Results'!$E$54=I$4,Points!$D$35)+IF('Boys Results'!$G$54=I$4,Points!$E$35)+IF('Boys Results'!$I$54=I$4,Points!$F$35)+IF('Boys Results'!$K$54=I$4,Points!$G$35)+IF('Boys Results'!$M$54=I$4,Points!$H$35)+IF('Boys Results'!$O$54=I$4,Points!$I$35)+IF('Boys Results'!$Q$54=I$4,Points!$J$35)+0)","v":0},null,{"$f":"SUM(IF('Boys Results'!$C$54=K$4,Points!$C$35)+IF('Boys Results'!$E$54=K$4,Points!$D$35)+IF('Boys Results'!$G$54=K$4,Points!$E$35)+IF('Boys Results'!$I$54=K$4,Points!$F$35)+IF('Boys Results'!$K$54=K$4,Points!$G$35)+IF('Boys Results'!$M$54=K$4,Points!$H$35)+IF('Boys Results'!$O$54=K$4,Points!$I$35)+IF('Boys Results'!$Q$54=K$4,Points!$J$35)+0)","v":0},null,{"$f":"SUM(IF('Boys Results'!$C$54=M$4,Points!$C$35)+IF('Boys Results'!$E$54=M$4,Points!$D$35)+IF('Boys Results'!$G$54=M$4,Points!$E$35)+IF('Boys Results'!$I$54=M$4,Points!$F$35)+IF('Boys Results'!$K$54=M$4,Points!$G$35)+IF('Boys Results'!$M$54=M$4,Points!$H$35)+IF('Boys Results'!$O$54=M$4,Points!$I$35)+IF('Boys Results'!$Q$54=M$4,Points!$J$35)+0)","v":0},null,{"$f":"SUM(IF('Boys Results'!$C$54=O$4,Points!$C$35)+IF('Boys Results'!$E$54=O$4,Points!$D$35)+IF('Boys Results'!$G$54=O$4,Points!$E$35)+IF('Boys Results'!$I$54=O$4,Points!$F$35)+IF('Boys Results'!$K$54=O$4,Points!$G$35)+IF('Boys Results'!$M$54=O$4,Points!$H$35)+IF('Boys Results'!$O$54=O$4,Points!$I$35)+IF('Boys Results'!$Q$54=O$4,Points!$J$35)+0)","v":0},null,{"$f":"SUM(IF('Boys Results'!$C$54=Q$4,Points!$C$35)+IF('Boys Results'!$E$54=Q$4,Points!$D$35)+IF('Boys Results'!$G$54=Q$4,Points!$E$35)+IF('Boys Results'!$I$54=Q$4,Points!$F$35)+IF('Boys Results'!$K$54=Q$4,Points!$G$35)+IF('Boys Results'!$M$54=Q$4,Points!$H$35)+IF('Boys Results'!$O$54=Q$4,Points!$I$35)+IF('Boys Results'!$Q$54=Q$4,Points!$J$35)+0)","v":0},null,null,{"$f":"SUM(C24:R24)","v":15},{"$f":"Points!$L$35","v":16}]
[]
[{"$f":"'Boys Results'!A57","v":"3200 m Run"},null,{"$f":"SUM(IF('Boys Results'!$C$59=C$4,Points!$C$35)+IF('Boys Results'!$E$59=C$4,Points!$D$35)+IF('Boys Results'!$G$59=C$4,Points!$E$35)+IF('Boys Results'!$I$59=C$4,Points!$F$35)+IF('Boys Results'!$K$59=C$4,Points!$G$35)+IF('Boys Results'!$M$59=C$4,Points!$H$35)+IF('Boys Results'!$O$59=C$4,Points!$I$35)+IF('Boys Results'!$Q$59=C$4,Points!$J$35)+0)","v":7},null,{"$f":"SUM(IF('Boys Results'!$C$59=E$4,Points!$C$35)+IF('Boys Results'!$E$59=E$4,Points!$D$35)+IF('Boys Results'!$G$59=E$4,Points!$E$35)+IF('Boys Results'!$I$59=E$4,Points!$F$35)+IF('Boys Results'!$K$59=E$4,Points!$G$35)+IF('Boys Results'!$M$59=E$4,Points!$H$35)+IF('Boys Results'!$O$59=E$4,Points!$I$35)+IF('Boys Results'!$Q$59=E$4,Points!$J$35)+0)","v":2},null,{"$f":"SUM(IF('Boys Results'!$C$59=G$4,Points!$C$35)+IF('Boys Results'!$E$59=G$4,Points!$D$35)+IF('Boys Results'!$G$59=G$4,Points!$E$35)+IF('Boys Results'!$I$59=G$4,Points!$F$35)+IF('Boys Results'!$K$59=G$4,Points!$G$35)+IF('Boys Results'!$M$59=G$4,Points!$H$35)+IF('Boys Results'!$O$59=G$4,Points!$I$35)+IF('Boys Results'!$Q$59=G$4,Points!$J$35)+0)","v":6},null,{"$f":"SUM(IF('Boys Results'!$C$59=I$4,Points!$C$35)+IF('Boys Results'!$E$59=I$4,Points!$D$35)+IF('Boys Results'!$G$59=I$4,Points!$E$35)+IF('Boys Results'!$I$59=I$4,Points!$F$35)+IF('Boys Results'!$K$59=I$4,Points!$G$35)+IF('Boys Results'!$M$59=I$4,Points!$H$35)+IF('Boys Results'!$O$59=I$4,Points!$I$35)+IF('Boys Results'!$Q$59=I$4,Points!$J$35)+0)","v":0},null,{"$f":"SUM(IF('Boys Results'!$C$59=K$4,Points!$C$35)+IF('Boys Results'!$E$59=K$4,Points!$D$35)+IF('Boys Results'!$G$59=K$4,Points!$E$35)+IF('Boys Results'!$I$59=K$4,Points!$F$35)+IF('Boys Results'!$K$59=K$4,Points!$G$35)+IF('Boys Results'!$M$59=K$4,Points!$H$35)+IF('Boys Results'!$O$59=K$4,Points!$I$35)+IF('Boys Results'!$Q$59=K$4,Points!$J$35)+0)","v":0},null,{"$f":"SUM(IF('Boys Results'!$C$59=M$4,Points!$C$35)+IF('Boys Results'!$E$59=M$4,Points!$D$35)+IF('Boys Results'!$G$59=M$4,Points!$E$35)+IF('Boys Results'!$I$59=M$4,Points!$F$35)+IF('Boys Results'!$K$59=M$4,Points!$G$35)+IF('Boys Results'!$M$59=M$4,Points!$H$35)+IF('Boys Results'!$O$59=M$4,Points!$I$35)+IF('Boys Results'!$Q$59=M$4,Points!$J$35)+0)","v":0},null,{"$f":"SUM(IF('Boys Results'!$C$59=O$4,Points!$C$35)+IF('Boys Results'!$E$59=O$4,Points!$D$35)+IF('Boys Results'!$G$59=O$4,Points!$E$35)+IF('Boys Results'!$I$59=O$4,Points!$F$35)+IF('Boys Results'!$K$59=O$4,Points!$G$35)+IF('Boys Results'!$M$59=O$4,Points!$H$35)+IF('Boys Results'!$O$59=O$4,Points!$I$35)+IF('Boys Results'!$Q$59=O$4,Points!$J$35)+0)","v":0},null,{"$f":"SUM(IF('Boys Results'!$C$59=Q$4,Points!$C$35)+IF('Boys Results'!$E$59=Q$4,Points!$D$35)+IF('Boys Results'!$G$59=Q$4,Points!$E$35)+IF('Boys Results'!$I$59=Q$4,Points!$F$35)+IF('Boys Results'!$K$59=Q$4,Points!$G$35)+IF('Boys Results'!$M$59=Q$4,Points!$H$35)+IF('Boys Results'!$O$59=Q$4,Points!$I$35)+IF('Boys Results'!$Q$59=Q$4,Points!$J$35)+0)","v":0},null,null,{"$f":"SUM(C26:R26)","v":15},{"$f":"Points!$L$35","v":16}]
[]
[{"$f":"'Boys Results'!A62","v":"4 X 400 m Relay"},null,{"$f":"SUM(IF('Boys Results'!$C$63=C$4,Points!$C$36)+IF('Boys Results'!$E$63=C$4,Points!$D$36)+IF('Boys Results'!$G$63=C$4,Points!$E$36)+IF('Boys Results'!$I$63=C$4,Points!$F$36)+IF('Boys Results'!$K$63=C$4,Points!$G$36)+IF('Boys Results'!$M$63=C$4,Points!$H$36)+IF('Boys Results'!$O$63=C$4,Points!$I$36)+IF('Boys Results'!$Q$63=C$4,Points!$J$36)+0)","v":6},null,{"$f":"SUM(IF('Boys Results'!$C$63=E$4,Points!$C$36)+IF('Boys Results'!$E$63=E$4,Points!$D$36)+IF('Boys Results'!$G$63=E$4,Points!$E$36)+IF('Boys Results'!$I$63=E$4,Points!$F$36)+IF('Boys Results'!$K$63=E$4,Points!$G$36)+IF('Boys Results'!$M$63=E$4,Points!$H$36)+IF('Boys Results'!$O$63=E$4,Points!$I$36)+IF('Boys Results'!$Q$63=E$4,Points!$J$36)+0)","v":0},null,{"$f":"SUM(IF('Boys Results'!$C$63=G$4,Points!$C$36)+IF('Boys Results'!$E$63=G$4,Points!$D$36)+IF('Boys Results'!$G$63=G$4,Points!$E$36)+IF('Boys Results'!$I$63=G$4,Points!$F$36)+IF('Boys Results'!$K$63=G$4,Points!$G$36)+IF('Boys Results'!$M$63=G$4,Points!$H$36)+IF('Boys Results'!$O$63=G$4,Points!$I$36)+IF('Boys Results'!$Q$63=G$4,Points!$J$36)+0)","v":0},null,{"$f":"SUM(IF('Boys Results'!$C$63=I$4,Points!$C$36)+IF('Boys Results'!$E$63=I$4,Points!$D$36)+IF('Boys Results'!$G$63=I$4,Points!$E$36)+IF('Boys Results'!$I$63=I$4,Points!$F$36)+IF('Boys Results'!$K$63=I$4,Points!$G$36)+IF('Boys Results'!$M$63=I$4,Points!$H$36)+IF('Boys Results'!$O$63=I$4,Points!$I$36)+IF('Boys Results'!$Q$63=I$4,Points!$J$36)+0)","v":4},null,{"$f":"SUM(IF('Boys Results'!$C$63=K$4,Points!$C$36)+IF('Boys Results'!$E$63=K$4,Points!$D$36)+IF('Boys Results'!$G$63=K$4,Points!$E$36)+IF('Boys Results'!$I$63=K$4,Points!$F$36)+IF('Boys Results'!$K$63=K$4,Points!$G$36)+IF('Boys Results'!$M$63=K$4,Points!$H$36)+IF('Boys Results'!$O$63=K$4,Points!$I$36)+IF('Boys Results'!$Q$63=K$4,Points!$J$36)+0)","v":0},null,{"$f":"SUM(IF('Boys Results'!$C$63=M$4,Points!$C$36)+IF('Boys Results'!$E$63=M$4,Points!$D$36)+IF('Boys Results'!$G$63=M$4,Points!$E$36)+IF('Boys Results'!$I$63=M$4,Points!$F$36)+IF('Boys Results'!$K$63=M$4,Points!$G$36)+IF('Boys Results'!$M$63=M$4,Points!$H$36)+IF('Boys Results'!$O$63=M$4,Points!$I$36)+IF('Boys Results'!$Q$63=M$4,Points!$J$36)+0)","v":0},null,{"$f":"SUM(IF('Boys Results'!$C$63=O$4,Points!$C$36)+IF('Boys Results'!$E$63=O$4,Points!$D$36)+IF('Boys Results'!$G$63=O$4,Points!$E$36)+IF('Boys Results'!$I$63=O$4,Points!$F$36)+IF('Boys Results'!$K$63=O$4,Points!$G$36)+IF('Boys Results'!$M$63=O$4,Points!$H$36)+IF('Boys Results'!$O$63=O$4,Points!$I$36)+IF('Boys Results'!$Q$63=O$4,Points!$J$36)+0)","v":0},null,{"$f":"SUM(IF('Boys Results'!$C$63=Q$4,Points!$C$36)+IF('Boys Results'!$E$63=Q$4,Points!$D$36)+IF('Boys Results'!$G$63=Q$4,Points!$E$36)+IF('Boys Results'!$I$63=Q$4,Points!$F$36)+IF('Boys Results'!$K$63=Q$4,Points!$G$36)+IF('Boys Results'!$M$63=Q$4,Points!$H$36)+IF('Boys Results'!$O$63=Q$4,Points!$I$36)+IF('Boys Results'!$Q$63=Q$4,Points!$J$36)+0)","v":0},null,null,{"$f":"SUM(C28:R28)","v":10},{"$f":"Points!$L$36","v":12}]
[]
[{"$f":"'Boys Results'!A66","v":"High Jump"},null,{"$f":"SUM(IF('Boys Results'!$C$68=C$4,Points!$C$35)+IF('Boys Results'!$E$68=C$4,Points!$D$35)+IF('Boys Results'!$G$68=C$4,Points!$E$35)+IF('Boys Results'!$I$68=C$4,Points!$F$35)+IF('Boys Results'!$K$68=C$4,Points!$G$35)+IF('Boys Results'!$M$68=C$4,Points!$H$35)+IF('Boys Results'!$O$68=C$4,Points!$I$35)+IF('Boys Results'!$Q$68=C$4,Points!$J$35)+0)","v":0},null,{"$f":"SUM(IF('Boys Results'!$C$68=E$4,Points!$C$35)+IF('Boys Results'!$E$68=E$4,Points!$D$35)+IF('Boys Results'!$G$68=E$4,Points!$E$35)+IF('Boys Results'!$I$68=E$4,Points!$F$35)+IF('Boys Results'!$K$68=E$4,Points!$G$35)+IF('Boys Results'!$M$68=E$4,Points!$H$35)+IF('Boys Results'!$O$68=E$4,Points!$I$35)+IF('Boys Results'!$Q$68=E$4,Points!$J$35)+0)","v":13},null,{"$f":"SUM(IF('Boys Results'!$C$68=G$4,Points!$C$35)+IF('Boys Results'!$E$68=G$4,Points!$D$35)+IF('Boys Results'!$G$68=G$4,Points!$E$35)+IF('Boys Results'!$I$68=G$4,Points!$F$35)+IF('Boys Results'!$K$68=G$4,Points!$G$35)+IF('Boys Results'!$M$68=G$4,Points!$H$35)+IF('Boys Results'!$O$68=G$4,Points!$I$35)+IF('Boys Results'!$Q$68=G$4,Points!$J$35)+0)","v":0},null,{"$f":"SUM(IF('Boys Results'!$C$68=I$4,Points!$C$35)+IF('Boys Results'!$E$68=I$4,Points!$D$35)+IF('Boys Results'!$G$68=I$4,Points!$E$35)+IF('Boys Results'!$I$68=I$4,Points!$F$35)+IF('Boys Results'!$K$68=I$4,Points!$G$35)+IF('Boys Results'!$M$68=I$4,Points!$H$35)+IF('Boys Results'!$O$68=I$4,Points!$I$35)+IF('Boys Results'!$Q$68=I$4,Points!$J$35)+0)","v":3},null,{"$f":"SUM(IF('Boys Results'!$C$68=K$4,Points!$C$35)+IF('Boys Results'!$E$68=K$4,Points!$D$35)+IF('Boys Results'!$G$68=K$4,Points!$E$35)+IF('Boys Results'!$I$68=K$4,Points!$F$35)+IF('Boys Results'!$K$68=K$4,Points!$G$35)+IF('Boys Results'!$M$68=K$4,Points!$H$35)+IF('Boys Results'!$O$68=K$4,Points!$I$35)+IF('Boys Results'!$Q$68=K$4,Points!$J$35)+0)","v":0},null,{"$f":"SUM(IF('Boys Results'!$C$68=M$4,Points!$C$35)+IF('Boys Results'!$E$68=M$4,Points!$D$35)+IF('Boys Results'!$G$68=M$4,Points!$E$35)+IF('Boys Results'!$I$68=M$4,Points!$F$35)+IF('Boys Results'!$K$68=M$4,Points!$G$35)+IF('Boys Results'!$M$68=M$4,Points!$H$35)+IF('Boys Results'!$O$68=M$4,Points!$I$35)+IF('Boys Results'!$Q$68=M$4,Points!$J$35)+0)","v":0},null,{"$f":"SUM(IF('Boys Results'!$C$68=O$4,Points!$C$35)+IF('Boys Results'!$E$68=O$4,Points!$D$35)+IF('Boys Results'!$G$68=O$4,Points!$E$35)+IF('Boys Results'!$I$68=O$4,Points!$F$35)+IF('Boys Results'!$K$68=O$4,Points!$G$35)+IF('Boys Results'!$M$68=O$4,Points!$H$35)+IF('Boys Results'!$O$68=O$4,Points!$I$35)+IF('Boys Results'!$Q$68=O$4,Points!$J$35)+0)","v":0},null,{"$f":"SUM(IF('Boys Results'!$C$68=Q$4,Points!$C$35)+IF('Boys Results'!$E$68=Q$4,Points!$D$35)+IF('Boys Results'!$G$68=Q$4,Points!$E$35)+IF('Boys Results'!$I$68=Q$4,Points!$F$35)+IF('Boys Results'!$K$68=Q$4,Points!$G$35)+IF('Boys Results'!$M$68=Q$4,Points!$H$35)+IF('Boys Results'!$O$68=Q$4,Points!$I$35)+IF('Boys Results'!$Q$68=Q$4,Points!$J$35)+0)","v":0},null,null,{"$f":"SUM(C30:R30)","v":16},{"$f":"Points!$L$35","v":16}]
[]
[{"$f":"'Boys Results'!A71","v":"Long Jump"},null,{"$f":"SUM(IF('Boys Results'!$C$73=C$4,Points!$C$35)+IF('Boys Results'!$E$73=C$4,Points!$D$35)+IF('Boys Results'!$G$73=C$4,Points!$E$35)+IF('Boys Results'!$I$73=C$4,Points!$F$35)+IF('Boys Results'!$K$73=C$4,Points!$G$35)+IF('Boys Results'!$M$73=C$4,Points!$H$35)+IF('Boys Results'!$O$73=C$4,Points!$I$35)+IF('Boys Results'!$Q$73=C$4,Points!$J$35)+0)","v":6},null,{"$f":"SUM(IF('Boys Results'!$C$73=E$4,Points!$C$35)+IF('Boys Results'!$E$73=E$4,Points!$D$35)+IF('Boys Results'!$G$73=E$4,Points!$E$35)+IF('Boys Results'!$I$73=E$4,Points!$F$35)+IF('Boys Results'!$K$73=E$4,Points!$G$35)+IF('Boys Results'!$M$73=E$4,Points!$H$35)+IF('Boys Results'!$O$73=E$4,Points!$I$35)+IF('Boys Results'!$Q$73=E$4,Points!$J$35)+0)","v":6},null,{"$f":"SUM(IF('Boys Results'!$C$73=G$4,Points!$C$35)+IF('Boys Results'!$E$73=G$4,Points!$D$35)+IF('Boys Results'!$G$73=G$4,Points!$E$35)+IF('Boys Results'!$I$73=G$4,Points!$F$35)+IF('Boys Results'!$K$73=G$4,Points!$G$35)+IF('Boys Results'!$M$73=G$4,Points!$H$35)+IF('Boys Results'!$O$73=G$4,Points!$I$35)+IF('Boys Results'!$Q$73=G$4,Points!$J$35)+0)","v":0},null,{"$f":"SUM(IF('Boys Results'!$C$73=I$4,Points!$C$35)+IF('Boys Results'!$E$73=I$4,Points!$D$35)+IF('Boys Results'!$G$73=I$4,Points!$E$35)+IF('Boys Results'!$I$73=I$4,Points!$F$35)+IF('Boys Results'!$K$73=I$4,Points!$G$35)+IF('Boys Results'!$M$73=I$4,Points!$H$35)+IF('Boys Results'!$O$73=I$4,Points!$I$35)+IF('Boys Results'!$Q$73=I$4,Points!$J$35)+0)","v":3},null,{"$f":"SUM(IF('Boys Results'!$C$73=K$4,Points!$C$35)+IF('Boys Results'!$E$73=K$4,Points!$D$35)+IF('Boys Results'!$G$73=K$4,Points!$E$35)+IF('Boys Results'!$I$73=K$4,Points!$F$35)+IF('Boys Results'!$K$73=K$4,Points!$G$35)+IF('Boys Results'!$M$73=K$4,Points!$H$35)+IF('Boys Results'!$O$73=K$4,Points!$I$35)+IF('Boys Results'!$Q$73=K$4,Points!$J$35)+0)","v":0},null,{"$f":"SUM(IF('Boys Results'!$C$73=M$4,Points!$C$35)+IF('Boys Results'!$E$73=M$4,Points!$D$35)+IF('Boys Results'!$G$73=M$4,Points!$E$35)+IF('Boys Results'!$I$73=M$4,Points!$F$35)+IF('Boys Results'!$K$73=M$4,Points!$G$35)+IF('Boys Results'!$M$73=M$4,Points!$H$35)+IF('Boys Results'!$O$73=M$4,Points!$I$35)+IF('Boys Results'!$Q$73=M$4,Points!$J$35)+0)","v":0},null,{"$f":"SUM(IF('Boys Results'!$C$73=O$4,Points!$C$35)+IF('Boys Results'!$E$73=O$4,Points!$D$35)+IF('Boys Results'!$G$73=O$4,Points!$E$35)+IF('Boys Results'!$I$73=O$4,Points!$F$35)+IF('Boys Results'!$K$73=O$4,Points!$G$35)+IF('Boys Results'!$M$73=O$4,Points!$H$35)+IF('Boys Results'!$O$73=O$4,Points!$I$35)+IF('Boys Results'!$Q$73=O$4,Points!$J$35)+0)","v":0},null,{"$f":"SUM(IF('Boys Results'!$C$73=Q$4,Points!$C$35)+IF('Boys Results'!$E$73=Q$4,Points!$D$35)+IF('Boys Results'!$G$73=Q$4,Points!$E$35)+IF('Boys Results'!$I$73=Q$4,Points!$F$35)+IF('Boys Results'!$K$73=Q$4,Points!$G$35)+IF('Boys Results'!$M$73=Q$4,Points!$H$35)+IF('Boys Results'!$O$73=Q$4,Points!$I$35)+IF('Boys Results'!$Q$73=Q$4,Points!$J$35)+0)","v":0},null,null,{"$f":"SUM(C32:R32)","v":15},{"$f":"Points!$L$35","v":16}]
[]
[{"$f":"'Boys Results'!A76","v":"Triple Jump"},null,{"$f":"SUM(IF('Boys Results'!$C$78=C$4,Points!$C$35)+IF('Boys Results'!$E$78=C$4,Points!$D$35)+IF('Boys Results'!$G$78=C$4,Points!$E$35)+IF('Boys Results'!$I$78=C$4,Points!$F$35)+IF('Boys Results'!$K$78=C$4,Points!$G$35)+IF('Boys Results'!$M$78=C$4,Points!$H$35)+IF('Boys Results'!$O$78=C$4,Points!$I$35)+IF('Boys Results'!$Q$78=C$4,Points!$J$35)+0)","v":4},null,{"$f":"SUM(IF('Boys Results'!$C$78=E$4,Points!$C$35)+IF('Boys Results'!$E$78=E$4,Points!$D$35)+IF('Boys Results'!$G$78=E$4,Points!$E$35)+IF('Boys Results'!$I$78=E$4,Points!$F$35)+IF('Boys Results'!$K$78=E$4,Points!$G$35)+IF('Boys Results'!$M$78=E$4,Points!$H$35)+IF('Boys Results'!$O$78=E$4,Points!$I$35)+IF('Boys Results'!$Q$78=E$4,Points!$J$35)+0)","v":9},null,{"$f":"SUM(IF('Boys Results'!$C$78=G$4,Points!$C$35)+IF('Boys Results'!$E$78=G$4,Points!$D$35)+IF('Boys Results'!$G$78=G$4,Points!$E$35)+IF('Boys Results'!$I$78=G$4,Points!$F$35)+IF('Boys Results'!$K$78=G$4,Points!$G$35)+IF('Boys Results'!$M$78=G$4,Points!$H$35)+IF('Boys Results'!$O$78=G$4,Points!$I$35)+IF('Boys Results'!$Q$78=G$4,Points!$J$35)+0)","v":0},null,{"$f":"SUM(IF('Boys Results'!$C$78=I$4,Points!$C$35)+IF('Boys Results'!$E$78=I$4,Points!$D$35)+IF('Boys Results'!$G$78=I$4,Points!$E$35)+IF('Boys Results'!$I$78=I$4,Points!$F$35)+IF('Boys Results'!$K$78=I$4,Points!$G$35)+IF('Boys Results'!$M$78=I$4,Points!$H$35)+IF('Boys Results'!$O$78=I$4,Points!$I$35)+IF('Boys Results'!$Q$78=I$4,Points!$J$35)+0)","v":0},null,{"$f":"SUM(IF('Boys Results'!$C$78=K$4,Points!$C$35)+IF('Boys Results'!$E$78=K$4,Points!$D$35)+IF('Boys Results'!$G$78=K$4,Points!$E$35)+IF('Boys Results'!$I$78=K$4,Points!$F$35)+IF('Boys Results'!$K$78=K$4,Points!$G$35)+IF('Boys Results'!$M$78=K$4,Points!$H$35)+IF('Boys Results'!$O$78=K$4,Points!$I$35)+IF('Boys Results'!$Q$78=K$4,Points!$J$35)+0)","v":0},null,{"$f":"SUM(IF('Boys Results'!$C$78=M$4,Points!$C$35)+IF('Boys Results'!$E$78=M$4,Points!$D$35)+IF('Boys Results'!$G$78=M$4,Points!$E$35)+IF('Boys Results'!$I$78=M$4,Points!$F$35)+IF('Boys Results'!$K$78=M$4,Points!$G$35)+IF('Boys Results'!$M$78=M$4,Points!$H$35)+IF('Boys Results'!$O$78=M$4,Points!$I$35)+IF('Boys Results'!$Q$78=M$4,Points!$J$35)+0)","v":0},null,{"$f":"SUM(IF('Boys Results'!$C$78=O$4,Points!$C$35)+IF('Boys Results'!$E$78=O$4,Points!$D$35)+IF('Boys Results'!$G$78=O$4,Points!$E$35)+IF('Boys Results'!$I$78=O$4,Points!$F$35)+IF('Boys Results'!$K$78=O$4,Points!$G$35)+IF('Boys Results'!$M$78=O$4,Points!$H$35)+IF('Boys Results'!$O$78=O$4,Points!$I$35)+IF('Boys Results'!$Q$78=O$4,Points!$J$35)+0)","v":0},null,{"$f":"SUM(IF('Boys Results'!$C$78=Q$4,Points!$C$35)+IF('Boys Results'!$E$78=Q$4,Points!$D$35)+IF('Boys Results'!$G$78=Q$4,Points!$E$35)+IF('Boys Results'!$I$78=Q$4,Points!$F$35)+IF('Boys Results'!$K$78=Q$4,Points!$G$35)+IF('Boys Results'!$M$78=Q$4,Points!$H$35)+IF('Boys Results'!$O$78=Q$4,Points!$I$35)+IF('Boys Results'!$Q$78=Q$4,Points!$J$35)+0)","v":0},null,null,{"$f":"SUM(C34:R34)","v":13},{"$f":"Points!$L$35","v":16}]
[]
[{"$f":"'Boys Results'!A81","v":"Shot Put"},null,{"$f":"SUM(IF('Boys Results'!$C$83=C$4,Points!$C$35)+IF('Boys Results'!$E$83=C$4,Points!$D$35)+IF('Boys Results'!$G$83=C$4,Points!$E$35)+IF('Boys Results'!$I$83=C$4,Points!$F$35)+IF('Boys Results'!$K$83=C$4,Points!$G$35)+IF('Boys Results'!$M$83=C$4,Points!$H$35)+IF('Boys Results'!$O$83=C$4,Points!$I$35)+IF('Boys Results'!$Q$83=C$4,Points!$J$35)+0)","v":13},null,{"$f":"SUM(IF('Boys Results'!$C$83=E$4,Points!$C$35)+IF('Boys Results'!$E$83=E$4,Points!$D$35)+IF('Boys Results'!$G$83=E$4,Points!$E$35)+IF('Boys Results'!$I$83=E$4,Points!$F$35)+IF('Boys Results'!$K$83=E$4,Points!$G$35)+IF('Boys Results'!$M$83=E$4,Points!$H$35)+IF('Boys Results'!$O$83=E$4,Points!$I$35)+IF('Boys Results'!$Q$83=E$4,Points!$J$35)+0)","v":2},null,{"$f":"SUM(IF('Boys Results'!$C$83=G$4,Points!$C$35)+IF('Boys Results'!$E$83=G$4,Points!$D$35)+IF('Boys Results'!$G$83=G$4,Points!$E$35)+IF('Boys Results'!$I$83=G$4,Points!$F$35)+IF('Boys Results'!$K$83=G$4,Points!$G$35)+IF('Boys Results'!$M$83=G$4,Points!$H$35)+IF('Boys Results'!$O$83=G$4,Points!$I$35)+IF('Boys Results'!$Q$83=G$4,Points!$J$35)+0)","v":0},null,{"$f":"SUM(IF('Boys Results'!$C$83=I$4,Points!$C$35)+IF('Boys Results'!$E$83=I$4,Points!$D$35)+IF('Boys Results'!$G$83=I$4,Points!$E$35)+IF('Boys Results'!$I$83=I$4,Points!$F$35)+IF('Boys Results'!$K$83=I$4,Points!$G$35)+IF('Boys Results'!$M$83=I$4,Points!$H$35)+IF('Boys Results'!$O$83=I$4,Points!$I$35)+IF('Boys Results'!$Q$83=I$4,Points!$J$35)+0)","v":0},null,{"$f":"SUM(IF('Boys Results'!$C$83=K$4,Points!$C$35)+IF('Boys Results'!$E$83=K$4,Points!$D$35)+IF('Boys Results'!$G$83=K$4,Points!$E$35)+IF('Boys Results'!$I$83=K$4,Points!$F$35)+IF('Boys Results'!$K$83=K$4,Points!$G$35)+IF('Boys Results'!$M$83=K$4,Points!$H$35)+IF('Boys Results'!$O$83=K$4,Points!$I$35)+IF('Boys Results'!$Q$83=K$4,Points!$J$35)+0)","v":0},null,{"$f":"SUM(IF('Boys Results'!$C$83=M$4,Points!$C$35)+IF('Boys Results'!$E$83=M$4,Points!$D$35)+IF('Boys Results'!$G$83=M$4,Points!$E$35)+IF('Boys Results'!$I$83=M$4,Points!$F$35)+IF('Boys Results'!$K$83=M$4,Points!$G$35)+IF('Boys Results'!$M$83=M$4,Points!$H$35)+IF('Boys Results'!$O$83=M$4,Points!$I$35)+IF('Boys Results'!$Q$83=M$4,Points!$J$35)+0)","v":0},null,{"$f":"SUM(IF('Boys Results'!$C$83=O$4,Points!$C$35)+IF('Boys Results'!$E$83=O$4,Points!$D$35)+IF('Boys Results'!$G$83=O$4,Points!$E$35)+IF('Boys Results'!$I$83=O$4,Points!$F$35)+IF('Boys Results'!$K$83=O$4,Points!$G$35)+IF('Boys Results'!$M$83=O$4,Points!$H$35)+IF('Boys Results'!$O$83=O$4,Points!$I$35)+IF('Boys Results'!$Q$83=O$4,Points!$J$35)+0)","v":0},null,{"$f":"SUM(IF('Boys Results'!$C$83=Q$4,Points!$C$35)+IF('Boys Results'!$E$83=Q$4,Points!$D$35)+IF('Boys Results'!$G$83=Q$4,Points!$E$35)+IF('Boys Results'!$I$83=Q$4,Points!$F$35)+IF('Boys Results'!$K$83=Q$4,Points!$G$35)+IF('Boys Results'!$M$83=Q$4,Points!$H$35)+IF('Boys Results'!$O$83=Q$4,Points!$I$35)+IF('Boys Results'!$Q$83=Q$4,Points!$J$35)+0)","v":0},null,null,{"$f":"SUM(C36:R36)","v":15},{"$f":"Points!$L$35","v":16}]
[]
[{"$f":"'Boys Results'!A86","v":"Discus"},null,{"$f":"SUM(IF('Boys Results'!$C$88=C$4,Points!$C$35)+IF('Boys Results'!$E$88=C$4,Points!$D$35)+IF('Boys Results'!$G$88=C$4,Points!$E$35)+IF('Boys Results'!$I$88=C$4,Points!$F$35)+IF('Boys Results'!$K$88=C$4,Points!$G$35)+IF('Boys Results'!$M$88=C$4,Points!$H$35)+IF('Boys Results'!$O$88=C$4,Points!$I$35)+IF('Boys Results'!$Q$88=C$4,Points!$J$35)+0)","v":3},null,{"$f":"SUM(IF('Boys Results'!$C$88=E$4,Points!$C$35)+IF('Boys Results'!$E$88=E$4,Points!$D$35)+IF('Boys Results'!$G$88=E$4,Points!$E$35)+IF('Boys Results'!$I$88=E$4,Points!$F$35)+IF('Boys Results'!$K$88=E$4,Points!$G$35)+IF('Boys Results'!$M$88=E$4,Points!$H$35)+IF('Boys Results'!$O$88=E$4,Points!$I$35)+IF('Boys Results'!$Q$88=E$4,Points!$J$35)+0)","v":12},null,{"$f":"SUM(IF('Boys Results'!$C$88=G$4,Points!$C$35)+IF('Boys Results'!$E$88=G$4,Points!$D$35)+IF('Boys Results'!$G$88=G$4,Points!$E$35)+IF('Boys Results'!$I$88=G$4,Points!$F$35)+IF('Boys Results'!$K$88=G$4,Points!$G$35)+IF('Boys Results'!$M$88=G$4,Points!$H$35)+IF('Boys Results'!$O$88=G$4,Points!$I$35)+IF('Boys Results'!$Q$88=G$4,Points!$J$35)+0)","v":0},null,{"$f":"SUM(IF('Boys Results'!$C$88=I$4,Points!$C$35)+IF('Boys Results'!$E$88=I$4,Points!$D$35)+IF('Boys Results'!$G$88=I$4,Points!$E$35)+IF('Boys Results'!$I$88=I$4,Points!$F$35)+IF('Boys Results'!$K$88=I$4,Points!$G$35)+IF('Boys Results'!$M$88=I$4,Points!$H$35)+IF('Boys Results'!$O$88=I$4,Points!$I$35)+IF('Boys Results'!$Q$88=I$4,Points!$J$35)+0)","v":0},null,{"$f":"SUM(IF('Boys Results'!$C$88=K$4,Points!$C$35)+IF('Boys Results'!$E$88=K$4,Points!$D$35)+IF('Boys Results'!$G$88=K$4,Points!$E$35)+IF('Boys Results'!$I$88=K$4,Points!$F$35)+IF('Boys Results'!$K$88=K$4,Points!$G$35)+IF('Boys Results'!$M$88=K$4,Points!$H$35)+IF('Boys Results'!$O$88=K$4,Points!$I$35)+IF('Boys Results'!$Q$88=K$4,Points!$J$35)+0)","v":0},null,{"$f":"SUM(IF('Boys Results'!$C$88=M$4,Points!$C$35)+IF('Boys Results'!$E$88=M$4,Points!$D$35)+IF('Boys Results'!$G$88=M$4,Points!$E$35)+IF('Boys Results'!$I$88=M$4,Points!$F$35)+IF('Boys Results'!$K$88=M$4,Points!$G$35)+IF('Boys Results'!$M$88=M$4,Points!$H$35)+IF('Boys Results'!$O$88=M$4,Points!$I$35)+IF('Boys Results'!$Q$88=M$4,Points!$J$35)+0)","v":0},null,{"$f":"SUM(IF('Boys Results'!$C$88=O$4,Points!$C$35)+IF('Boys Results'!$E$88=O$4,Points!$D$35)+IF('Boys Results'!$G$88=O$4,Points!$E$35)+IF('Boys Results'!$I$88=O$4,Points!$F$35)+IF('Boys Results'!$K$88=O$4,Points!$G$35)+IF('Boys Results'!$M$88=O$4,Points!$H$35)+IF('Boys Results'!$O$88=O$4,Points!$I$35)+IF('Boys Results'!$Q$88=O$4,Points!$J$35)+0)","v":0},null,{"$f":"SUM(IF('Boys Results'!$C$88=Q$4,Points!$C$35)+IF('Boys Results'!$E$88=Q$4,Points!$D$35)+IF('Boys Results'!$G$88=Q$4,Points!$E$35)+IF('Boys Results'!$I$88=Q$4,Points!$F$35)+IF('Boys Results'!$K$88=Q$4,Points!$G$35)+IF('Boys Results'!$M$88=Q$4,Points!$H$35)+IF('Boys Results'!$O$88=Q$4,Points!$I$35)+IF('Boys Results'!$Q$88=Q$4,Points!$J$35)+0)","v":0},null,null,{"$f":"SUM(C38:R38)","v":15},{"$f":"Points!$L$35","v":16}]
[]
[]
["Total",null,{"$f":"IF(C4=\"OK\",\" \",SUM(C6:C38))","v":76},null,{"$f":"IF(E4=\"OK\",\" \",SUM(E6:E38))","v":88},null,{"$f":"IF(G4=\"OK\",\" \",SUM(G6:G38))","v":36},null,{"$f":"IF(I4=\"OK\",\" \",SUM(I6:I38))","v":33},null,{"$f":"IF(K4=\"OK\",\" \",SUM(K6:K38))","v":" "},null,{"$f":"IF(M4=\"OK\",\" \",SUM(M6:M38))","v":" "},null,{"$f":"IF(O4=\"OK\",\" \",SUM(O6:O38))","v":" "},null,{"$f":"IF(Q4=\"OK\",\" \",SUM(Q6:Q38))","v":" "}]

{"sheet":"Girls - Overall for papers","index":7,"n_rows":93,"n_cols":13,"rows_kept":93,"cut":false,"hidden":false,"merged":[[0,0,0,10],[1,0,1,10],[3,0,3,10]]}
["Girls - EMAC JV Meet"]
["Hosted by Prairie View "]
[]
[{"$f":"Points!C40","v":"2013-04-03"}]
[]
["Team",null,"Pts",null,"Event",null,"1st Place",null,"2nd Place",null,"3rd Place",null,"4th Place"]
[]
[{"$f":"Teams!B3","v":"Prairie View"},null,{"$f":"'Girls Totals'!E43","v":71},null,{"$f":"'Girls Results'!A6","v":"800 m Sprint Medley Relay"}]
[{"$f":"Teams!B5","v":"Westminster"},null,{"$f":"'Girls Totals'!I43","v":7},null,"   Team",null,{"$f":"'Girls Results'!C7","v":"Thornton"},null,{"$f":"'Girls Results'!E7","v":"Brighton"},null,{"$f":"'Girls Results'!G7","v":"Prairie View"}]
[{"$f":"Teams!B4","v":"Thornton"},null,{"$f":"'Girls Totals'!G43","v":69},null,"   Time",null,{"$f":"'Girls Results'!C8","v":"2:12"},null,{"$f":"'Girls Results'!E8","v":"2:18"},null,{"$f":"'Girls Results'!G8","v":"2:20"}]
[]
[{"$f":"Teams!B2","v":"Brighton"},null,{"$f":"'Girls Totals'!C43","v":69},null,{"$f":"'Girls Results'!A10","v":"4 X 800 m Relay"},null,{"$f":"'Girls Results'!C11","v":"Brighton"}]
[{"$f":"Teams!B7","v":" "},null,{"$f":"'Girls Totals'!M43","v":" "},null,"   Team",null,{"$f":"'Girls Results'!C12","v":"13:16"}]
[{"$f":"Teams!B9","v":" "},null,{"$f":"'Girls Totals'!O43","v":" "},null,"   Time"]
[{"$f":"Teams!B10","v":" "},null,{"$f":"'Girls Totals'!Q43","v":" "}]
[{"$f":"Teams!B11","v":" "},null,{"$f":"'Girls Totals'!S43","v":" "},null,{"$f":"'Girls Results'!A14","v":"100 m H Hurdles"}]
[null,null,null,null,"   Name"]
[null,null,null,null,"   Team",null,{"$f":"'Girls Results'!C16","v":"Thornton"},null,{"$f":"'Girls Results'!E16","v":"Thornton"},null,{"$f":"'Girls Results'!G16","v":"Thornton"}]
[null,null,null,null,"   Time",null,{"$f":"'Girls Results'!C17","v":"21.6"},null,{"$f":"'Girls Results'!E17","v":"23.09"},null,{"$f":"'Girls Results'!G17","v":"24.15"}]
[]
["\"Ctrl + A\" will sort ",null,null,null,{"$f":"'Girls Results'!A19","v":"100 m Sprint"}]
["teams by points.",null,null,null,"   Name",null,{"$f":"'Girls Results'!C20","v":"Taylor"},null,{"$f":"'Girls Results'!E20","v":"Wright"},null,{"$f":"'Girls Results'!G20","v":"Alben"},null,{"$f":"'Girls Results'!I20","v":"Montoya"}]
[null,null,null,null,"   Team",null,{"$f":"'Girls Results'!C21","v":"Prairie View"},null,{"$f":"'Girls Results'!E21","v":"Thornton"},null,{"$f":"'Girls Results'!G21","v":"Prairie View"},null,{"$f":"'Girls Results'!I21","v":"Brighton"}]
[null,null,null,null,"   Time",null,{"$f":"'Girls Results'!C22","v":"13.62"},null,{"$f":"'Girls Results'!E22","v":"13.75"},null,{"$f":"'Girls Results'!G22","v":"14.36"},null,{"$f":"'Girls Results'!I22","v":"14.5"}]
[]
[null,null,null,null,{"$f":"'Girls Results'!A24","v":"4 X 200 m Relay"}]
[null,null,null,null,"   Team",null,{"$f":"'Girls Results'!C25","v":"Thornton"},null,{"$f":"'Girls Results'!E25","v":"Brighton"}]
[null,null,null,null,"   Time",null,{"$f":"'Girls Results'!C26","v":"2:09.77"},null,{"$f":"'Girls Results'!E26","v":"2:15.97"}]
[]
[null,null,null,null,{"$f":"'Girls Results'!A28","v":"1600 m Run"}]
[null,null,null,null,"   Name",null,{"$f":"'Girls Results'!C29","v":"Silva"},null,{"$f":"'Girls Results'!E29","v":"Wilkinson"},null,{"$f":"'Girls Results'!G29","v":"Cawley"},null,{"$f":"'Girls Results'!I29","v":"Bautista"}]
[null,null,null,null,"   Team",null,{"$f":"'Girls Results'!C30","v":"Brighton"},null,{"$f":"'Girls Results'!E30","v":"Prairie View"},null,{"$f":"'Girls Results'!G30","v":"Prairie View"},null,{"$f":"'Girls Results'!I30","v":"Brighton"}]
[null,null,null,null,"   Time",null,{"$f":"'Girls Results'!C31","v":"6:41"},null,{"$f":"'Girls Results'!E31","v":"6:42"},null,{"$f":"'Girls Results'!G31","v":"7:00"},null,{"$f":"'Girls Results'!I31","v":"7:03"}]
[]
[null,null,null,null,{"$f":"'Girls Results'!A33","v":"4 x 100 m Relay"}]
[null,null,null,null,"   Team",null,{"$f":"'Girls Results'!C34","v":"Thornton"},null,{"$f":"'Girls Results'!E34","v":"Brighton"}]
[null,null,null,null,"   Time",null,{"$f":"'Girls Results'!C35","v":"59.57"},null,{"$f":"'Girls Results'!E35","v":"1:02.75"}]
[]
[null,null,null,null,{"$f":"'Girls Results'!A37","v":"400 m Sprint"}]
[null,null,null,null,"   Name",null,{"$f":"'Girls Results'!C38","v":"Smidt"},null,{"$f":"'Girls Results'!E38","v":"Wilkinson"},null,{"$f":"'Girls Results'!G38","v":"Feiner"},null,{"$f":"'Girls Results'!I38","v":"Martinez"}]
[null,null,null,null,"   Team",null,{"$f":"'Girls Results'!C39","v":"Brighton"},null,{"$f":"'Girls Results'!E39","v":"Prairie View"},null,{"$f":"'Girls Results'!G39","v":"Thornton"},null,{"$f":"'Girls Results'!I39","v":"Brighton"}]
[null,null,null,null,"   Time",null,{"$f":"'Girls Results'!C40","v":"1:08.60"},null,{"$f":"'Girls Results'!E40","v":"1:13.75"},null,{"$f":"'Girls Results'!G40","v":"1:15.37"},null,{"$f":"'Girls Results'!I40","v":"1:17.31"}]
[]
[null,null,null,null,{"$f":"'Girls Results'!A42","v":"300 m L Hurdles"}]
[null,null,null,null,"   Name",null,{"$f":"'Girls Results'!C43","v":"Zuniga"},null,{"$f":"'Girls Results'!E43","v":"Lehman"},null,{"$f":"'Girls Results'!G43","v":"Vargas"}]
[null,null,null,null,"   Team",null,{"$f":"'Girls Results'!C44","v":"Thornton"},null,{"$f":"'Girls Results'!E44","v":"Prairie View"},null,{"$f":"'Girls Results'!G44","v":"Prairie View"}]
[null,null,null,null,"   Time",null,{"$f":"'Girls Results'!C45","v":"1:00.66"},null,{"$f":"'Girls Results'!E45","v":"1:03.10"},null,{"$f":"'Girls Results'!G45","v":"1:06.06"}]
[]
[null,null,null,null,{"$f":"'Girls Results'!A47","v":"800 m Run"}]
[null,null,null,null,"   Name",null,{"$f":"'Girls Results'!C48","v":"Wilkinson"},null,{"$f":"'Girls Results'!E48","v":"Martinez"},null,{"$f":"'Girls Results'!G48","v":"Bautista"},null,{"$f":"'Girls Results'!I48","v":"Stanelle"}]
[null,null,null,null,"   Team",null,{"$f":"'Girls Results'!C49","v":"Prairie View"},null,{"$f":"'Girls Results'!E49","v":"Brighton"},null,{"$f":"'Girls Results'!G49","v":"Brighton"},null,{"$f":"'Girls Results'!I49","v":"Prairie View"}]
[null,null,null,null,"   Time",null,{"$f":"'Girls Results'!C50","v":"3:13.44"},null,{"$f":"'Girls Results'!E50","v":"3:18.55"},null,{"$f":"'Girls Results'!G50","v":"3;21.91"},null,{"$f":"'Girls Results'!I50","v":"3:22.91"}]
[]
[null,null,null,null,{"$f":"'Girls Results'!A52","v":"200 m Sprint"}]
[null,null,null,null,"   Name",null,{"$f":"'Girls Results'!C53","v":"Antcliff"},null,{"$f":"'Girls Results'!E53","v":"Wright"},null,{"$f":"'Girls Results'!G53","v":"Alben"},null,{"$f":"'Girls Results'!I53","v":"Venard"}]
[null,null,null,null,"   Team",null,{"$f":"'Girls Results'!C54","v":"Prairie View"},null,{"$f":"'Girls Results'!E54","v":"Thornton"},null,{"$f":"'Girls Results'!G54","v":"Prairie View"},null,{"$f":"'Girls Results'!I54","v":"Thornton"}]
[null,null,null,null,"   Time",null,{"$f":"'Girls Results'!C55","v":"27.81"},null,{"$f":"'Girls Results'!E55","v":"28.87"},null,{"$f":"'Girls Results'!G55","v":"30.3"},null,{"$f":"'Girls Results'!I55","v":"31.04"}]
[]
[]
[]
[null,null,null,null,{"$f":"'Girls Results'!A57","v":"3200 m Run"}]
[null,null,null,null,"   Name"]
[null,null,null,null,"   Team"]
[null,null,null,null,"   Time"]
[]
[null,null,null,null,{"$f":"'Girls Results'!A62","v":"4 X 400 m Relay"}]
[null,null,null,null,"   Team",null,{"$f":"'Girls Results'!C63","v":"Brighton"}]
[null,null,null,null,"   Time",null,{"$f":"'Girls Results'!C64","v":"5:56"}]
[]
[null,null,null,null,{"$f":"'Girls Results'!A66","v":"High Jump"}]
[null,null,null,null,"   Name",null,{"$f":"'Girls Results'!C67","v":"Halverson"},null,{"$f":"'Girls Results'!E67","v":"Taylor"},null,{"$f":"'Girls Results'!G67","v":"Stricks"}]
[null,null,null,null,"   Team",null,{"$f":"'Girls Results'!C68","v":"Brighton"},null,{"$f":"'Girls Results'!E68","v":"Prairie View"},null,{"$f":"'Girls Results'!G68","v":"Thornton"}]
[null,null,null,null,"   Distance",null,{"$f":"'Girls Results'!C69","v":"4' 6\""},null,{"$f":"'Girls Results'!E69","v":"4'2\""},null,{"$f":"'Girls Results'!G69","v":"4' 0\""}]
[]
[null,null,null,null,{"$f":"'Girls Results'!A71","v":"Long Jump"}]
[null,null,null,null,"   Name",null,{"$f":"'Girls Results'!C72","v":"Branson"},null,{"$f":"'Girls Results'!E72","v":"Lisette"},null,{"$f":"'Girls Results'!G72","v":"Anna"},null,{"$f":"'Girls Results'!I72","v":"Lina"}]
[null,null,null,null,"   Team",null,{"$f":"'Girls Results'!C73","v":"Prairie View"},null,{"$f":"'Girls Results'!E73","v":"Thornton"},null,{"$f":"'Girls Results'!G73","v":"Thornton"},null,{"$f":"'Girls Results'!I73","v":"Thornton"}]
[null,null,null,null,"   Distance",null,{"$f":"'Girls Results'!C74","v":"12' 1.5\""},null,{"$f":"'Girls Results'!E74","v":"11' 11\""},null,{"$f":"'Girls Results'!G74","v":"11' 10\""},null,{"$f":"'Girls Results'!I74","v":"11' 7\""}]
[]
[null,null,null,null,{"$f":"'Girls Results'!A76","v":"Triple Jump"}]
[null,null,null,null,"   Name",null,{"$f":"'Girls Results'!C77","v":"Branson"},null,{"$f":"'Girls Results'!E77","v":"Vernard"},null,{"$f":"'Girls Results'!G77","v":"Quintero"}]
[null,null,null,null,"   Team",null,{"$f":"'Girls Results'!C78","v":"Prairie View"},null,{"$f":"'Girls Results'!E78","v":"Thornton"},null,{"$f":"'Girls Results'!G78","v":"Thornton"}]
[null,null,null,null,"   Distance",null,{"$f":"'Girls Results'!C79","v":"24' 10\""},null,{"$f":"'Girls Results'!E79","v":"23' 8\""},null,{"$f":"'Girls Results'!G79","v":"23' 4\""}]
[]
[null,null,null,null,{"$f":"'Girls Results'!A81","v":"Shot Put"}]
[null,null,null,null,"   Name",null,{"$f":"'Girls Results'!C82","v":"White"},null,{"$f":"'Girls Results'!E82","v":"Potestio"},null,{"$f":"'Girls Results'!G82","v":"Sherman"},null,{"$f":"'Girls Results'!I82","v":"Merich"}]
[null,null,null,null,"   Team",null,{"$f":"'Girls Results'!C83","v":"Brighton"},null,{"$f":"'Girls Results'!E83","v":"Brighton"},null,{"$f":"'Girls Results'!G83","v":"Westminster"},null,{"$f":"'Girls Results'!I83","v":"Brighton"}]
[null,null,null,null,"   Distance",null,{"$f":"'Girls Results'!C84","v":"31' 2\""},null,{"$f":"'Girls Results'!E84","v":"26'"},null,{"$f":"'Girls Results'!G84","v":"25' 2\""},null,{"$f":"'Girls Results'!I84","v":"21' 5\""}]
[]
[null,null,null,null,{"$f":"'Girls Results'!A86","v":"Discus"}]
[null,null,null,null,"   Name",null,{"$f":"'Girls Results'!C87","v":"Hays"},null,{"$f":"'Girls Results'!E87","v":"Navarrete"},null,{"$f":"'Girls Results'!G87","v":"Lehman"},null,{"$f":"'Girls Results'!I87","v":"Potestio"}]
[null,null,null,null,"   Team",null,{"$f":"'Girls Results'!C88","v":"Prairie View"},null,{"$f":"'Girls Results'!E88","v":"Westminster"},null,{"$f":"'Girls Results'!G88","v":"Prairie View"},null,{"$f":"'Girls Results'!I88","v":"Brighton"}]
[null,null,null,null,"   Distance",null,{"$f":"'Girls Results'!C89","v":"63' 10\""},null,{"$f":"'Girls Results'!E89","v":"68' 8\""},null,{"$f":"'Girls Results'!G89","v":"57' 7\""},null,{"$f":"'Girls Results'!I89","v":"55' 11\""}]

{"sheet":"Boys - Overall for papers","index":8,"n_rows":89,"n_cols":13,"rows_kept":89,"cut":false,"hidden":false,"merged":[[0,0,0,10],[1,0,1,10],[3,0,3,10]]}
["Boys - EMAC JV Meet"]
["Hosted by Prairie View"]
[]
[{"$f":"Points!C40","v":"2013-04-03"}]
[]
["Team",null,"Pts",null,"Event",null,"1st Place",null,"2nd Place",null,"3rd Place",null,"4th Place"]
[]
[{"$f":"Teams!B3","v":"Prairie View"},null,{"$f":"'Boys Totals'!E41","v":88},null,{"$f":"'Boys Results'!A10","v":"4 X 800 m Relay"}]
[{"$f":"Teams!B2","v":"Brighton"},null,{"$f":"'Boys Totals'!C41","v":76},null,"   Team",null,{"$f":"'Boys Results'!C11","v":"Thornton"},null,{"$f":"'Boys Results'!E11","v":"Brighton"}]
[null,null,{"$f":"'Boys Totals'!K41","v":" "},null,"   Time",null,{"$f":"'Boys Results'!C12","v":"10:00.00"},null,{"$f":"'Boys Results'!E12","v":"10:12.13"}]
[{"$f":"Teams!B4","v":"Thornton"},null,{"$f":"'Boys Totals'!G41","v":36}]
[{"$f":"Teams!B5","v":"Westminster"},null,{"$f":"'Boys Totals'!I41","v":33},null,{"$f":"'Boys Results'!A14","v":"110 m H Hurdles"}]
[{"$f":"Teams!B7","v":" "},null,{"$f":"'Boys Totals'!M41","v":" "},null,"   Name",null,{"$f":"'Boys Results'!C15","v":"Linebell"},null,{"$f":"'Boys Results'!E15","v":"Gulley"},null,{"$f":"'Boys Results'!G15","v":"Wong"},null,{"$f":"'Boys Results'!I15","v":"Arellano"}]
[{"$f":"Teams!B8","v":" "},null,{"$f":"'Boys Totals'!O41","v":" "},null,"   Team",null,{"$f":"'Boys Results'!C16","v":"Westminster"},null,{"$f":"'Boys Results'!E16","v":"Prairie View"},null,{"$f":"'Boys Results'!G16","v":"Westminster"},null,{"$f":"'Boys Results'!I16","v":"Westminster"}]
[{"$f":"Teams!B9","v":" "},null,{"$f":"'Boys Totals'!Q41","v":" "},null,"   Time",null,{"$f":"'Boys Results'!C17","v":"20.00"},null,{"$f":"'Boys Results'!E17","v":"20.37"},null,{"$f":"'Boys Results'!G17","v":"22.56"},null,{"$f":"'Boys Results'!I17","v":"23.09"}]
[]
[null,null,null,null,{"$f":"'Boys Results'!A19","v":"100 m Sprint"}]
[null,null,null,null,"   Name",null,{"$f":"'Boys Results'!C20","v":"Balthazor"},null,{"$f":"'Boys Results'!E20","v":"Kreutzer"},null,{"$f":"'Boys Results'!G20","v":"Robinson"},null,{"$f":"'Boys Results'!I20","v":"Baca"}]
[null,null,null,null,"   Team",null,{"$f":"'Boys Results'!C21","v":"Holy Family"},null,{"$f":"'Boys Results'!E21","v":"Prairie View"},null,{"$f":"'Boys Results'!G21","v":"Prairie View"},null,{"$f":"'Boys Results'!I21","v":"Brighton"}]
[null,null,null,null,"   Time",null,{"$f":"'Boys Results'!C22","v":"11.58"},null,{"$f":"'Boys Results'!E22","v":"11.86"},null,{"$f":"'Boys Results'!G22","v":"11.97"},null,{"$f":"'Boys Results'!I22","v":"12.09"}]
[]
["\"Ctrl + A\" will sort ",null,null,null,{"$f":"'Boys Results'!A24","v":"4 X 200 m Relay"}]
["teams by points.",null,null,null,"   Team",null,{"$f":"'Boys Results'!C25","v":"Brighton"},null,{"$f":"'Boys Results'!E25","v":"Westminster"},null,{"$f":"'Boys Results'!G25","v":"Thornton"}]
[null,null,null,null,"   Time",null,{"$f":"'Boys Results'!C26","v":"1:47.49"},null,{"$f":"'Boys Results'!E26","v":"1:49"},null,{"$f":"'Boys Results'!G26","v":"1:50.60"}]
[]
[null,null,null,null,{"$f":"'Boys Results'!A28","v":"1600 m Run"}]
[null,null,null,null,"   Name",null,{"$f":"'Boys Results'!C29","v":"Rose"},null,{"$f":"'Boys Results'!E29","v":"Martinez"},null,{"$f":"'Boys Results'!G29","v":"Ortega"},null,{"$f":"'Boys Results'!I29","v":"Phun"}]
[null,null,null,null,"   Team",null,{"$f":"'Boys Results'!C30","v":"Thornton"},null,{"$f":"'Boys Results'!E30","v":"Prairie View"},null,{"$f":"'Boys Results'!G30","v":"Prairie View"},null,{"$f":"'Boys Results'!I30","v":"Westminster"}]
[null,null,null,null,"   Time",null,{"$f":"'Boys Results'!C31","v":"5:13.58"},null,{"$f":"'Boys Results'!E31","v":"5:32.72"},null,{"$f":"'Boys Results'!G31","v":"5:33.79"},null,{"$f":"'Boys Results'!I31","v":"5:51.72"}]
[]
[null,null,null,null,{"$f":"'Boys Results'!A33","v":"4 x 100 m Relay"}]
[null,null,null,null,"   Team",null,{"$f":"'Boys Results'!C34","v":"Brighton"},null,{"$f":"'Boys Results'!E34","v":"Westminster"},null,{"$f":"'Boys Results'!G34","v":"Thornton"}]
[null,null,null,null,"   Time",null,{"$f":"'Boys Results'!C35","v":"48.35"},null,{"$f":"'Boys Results'!E35","v":"51.7"},null,{"$f":"'Boys Results'!G35","v":"51.96"}]
[]
[null,null,null,null,{"$f":"'Boys Results'!A37","v":"400 m Sprint"}]
[null,null,null,null,"   Name",null,{"$f":"'Boys Results'!C38","v":"Macias"},null,{"$f":"'Boys Results'!E38","v":"Huffman"},null,{"$f":"'Boys Results'!G38","v":"Echols"},null,{"$f":"'Boys Results'!I38","v":"Murphy"}]
[null,null,null,null,"   Team",null,{"$f":"'Boys Results'!C39","v":"Brighton"},null,{"$f":"'Boys Results'!E39","v":"Prairie View"},null,{"$f":"'Boys Results'!G39","v":"Brighton"},null,{"$f":"'Boys Results'!I39","v":"Thornton"}]
[null,null,null,null,"   Time",null,{"$f":"'Boys Results'!C40","v":"56.53"},null,{"$f":"'Boys Results'!E40","v":"58.31"},null,{"$f":"'Boys Results'!G40","v":"58.41"},null,{"$f":"'Boys Results'!I40","v":"63.62"}]
[]
[null,null,null,null,{"$f":"'Boys Results'!A42","v":"300 m L Hurdles"}]
[null,null,null,null,"   Name",null,{"$f":"'Boys Results'!C43","v":"Robinson"},null,{"$f":"'Boys Results'!E43","v":"Martinez"},null,{"$f":"'Boys Results'!G43","v":"Gulley"},null,{"$f":"'Boys Results'!I43","v":"Kois"}]
[null,null,null,null,"   Team",null,{"$f":"'Boys Results'!C44","v":"Prairie View"},null,{"$f":"'Boys Results'!E44","v":"Brighton"},null,{"$f":"'Boys Results'!G44","v":"Prairie View"},null,{"$f":"'Boys Results'!I44","v":"Thornton"}]
[null,null,null,null,"   Time",null,{"$f":"'Boys Results'!C45","v":"45.97"},null,{"$f":"'Boys Results'!E45","v":"48.56"},null,{"$f":"'Boys Results'!G45","v":"49.44"},null,{"$f":"'Boys Results'!I45","v":"50.88"}]
[]
[null,null,null,null,{"$f":"'Boys Results'!A47","v":"800 m Run"}]
[null,null,null,null,"   Name",null,{"$f":"'Boys Results'!C48","v":"Joseph"},null,{"$f":"'Boys Results'!E48","v":"Rose"},null,{"$f":"'Boys Results'!G48","v":"Kramer"},null,{"$f":"'Boys Results'!I48","v":"Phung"}]
[null,null,null,null,"   Team",null,{"$f":"'Boys Results'!C49","v":"Thornton"},null,{"$f":"'Boys Results'!E49","v":"Thornton"},null,{"$f":"'Boys Results'!G49","v":"Brighton"},null,{"$f":"'Boys Results'!I49","v":"Westminster"}]
[null,null,null,null,"   Time",null,{"$f":"'Boys Results'!C50","v":"2:21.35"},null,{"$f":"'Boys Results'!E50","v":"2:21.60"},null,{"$f":"'Boys Results'!G50","v":"2:26.20"},null,{"$f":"'Boys Results'!I50","v":"2:34.17"}]
[]
[null,null,null,null,{"$f":"'Boys Results'!A52","v":"200 m Sprint"}]
[null,null,null,null,"   Name",null,{"$f":"'Boys Results'!C53","v":"Kreutzer"},null,{"$f":"'Boys Results'!E53","v":"Robinson"},null,{"$f":"'Boys Results'!G53","v":"Huffman"},null,{"$f":"'Boys Results'!I53","v":"Martinez"}]
[null,null,null,null,"   Team",null,{"$f":"'Boys Results'!C54","v":"Prairie View"},null,{"$f":"'Boys Results'!E54","v":"Prairie View"},null,{"$f":"'Boys Results'!G54","v":"Prairie View"},null,{"$f":"'Boys Results'!I54","v":"Brighton"}]
[null,null,null,null,"   Time",null,{"$f":"'Boys Results'!C55","v":"25.09"},null,{"$f":"'Boys Results'!E55","v":"25.61"},null,{"$f":"'Boys Results'!G55","v":"25.7"},null,{"$f":"'Boys Results'!I55","v":"25.9"}]
[]
[null,null,null,null,{"$f":"'Boys Results'!A57","v":"3200 m Run"}]
[null,null,null,null,"   Name",null,{"$f":"'Boys Results'!C58","v":"Phillips"},null,{"$f":"'Boys Results'!E58","v":"Kramer"},null,{"$f":"'Boys Results'!G58","v":"Wilson"},null,{"$f":"'Boys Results'!I58","v":"Toby"}]
[null,null,null,null,"   Team",null,{"$f":"'Boys Results'!C59","v":"Thornton"},null,{"$f":"'Boys Results'!E59","v":"Brighton"},null,{"$f":"'Boys Results'!G59","v":"Brighton"},null,{"$f":"'Boys Results'!I59","v":"Prairie View"}]
[null,null,null,null,"   Time",null,{"$f":"'Boys Results'!C60","v":"10:47.85"},null,{"$f":"'Boys Results'!E60","v":"12:03.38"},null,{"$f":"'Boys Results'!G60","v":"13:40.87"},null,{"$f":"'Boys Results'!I60","v":"13:54"}]
[]
[]
[]
[null,null,null,null,{"$f":"'Boys Results'!A62","v":"4 X 400 m Relay"}]
[null,null,null,null,"   Team",null,{"$f":"'Boys Results'!C63","v":"Brighton"},null,{"$f":"'Boys Results'!E63","v":"Westminster"}]
[null,null,null,null,"   Time",null,{"$f":"'Boys Results'!C64","v":"4:16.40"},null,{"$f":"'Boys Results'!E64","v":"4:30.59"}]
[]
[null,null,null,null,{"$f":"'Boys Results'!A66","v":"High Jump"}]
[null,null,null,null,"   Name",null,{"$f":"'Boys Results'!C67","v":"Severence"},null,{"$f":"'Boys Results'!E67","v":"Ortega"},null,{"$f":"'Boys Results'!G67","v":"Martinez"},null,{"$f":"'Boys Results'!I67","v":"Lam"}]
[null,null,null,null,"   Team",null,{"$f":"'Boys Results'!C68","v":"Prairie View"},null,{"$f":"'Boys Results'!E68","v":"Prairie View"},null,{"$f":"'Boys Results'!G68","v":"Prairie View"},null,{"$f":"'Boys Results'!I68","v":"Westminster"}]
[null,null,null,null,"   Distance",null,{"$f":"'Boys Results'!C69","v":"6'"},null,{"$f":"'Boys Results'!E69","v":"5'10\""},null,{"$f":"'Boys Results'!G69","v":"5'6\""},null,{"$f":"'Boys Results'!I69","v":"5'"}]
[]
[null,null,null,null,{"$f":"'Boys Results'!A71","v":"Long Jump"}]
[null,null,null,null,"   Name",null,{"$f":"'Boys Results'!C72","v":"Hazy"},null,{"$f":"'Boys Results'!E72","v":"Kreutzer"},null,{"$f":"'Boys Results'!G72","v":"Arellano"},null,{"$f":"'Boys Results'!I72","v":"Marsten"}]
[null,null,null,null,"   Team",null,{"$f":"'Boys Results'!C73","v":"Brighton"},null,{"$f":"'Boys Results'!E73","v":"Prairie View"},null,{"$f":"'Boys Results'!G73","v":"Westminster"},null,{"$f":"'Boys Results'!I73","v":"Prairie View"}]
[null,null,null,null,"   Distance",null,{"$f":"'Boys Results'!C74","v":"18'4\""},null,{"$f":"'Boys Results'!E74","v":"17'3.5\""},null,{"$f":"'Boys Results'!G74","v":"15'11\""},null,{"$f":"'Boys Results'!I74","v":"14'11\""}]
[]
[null,null,null,null,{"$f":"'Boys Results'!A76","v":"Triple Jump"}]
[null,null,null,null,"   Name",null,{"$f":"'Boys Results'!C77","v":"Ortega"},null,{"$f":"'Boys Results'!E77","v":"Hazy"},null,{"$f":"'Boys Results'!G77","v":"Martinez"}]
[null,null,null,null,"   Team",null,{"$f":"'Boys Results'!C78","v":"Prairie View"},null,{"$f":"'Boys Results'!E78","v":"Brighton"},null,{"$f":"'Boys Results'!G78","v":"Prairie View"}]
[null,null,null,null,"   Distance",null,{"$f":"'Boys Results'!C79","v":"38'5\""},null,{"$f":"'Boys Results'!E79","v":"37'9\""},null,{"$f":"'Boys Results'!G79","v":"37'3.5\""}]
[]
[null,null,null,null,{"$f":"'Boys Results'!A81","v":"Shot Put"}]
[null,null,null,null,"   Name",null,{"$f":"'Boys Results'!C82","v":"Adkins"},null,{"$f":"'Boys Results'!E82","v":"Roth"},null,{"$f":"'Boys Results'!G82","v":"Coronel"},null,{"$f":"'Boys Results'!I82","v":"McConnell"}]
[null,null,null,null,"   Team",null,{"$f":"'Boys Results'!C83","v":"Brighton"},null,{"$f":"'Boys Results'!E83","v":"Brighton"},null,{"$f":"'Boys Results'!G83","v":"Brighton"},null,{"$f":"'Boys Results'!I83","v":"Prairie View"}]
[null,null,null,null,"   Distance",null,{"$f":"'Boys Results'!C84","v":"40'6\""},null,{"$f":"'Boys Results'!E84","v":"35'11\""},null,{"$f":"'Boys Results'!G84","v":"34'"},null,{"$f":"'Boys Results'!I84","v":"32'11\""}]
[]
[null,null,null,null,{"$f":"'Boys Results'!A86","v":"Discus"}]
[null,null,null,null,"   Name",null,{"$f":"'Boys Results'!C87","v":"Severence"},null,{"$f":"'Boys Results'!E87","v":"Montgomery"},null,{"$f":"'Boys Results'!G87","v":"Adkins"},null,{"$f":"'Boys Results'!I87","v":"McConnel"}]
[null,null,null,null,"   Team",null,{"$f":"'Boys Results'!C88","v":"Prairie View"},null,{"$f":"'Boys Results'!E88","v":"Prairie View"},null,{"$f":"'Boys Results'!G88","v":"Brighton"},null,{"$f":"'Boys Results'!I88","v":"Prairie View"}]
[null,null,null,null,"   Distance",null,{"$f":"'Boys Results'!C89","v":"97'2\""},null,{"$f":"'Boys Results'!E89","v":"92'4'"},null,{"$f":"'Boys Results'!G89","v":"91'"},null,{"$f":"'Boys Results'!I89","v":"88'9\""}]